Body Name,Body,Date,Department,Beneficiary,Summary of Purpose (SeRCOP),Amount,Merchant Code,Transaction Number,Supplier ID
Sandwell Metropolitan Borough Council,http://www.sandwell.gov.uk/info/200202/performance_and_spending/1079/payments_over_500,01-Apr-2021,Adults Social Care Capital,DLM BUILDING & MAINTENANCE LTD,Adults Social Care Capital,6145.47,CIP - Infrastructure,2122P01_CR00001,137596
Sandwell Metropolitan Borough Council,http://www.sandwell.gov.uk/info/200202/performance_and_spending/1079/payments_over_500,01-Apr-2021,Adults Social Care Capital,DOLPHIN LIFTS MIDLANDS LTD,Adults Social Care Capital,6179.26,Deferred Charges/Grant Payments,2122P01_CR00002,123852
Sandwell Metropolitan Borough Council,http://www.sandwell.gov.uk/info/200202/performance_and_spending/1079/payments_over_500,01-Apr-2021,Adults Social Care Capital,PR PROPERTY MAINTENANCE,Adults Social Care Capital,30037.51,Deferred Charges/Grant Payments,2122P01_CR00003,33836
Sandwell Metropolitan Borough Council,http://www.sandwell.gov.uk/info/200202/performance_and_spending/1079/payments_over_500,07-Apr-2021,Adults Social Care Capital,PR PROPERTY MAINTENANCE,Adults Social Care Capital,83254.55,Deferred Charges/Grant Payments,2122P01_CR00004,33836
Sandwell Metropolitan Borough Council,http://www.sandwell.gov.uk/info/200202/performance_and_spending/1079/payments_over_500,01-Apr-2021,Adults Social Care Capital,VINCI CONSTRUCTION LTD,Adults Social Care Capital,736.40,Deferred Charges/Grant Payments,2122P01_CR00005,36361
Sandwell Metropolitan Borough Council,http://www.sandwell.gov.uk/info/200202/performance_and_spending/1079/payments_over_500,01-Apr-2021,Adults Social Care Capital,VINCI CONSTRUCTION LTD,Adults Social Care Capital,4135.92,Deferred Charges/Grant Payments,2122P01_CR00006,36361
Sandwell Metropolitan Borough Council,http://www.sandwell.gov.uk/info/200202/performance_and_spending/1079/payments_over_500,01-Apr-2021,Adults Social Care Capital,VINCI CONSTRUCTION LTD,Adults Social Care Capital,5879.14,Deferred Charges/Grant Payments,2122P01_CR00007,36361
Sandwell Metropolitan Borough Council,http://www.sandwell.gov.uk/info/200202/performance_and_spending/1079/payments_over_500,01-Apr-2021,Adults Social Care Capital,AXIS EUROPE PLC                                                           02,Adults Social Care Capital,7223.36,Deferred Charges/Grant Payments,2122P01_CR00008,64946
Sandwell Metropolitan Borough Council,http://www.sandwell.gov.uk/info/200202/performance_and_spending/1079/payments_over_500,01-Apr-2021,Adults Social Care Capital,AXIS EUROPE PLC                                                           02,Adults Social Care Capital,8717.18,Deferred Charges/Grant Payments,2122P01_CR00009,64946
Sandwell Metropolitan Borough Council,http://www.sandwell.gov.uk/info/200202/performance_and_spending/1079/payments_over_500,01-Apr-2021,Adults Social Care Capital,FORKERS LTD,Adults Social Care Capital,204170.13,"CIP - New Construction,Conversion, Enhancement & Reno",2122P01_CR00010,10149
Sandwell Metropolitan Borough Council,http://www.sandwell.gov.uk/info/200202/performance_and_spending/1079/payments_over_500,11-Apr-2021,Adults Social Care Capital,WILLMOTT DIXON CONSTRUCTION LIMITED,Adults Social Care Capital,548431.80,"CIP - New Construction,Conversion, Enhancement & Reno",2122P01_CR00011,34081
Sandwell Metropolitan Borough Council,http://www.sandwell.gov.uk/info/200202/performance_and_spending/1079/payments_over_500,01-Apr-2021,Adults Social Care Capital,RIDGE & PARTNERS LLP,Adults Social Care Capital,1000.00,"CIP - New Construction,Conversion, Enhancement & Reno",2122P01_CR00012,134994
Sandwell Metropolitan Borough Council,http://www.sandwell.gov.uk/info/200202/performance_and_spending/1079/payments_over_500,01-Apr-2021,Adults Social Care Capital,TIM ADAMS ARCHITECTS LTD,Adults Social Care Capital,5100.00,"CIP - New Construction,Conversion, Enhancement & Reno",2122P01_CR00013,149402
Sandwell Metropolitan Borough Council,http://www.sandwell.gov.uk/info/200202/performance_and_spending/1079/payments_over_500,01-Apr-2021,Adults Social Care Capital,LIQUIDLOGIC LIMITED,Adults Social Care Capital,47880.00,ICT ,2122P01_CR00014,83167
Sandwell Metropolitan Borough Council,http://www.sandwell.gov.uk/info/200202/performance_and_spending/1079/payments_over_500,01-Apr-2021,Adults Social Care Capital,TDF DESIGN LIMITED,Adults Social Care Capital,11038.23,Deferred Charges/Grant Payments,2122P01_CR00015,10320
Sandwell Metropolitan Borough Council,http://www.sandwell.gov.uk/info/200202/performance_and_spending/1079/payments_over_500,01-Apr-2021,Adults Social Care Capital,TDF DESIGN LIMITED,Adults Social Care Capital,17860.00,Deferred Charges/Grant Payments,2122P01_CR00016,10320
Sandwell Metropolitan Borough Council,http://www.sandwell.gov.uk/info/200202/performance_and_spending/1079/payments_over_500,19-Apr-2021,Childrens Services,NET BUILDER LIMITED,Childrens Services,1658.78,Externally Purchased Professional Services ,2122P01_CR00017,139019
Sandwell Metropolitan Borough Council,http://www.sandwell.gov.uk/info/200202/performance_and_spending/1079/payments_over_500,19-Apr-2021,Childrens Services,NET BUILDER LIMITED,Childrens Services,1813.81,Externally Purchased Professional Services ,2122P01_CR00018,139019
Sandwell Metropolitan Borough Council,http://www.sandwell.gov.uk/info/200202/performance_and_spending/1079/payments_over_500,19-Apr-2021,Childrens Services,NET BUILDER LIMITED,Childrens Services,2238.04,Externally Purchased Professional Services ,2122P01_CR00019,139019
Sandwell Metropolitan Borough Council,http://www.sandwell.gov.uk/info/200202/performance_and_spending/1079/payments_over_500,01-Apr-2021,Childrens Services,SITEWATCH FIRE AND SURVEILLANCE LIMITED,Childrens Services,1369.00,Security,2122P01_CR00020,55288
Sandwell Metropolitan Borough Council,http://www.sandwell.gov.uk/info/200202/performance_and_spending/1079/payments_over_500,01-Apr-2021,Childrens Services,CHUBB FIRE & SECURITY LIMITED t/a CHUBB ELECTRONIC SECURITY,Childrens Services,1479.26,Security,2122P01_CR00021,81343
Sandwell Metropolitan Borough Council,http://www.sandwell.gov.uk/info/200202/performance_and_spending/1079/payments_over_500,01-Apr-2021,Childrens Services,EARLS GYMNASTICS CLUB,Childrens Services,3168.00,Grant Payments,2122P01_CR00022,96950
Sandwell Metropolitan Borough Council,http://www.sandwell.gov.uk/info/200202/performance_and_spending/1079/payments_over_500,01-Apr-2021,Childrens Services,SANDWELL CHILDREN'S TRUST,Childrens Services,748964.01,Other Establishments,2122P01_CR00023,133302
Sandwell Metropolitan Borough Council,http://www.sandwell.gov.uk/info/200202/performance_and_spending/1079/payments_over_500,19-Apr-2021,Childrens Services,SANDWELL CHILDREN'S TRUST,Childrens Services,5232939.38,Other Establishments,2122P01_CR00024,133302
Sandwell Metropolitan Borough Council,http://www.sandwell.gov.uk/info/200202/performance_and_spending/1079/payments_over_500,01-Apr-2021,Childrens Services,PENNYHILL PRIMARY SCHOOL,Childrens Services,6569.66,Electricity,2122P01_CR00025,73032
Sandwell Metropolitan Borough Council,http://www.sandwell.gov.uk/info/200202/performance_and_spending/1079/payments_over_500,01-Apr-2021,Childrens Services,REDACTED PERSONAL DATA,Childrens Services,509.76,External Contract Hire,2122P01_CR00026,REDACTED PERSONAL DATA
Sandwell Metropolitan Borough Council,http://www.sandwell.gov.uk/info/200202/performance_and_spending/1079/payments_over_500,01-Apr-2021,Childrens Services,REDACTED PERSONAL DATA,Childrens Services,902.52,External Contract Hire,2122P01_CR00027,REDACTED PERSONAL DATA
Sandwell Metropolitan Borough Council,http://www.sandwell.gov.uk/info/200202/performance_and_spending/1079/payments_over_500,01-Apr-2021,Childrens Services,REDACTED PERSONAL DATA,Childrens Services,2190.00,Compensation Payments,2122P01_CR00028,REDACTED PERSONAL DATA
Sandwell Metropolitan Borough Council,http://www.sandwell.gov.uk/info/200202/performance_and_spending/1079/payments_over_500,01-Apr-2021,Childrens Services,NHS SANDWELL & WEST BIRMINGHAM CCG,Childrens Services,20785.07,LGS,2122P01_CR00029,116507
Sandwell Metropolitan Borough Council,http://www.sandwell.gov.uk/info/200202/performance_and_spending/1079/payments_over_500,01-Apr-2021,Childrens Services,ORMISTON FORGE ACADEMY,Childrens Services,1600.92,Grants,2122P01_CR00030,60941
Sandwell Metropolitan Borough Council,http://www.sandwell.gov.uk/info/200202/performance_and_spending/1079/payments_over_500,02-Apr-2021,Childrens Services,D J TRAVEL,Childrens Services,2869.38,Public Transport,2122P01_CR00031,96415
Sandwell Metropolitan Borough Council,http://www.sandwell.gov.uk/info/200202/performance_and_spending/1079/payments_over_500,02-Apr-2021,Childrens Services,TOH TAXIS,Childrens Services,1036.01,Public Transport,2122P01_CR00032,12250
Sandwell Metropolitan Borough Council,http://www.sandwell.gov.uk/info/200202/performance_and_spending/1079/payments_over_500,02-Apr-2021,Childrens Services,TOH TAXIS,Childrens Services,1523.10,Public Transport,2122P01_CR00033,12250
Sandwell Metropolitan Borough Council,http://www.sandwell.gov.uk/info/200202/performance_and_spending/1079/payments_over_500,02-Apr-2021,Childrens Services,TOH TAXIS,Childrens Services,1554.20,Public Transport,2122P01_CR00034,12250
Sandwell Metropolitan Borough Council,http://www.sandwell.gov.uk/info/200202/performance_and_spending/1079/payments_over_500,02-Apr-2021,Childrens Services,UNITY TRAVEL,Childrens Services,1702.00,Public Transport,2122P01_CR00035,64986
Sandwell Metropolitan Borough Council,http://www.sandwell.gov.uk/info/200202/performance_and_spending/1079/payments_over_500,02-Apr-2021,Childrens Services,ONE 4 YOU SERVICES LTD,Childrens Services,1760.00,Public Transport,2122P01_CR00036,81204
Sandwell Metropolitan Borough Council,http://www.sandwell.gov.uk/info/200202/performance_and_spending/1079/payments_over_500,01-Apr-2021,Childrens Services,GREEN DESTINATIONS LTD,Childrens Services,1866.42,Public Transport,2122P01_CR00037,109275
Sandwell Metropolitan Borough Council,http://www.sandwell.gov.uk/info/200202/performance_and_spending/1079/payments_over_500,19-Apr-2021,Childrens Services,UNITY TRAVEL,Childrens Services,2959.06,Public Transport,2122P01_CR00038,64986
Sandwell Metropolitan Borough Council,http://www.sandwell.gov.uk/info/200202/performance_and_spending/1079/payments_over_500,02-Apr-2021,Childrens Services,LR'S TAXIS LIMITED,Childrens Services,13237.27,Public Transport,2122P01_CR00039,59047
Sandwell Metropolitan Borough Council,http://www.sandwell.gov.uk/info/200202/performance_and_spending/1079/payments_over_500,12-Apr-2021,Childrens Services,ONE 4 YOU SERVICES LTD,Childrens Services,15524.78,Public Transport,2122P01_CR00040,81204
Sandwell Metropolitan Borough Council,http://www.sandwell.gov.uk/info/200202/performance_and_spending/1079/payments_over_500,01-Apr-2021,Childrens Services,DROACH TRAVEL LTD,Childrens Services,21876.07,Public Transport,2122P01_CR00041,06002707
Sandwell Metropolitan Borough Council,http://www.sandwell.gov.uk/info/200202/performance_and_spending/1079/payments_over_500,01-Apr-2021,Childrens Services,REDACTED PERSONAL DATA,Childrens Services,30950.96,Public Transport,2122P01_CR00042,REDACTED PERSONAL DATA
Sandwell Metropolitan Borough Council,http://www.sandwell.gov.uk/info/200202/performance_and_spending/1079/payments_over_500,01-Apr-2021,Childrens Services,COUNTY CARS (2003) LIMITED,Childrens Services,34027.27,Public Transport,2122P01_CR00043,06002387
Sandwell Metropolitan Borough Council,http://www.sandwell.gov.uk/info/200202/performance_and_spending/1079/payments_over_500,13-Apr-2021,Childrens Services,CLASSIC CARS 1997,Childrens Services,52475.22,Public Transport,2122P01_CR00044,06005093
Sandwell Metropolitan Borough Council,http://www.sandwell.gov.uk/info/200202/performance_and_spending/1079/payments_over_500,12-Apr-2021,Childrens Services,ONE 4 YOU SERVICES LTD,Childrens Services,56170.27,Public Transport,2122P01_CR00045,81204
Sandwell Metropolitan Borough Council,http://www.sandwell.gov.uk/info/200202/performance_and_spending/1079/payments_over_500,19-Apr-2021,Childrens Services,COUNTY CARS (2003) LIMITED,Childrens Services,81262.30,Public Transport,2122P01_CR00046,06002387
Sandwell Metropolitan Borough Council,http://www.sandwell.gov.uk/info/200202/performance_and_spending/1079/payments_over_500,19-Apr-2021,Childrens Services,GREEN DESTINATIONS LTD,Childrens Services,90301.03,Public Transport,2122P01_CR00047,109275
Sandwell Metropolitan Borough Council,http://www.sandwell.gov.uk/info/200202/performance_and_spending/1079/payments_over_500,01-Apr-2021,Childrens Services,TOTAL GAS AND POWER LIMITED,Childrens Services,-550.53,Electricity,2122P01_CR00048,107605
Sandwell Metropolitan Borough Council,http://www.sandwell.gov.uk/info/200202/performance_and_spending/1079/payments_over_500,11-Apr-2021,Childrens Services,TOTAL GAS AND POWER LIMITED,Childrens Services,504.37,Electricity,2122P01_CR00049,107605
Sandwell Metropolitan Borough Council,http://www.sandwell.gov.uk/info/200202/performance_and_spending/1079/payments_over_500,20-Apr-2021,Childrens Services,LOCAL EDUCATION AND DEVELOPMENT,Childrens Services,523.25,Grant Payments,2122P01_CR00050,148259
Sandwell Metropolitan Borough Council,http://www.sandwell.gov.uk/info/200202/performance_and_spending/1079/payments_over_500,14-Apr-2021,Childrens Services,SPOTON.NET LIMITED,Childrens Services,540.00,Advertising & Publicity,2122P01_CR00051,128844
Sandwell Metropolitan Borough Council,http://www.sandwell.gov.uk/info/200202/performance_and_spending/1079/payments_over_500,11-Apr-2021,Childrens Services,TOTAL GAS AND POWER LIMITED,Childrens Services,560.64,Electricity,2122P01_CR00052,107605
Sandwell Metropolitan Borough Council,http://www.sandwell.gov.uk/info/200202/performance_and_spending/1079/payments_over_500,02-Apr-2021,Childrens Services,JPC TRAVEL SOLUTION,Childrens Services,574.00,Public Transport,2122P01_CR00053,138533
Sandwell Metropolitan Borough Council,http://www.sandwell.gov.uk/info/200202/performance_and_spending/1079/payments_over_500,01-Apr-2021,Childrens Services,TOTAL GAS AND POWER LIMITED,Childrens Services,580.12,Electricity,2122P01_CR00054,107605
Sandwell Metropolitan Borough Council,http://www.sandwell.gov.uk/info/200202/performance_and_spending/1079/payments_over_500,20-Apr-2021,Childrens Services,LOCAL EDUCATION AND DEVELOPMENT,Childrens Services,672.75,Grant Payments,2122P01_CR00055,148259
Sandwell Metropolitan Borough Council,http://www.sandwell.gov.uk/info/200202/performance_and_spending/1079/payments_over_500,21-Apr-2021,Childrens Services,HEALTH & SAFETY EXECUTIVE,Childrens Services,715.00,Subscriptions,2122P01_CR00056,34974
Sandwell Metropolitan Borough Council,http://www.sandwell.gov.uk/info/200202/performance_and_spending/1079/payments_over_500,01-Apr-2021,Childrens Services,NCFE,Childrens Services,748.00,Externally Purchased Professional Services ,2122P01_CR00057,6230
Sandwell Metropolitan Borough Council,http://www.sandwell.gov.uk/info/200202/performance_and_spending/1079/payments_over_500,14-Apr-2021,Childrens Services,LEARNPLAY FOUNDATION LTD,Childrens Services,800.00,Externally Purchased Professional Services ,2122P01_CR00058,86525
Sandwell Metropolitan Borough Council,http://www.sandwell.gov.uk/info/200202/performance_and_spending/1079/payments_over_500,20-Apr-2021,Childrens Services,E.ON UK PLC,Childrens Services,801.69,Electricity,2122P01_CR00059,28639
Sandwell Metropolitan Borough Council,http://www.sandwell.gov.uk/info/200202/performance_and_spending/1079/payments_over_500,01-Apr-2021,Childrens Services,THOMAS CHARLES FACILITIES & MAINTENANCE LTD,Childrens Services,877.50,Contract Cleaning,2122P01_CR00060,114170
Sandwell Metropolitan Borough Council,http://www.sandwell.gov.uk/info/200202/performance_and_spending/1079/payments_over_500,19-Apr-2021,Childrens Services,121 CARZ,Childrens Services,918.00,Public Transport,2122P01_CR00061,116848
Sandwell Metropolitan Borough Council,http://www.sandwell.gov.uk/info/200202/performance_and_spending/1079/payments_over_500,21-Apr-2021,Childrens Services,DIRECTION TRAINING & MANAGEMENT,Childrens Services,1000.00,Externally Purchased Professional Services ,2122P01_CR00062,01727395
Sandwell Metropolitan Borough Council,http://www.sandwell.gov.uk/info/200202/performance_and_spending/1079/payments_over_500,01-Apr-2021,Childrens Services,HARGATE PRIMARY SCHOOL,Childrens Services,1000.00,Grants,2122P01_CR00063,04010481
Sandwell Metropolitan Borough Council,http://www.sandwell.gov.uk/info/200202/performance_and_spending/1079/payments_over_500,01-Apr-2021,Childrens Services,CITRON HYGIENE UK LTD,Childrens Services,1041.48,Materials & Consumables,2122P01_CR00064,140849
Sandwell Metropolitan Borough Council,http://www.sandwell.gov.uk/info/200202/performance_and_spending/1079/payments_over_500,01-Apr-2021,Childrens Services,OPUS EMPLOYER ENGAGEMENT SERVICES LIMITED,Childrens Services,1121.00,Externally Purchased Professional Services ,2122P01_CR00065,126506
Sandwell Metropolitan Borough Council,http://www.sandwell.gov.uk/info/200202/performance_and_spending/1079/payments_over_500,06-Apr-2021,Childrens Services,OPUS EMPLOYER ENGAGEMENT SERVICES LIMITED,Childrens Services,1121.00,Externally Purchased Professional Services ,2122P01_CR00066,126506
Sandwell Metropolitan Borough Council,http://www.sandwell.gov.uk/info/200202/performance_and_spending/1079/payments_over_500,20-Apr-2021,Childrens Services,LOCAL EDUCATION AND DEVELOPMENT,Childrens Services,1121.25,Grant Payments,2122P01_CR00067,148259
Sandwell Metropolitan Borough Council,http://www.sandwell.gov.uk/info/200202/performance_and_spending/1079/payments_over_500,01-Apr-2021,Childrens Services,RB SPORTS ACTIVITIES LTD,Childrens Services,1200.00,Grant Payments,2122P01_CR00068,126163
Sandwell Metropolitan Borough Council,http://www.sandwell.gov.uk/info/200202/performance_and_spending/1079/payments_over_500,12-Apr-2021,Childrens Services,LEARNING INTO EMPLOYMENT ACADEMY LTD,Childrens Services,1217.58,Externally Purchased Professional Services ,2122P01_CR00069,147427
Sandwell Metropolitan Borough Council,http://www.sandwell.gov.uk/info/200202/performance_and_spending/1079/payments_over_500,12-Apr-2021,Childrens Services,LEARNING INTO EMPLOYMENT ACADEMY LTD,Childrens Services,1217.58,Externally Purchased Professional Services ,2122P01_CR00070,147427
Sandwell Metropolitan Borough Council,http://www.sandwell.gov.uk/info/200202/performance_and_spending/1079/payments_over_500,11-Apr-2021,Childrens Services,TOTAL GAS AND POWER LIMITED,Childrens Services,1219.55,Electricity,2122P01_CR00071,107605
Sandwell Metropolitan Borough Council,http://www.sandwell.gov.uk/info/200202/performance_and_spending/1079/payments_over_500,19-Apr-2021,Childrens Services,121 CARZ,Childrens Services,1243.63,Public Transport,2122P01_CR00072,116848
Sandwell Metropolitan Borough Council,http://www.sandwell.gov.uk/info/200202/performance_and_spending/1079/payments_over_500,01-Apr-2021,Childrens Services,WEST MIDLANDS ACCESSIBLE TRANSPORT LTD,Childrens Services,1307.54,Public Transport,2122P01_CR00073,01694764
Sandwell Metropolitan Borough Council,http://www.sandwell.gov.uk/info/200202/performance_and_spending/1079/payments_over_500,14-Apr-2021,Childrens Services,LEARNPLAY FOUNDATION LTD,Childrens Services,1320.00,Externally Purchased Professional Services ,2122P01_CR00074,86525
Sandwell Metropolitan Borough Council,http://www.sandwell.gov.uk/info/200202/performance_and_spending/1079/payments_over_500,01-Apr-2021,Childrens Services,THOMAS CHARLES FACILITIES & MAINTENANCE LTD,Childrens Services,1800.00,Contract Cleaning,2122P01_CR00075,114170
Sandwell Metropolitan Borough Council,http://www.sandwell.gov.uk/info/200202/performance_and_spending/1079/payments_over_500,01-Apr-2021,Childrens Services,THOMAS CHARLES FACILITIES & MAINTENANCE LTD,Childrens Services,1800.00,Contract Cleaning,2122P01_CR00076,114170
Sandwell Metropolitan Borough Council,http://www.sandwell.gov.uk/info/200202/performance_and_spending/1079/payments_over_500,01-Apr-2021,Childrens Services,THOMAS CHARLES FACILITIES & MAINTENANCE LTD,Childrens Services,1800.00,Contract Cleaning,2122P01_CR00077,114170
Sandwell Metropolitan Borough Council,http://www.sandwell.gov.uk/info/200202/performance_and_spending/1079/payments_over_500,01-Apr-2021,Childrens Services,OLD PARK PRIMARY SCHOOL,Childrens Services,1869.30,Rents,2122P01_CR00078,04024287
Sandwell Metropolitan Borough Council,http://www.sandwell.gov.uk/info/200202/performance_and_spending/1079/payments_over_500,15-Apr-2021,Childrens Services,AMP BIOMASS FUEL LTD T/A AMP CLEAN ENERGY,Childrens Services,1915.20,Ingestre Hall Arts Centre,2122P01_CR00079,128761
Sandwell Metropolitan Borough Council,http://www.sandwell.gov.uk/info/200202/performance_and_spending/1079/payments_over_500,19-Apr-2021,Childrens Services,WEST MIDLANDS ACCESSIBLE TRANSPORT LTD,Childrens Services,2044.15,Public Transport,2122P01_CR00080,01694764
Sandwell Metropolitan Borough Council,http://www.sandwell.gov.uk/info/200202/performance_and_spending/1079/payments_over_500,01-Apr-2021,Childrens Services,SKILLS NETWORK LTD,Childrens Services,2500.00,Externally Purchased Professional Services ,2122P01_CR00081,146052
Sandwell Metropolitan Borough Council,http://www.sandwell.gov.uk/info/200202/performance_and_spending/1079/payments_over_500,01-Apr-2021,Childrens Services,SSE ENERGY SUPPLY LIMITED,Childrens Services,2726.74,Electricity,2122P01_CR00082,116134
Sandwell Metropolitan Borough Council,http://www.sandwell.gov.uk/info/200202/performance_and_spending/1079/payments_over_500,19-Apr-2021,Childrens Services,WEST MIDLANDS ACCESSIBLE TRANSPORT LTD,Childrens Services,2729.64,Public Transport,2122P01_CR00083,01694764
Sandwell Metropolitan Borough Council,http://www.sandwell.gov.uk/info/200202/performance_and_spending/1079/payments_over_500,01-Apr-2021,Childrens Services,CAPITA BUSINESS SERVICES LTD,Childrens Services,2747.88,Externally Purchased Professional Services ,2122P01_CR00084,01577171
Sandwell Metropolitan Borough Council,http://www.sandwell.gov.uk/info/200202/performance_and_spending/1079/payments_over_500,01-Apr-2021,Childrens Services,THOMAS CHARLES FACILITIES & MAINTENANCE LTD,Childrens Services,2925.00,Contract Cleaning,2122P01_CR00085,114170
Sandwell Metropolitan Borough Council,http://www.sandwell.gov.uk/info/200202/performance_and_spending/1079/payments_over_500,14-Apr-2021,Childrens Services,HEART OF ENGLAND COMMUNITY FOUNDATION,Childrens Services,3000.00,Grant Payments,2122P01_CR00086,133427
Sandwell Metropolitan Borough Council,http://www.sandwell.gov.uk/info/200202/performance_and_spending/1079/payments_over_500,01-Apr-2021,Childrens Services,NACRO                                                           01,Childrens Services,3500.00,Externally Purchased Professional Services ,2122P01_CR00087,01709637
Sandwell Metropolitan Borough Council,http://www.sandwell.gov.uk/info/200202/performance_and_spending/1079/payments_over_500,01-Apr-2021,Childrens Services,ADCS LTD,Childrens Services,3581.00,Subscriptions,2122P01_CR00088,3146
Sandwell Metropolitan Borough Council,http://www.sandwell.gov.uk/info/200202/performance_and_spending/1079/payments_over_500,19-Apr-2021,Childrens Services,BUTT TAXI,Childrens Services,3899.37,Public Transport,2122P01_CR00089,109306
Sandwell Metropolitan Borough Council,http://www.sandwell.gov.uk/info/200202/performance_and_spending/1079/payments_over_500,11-Apr-2021,Childrens Services,QUALITY EDUCATION SOLUTIONS LIMITED,Childrens Services,3980.12,ICT ,2122P01_CR00090,70602
Sandwell Metropolitan Borough Council,http://www.sandwell.gov.uk/info/200202/performance_and_spending/1079/payments_over_500,01-Apr-2021,Childrens Services,COGNISOFT LTD,Childrens Services,5750.00,Externally Purchased Professional Services ,2122P01_CR00091,134201
Sandwell Metropolitan Borough Council,http://www.sandwell.gov.uk/info/200202/performance_and_spending/1079/payments_over_500,14-Apr-2021,Childrens Services,JUNIPER TRAINING LTD,Childrens Services,6000.00,Externally Purchased Professional Services ,2122P01_CR00092,84880
Sandwell Metropolitan Borough Council,http://www.sandwell.gov.uk/info/200202/performance_and_spending/1079/payments_over_500,01-Apr-2021,Childrens Services,HELPING HANDS,Childrens Services,6000.00,Grant Payments,2122P01_CR00093,89364
Sandwell Metropolitan Borough Council,http://www.sandwell.gov.uk/info/200202/performance_and_spending/1079/payments_over_500,07-Apr-2021,Childrens Services,SANDWELL PARENTS FOR DISABLED CHILDREN,Childrens Services,6000.00,Grant Payments,2122P01_CR00094,70991
Sandwell Metropolitan Borough Council,http://www.sandwell.gov.uk/info/200202/performance_and_spending/1079/payments_over_500,01-Apr-2021,Childrens Services,4 COMMUNITY TRUST CIC,Childrens Services,7273.00,Grant Payments,2122P01_CR00095,137880
Sandwell Metropolitan Borough Council,http://www.sandwell.gov.uk/info/200202/performance_and_spending/1079/payments_over_500,01-Apr-2021,Childrens Services,LEARNING PLUS UK DATA LTD,Childrens Services,8585.21,ICT ,2122P01_CR00096,111234
Sandwell Metropolitan Borough Council,http://www.sandwell.gov.uk/info/200202/performance_and_spending/1079/payments_over_500,14-Apr-2021,Childrens Services,JUNIPER TRAINING LTD,Childrens Services,10515.00,Externally Purchased Professional Services ,2122P01_CR00097,84880
Sandwell Metropolitan Borough Council,http://www.sandwell.gov.uk/info/200202/performance_and_spending/1079/payments_over_500,01-Apr-2021,Childrens Services,CAPITA BUSINESS SERVICES LTD,Childrens Services,10530.00,Externally Purchased Professional Services ,2122P01_CR00098,01577171
Sandwell Metropolitan Borough Council,http://www.sandwell.gov.uk/info/200202/performance_and_spending/1079/payments_over_500,12-Apr-2021,Childrens Services,NATIONAL CONSORTIUM FOR EXAMINATION RESULTS CIC,Childrens Services,13047.58,ICT ,2122P01_CR00099,107509
Sandwell Metropolitan Borough Council,http://www.sandwell.gov.uk/info/200202/performance_and_spending/1079/payments_over_500,01-Apr-2021,Childrens Services,TELFORD & WREKIN COUNCIL,Childrens Services,18791.27,Business Rates,2122P01_CR00100,01586981
Sandwell Metropolitan Borough Council,http://www.sandwell.gov.uk/info/200202/performance_and_spending/1079/payments_over_500,19-Apr-2021,Childrens Services,YELLOW CARS,Childrens Services,20919.25,Public Transport,2122P01_CR00101,116819
Sandwell Metropolitan Borough Council,http://www.sandwell.gov.uk/info/200202/performance_and_spending/1079/payments_over_500,19-Apr-2021,Childrens Services,JPC TRAVEL SOLUTION,Childrens Services,44796.77,Public Transport,2122P01_CR00102,138533
Sandwell Metropolitan Borough Council,http://www.sandwell.gov.uk/info/200202/performance_and_spending/1079/payments_over_500,11-Apr-2021,Childrens Services,SERVELEC EDUCATION LIMITED,Childrens Services,60268.58,ICT ,2122P01_CR00103,136561
Sandwell Metropolitan Borough Council,http://www.sandwell.gov.uk/info/200202/performance_and_spending/1079/payments_over_500,12-Apr-2021,Childrens Services,FIVE STAR TAXIS (DUDLEY) LTD,Childrens Services,78994.29,Public Transport,2122P01_CR00104,133542
Sandwell Metropolitan Borough Council,http://www.sandwell.gov.uk/info/200202/performance_and_spending/1079/payments_over_500,11-Apr-2021,Childrens Services,REDACTED PERSONAL DATA,Childrens Services,545.45,External Contract Hire,2122P01_CR00105,REDACTED PERSONAL DATA
Sandwell Metropolitan Borough Council,http://www.sandwell.gov.uk/info/200202/performance_and_spending/1079/payments_over_500,11-Apr-2021,Childrens Services,REDACTED PERSONAL DATA,Childrens Services,727.27,External Contract Hire,2122P01_CR00106,REDACTED PERSONAL DATA
Sandwell Metropolitan Borough Council,http://www.sandwell.gov.uk/info/200202/performance_and_spending/1079/payments_over_500,11-Apr-2021,Childrens Services,REDACTED PERSONAL DATA,Childrens Services,727.27,External Contract Hire,2122P01_CR00107,REDACTED PERSONAL DATA
Sandwell Metropolitan Borough Council,http://www.sandwell.gov.uk/info/200202/performance_and_spending/1079/payments_over_500,11-Apr-2021,Childrens Services,REDACTED PERSONAL DATA,Childrens Services,727.27,External Contract Hire,2122P01_CR00108,REDACTED PERSONAL DATA
Sandwell Metropolitan Borough Council,http://www.sandwell.gov.uk/info/200202/performance_and_spending/1079/payments_over_500,11-Apr-2021,Childrens Services,REDACTED PERSONAL DATA,Childrens Services,545.45,External Contract Hire,2122P01_CR00109,REDACTED PERSONAL DATA
Sandwell Metropolitan Borough Council,http://www.sandwell.gov.uk/info/200202/performance_and_spending/1079/payments_over_500,11-Apr-2021,Childrens Services,REDACTED PERSONAL DATA,Childrens Services,545.45,External Contract Hire,2122P01_CR00110,REDACTED PERSONAL DATA
Sandwell Metropolitan Borough Council,http://www.sandwell.gov.uk/info/200202/performance_and_spending/1079/payments_over_500,11-Apr-2021,Childrens Services,REDACTED PERSONAL DATA,Childrens Services,545.45,External Contract Hire,2122P01_CR00111,REDACTED PERSONAL DATA
Sandwell Metropolitan Borough Council,http://www.sandwell.gov.uk/info/200202/performance_and_spending/1079/payments_over_500,11-Apr-2021,Childrens Services,REDACTED PERSONAL DATA,Childrens Services,727.27,External Contract Hire,2122P01_CR00112,REDACTED PERSONAL DATA
Sandwell Metropolitan Borough Council,http://www.sandwell.gov.uk/info/200202/performance_and_spending/1079/payments_over_500,11-Apr-2021,Childrens Services,REDACTED PERSONAL DATA,Childrens Services,727.27,External Contract Hire,2122P01_CR00113,REDACTED PERSONAL DATA
Sandwell Metropolitan Borough Council,http://www.sandwell.gov.uk/info/200202/performance_and_spending/1079/payments_over_500,11-Apr-2021,Childrens Services,REDACTED PERSONAL DATA,Childrens Services,727.28,External Contract Hire,2122P01_CR00114,REDACTED PERSONAL DATA
Sandwell Metropolitan Borough Council,http://www.sandwell.gov.uk/info/200202/performance_and_spending/1079/payments_over_500,11-Apr-2021,Childrens Services,REDACTED PERSONAL DATA,Childrens Services,727.28,External Contract Hire,2122P01_CR00115,REDACTED PERSONAL DATA
Sandwell Metropolitan Borough Council,http://www.sandwell.gov.uk/info/200202/performance_and_spending/1079/payments_over_500,11-Apr-2021,Childrens Services,REDACTED PERSONAL DATA,Childrens Services,545.45,External Contract Hire,2122P01_CR00116,REDACTED PERSONAL DATA
Sandwell Metropolitan Borough Council,http://www.sandwell.gov.uk/info/200202/performance_and_spending/1079/payments_over_500,11-Apr-2021,Childrens Services,REDACTED PERSONAL DATA,Childrens Services,545.45,External Contract Hire,2122P01_CR00117,REDACTED PERSONAL DATA
Sandwell Metropolitan Borough Council,http://www.sandwell.gov.uk/info/200202/performance_and_spending/1079/payments_over_500,11-Apr-2021,Childrens Services,REDACTED PERSONAL DATA,Childrens Services,545.45,External Contract Hire,2122P01_CR00118,REDACTED PERSONAL DATA
Sandwell Metropolitan Borough Council,http://www.sandwell.gov.uk/info/200202/performance_and_spending/1079/payments_over_500,11-Apr-2021,Childrens Services,REDACTED PERSONAL DATA,Childrens Services,727.27,External Contract Hire,2122P01_CR00119,REDACTED PERSONAL DATA
Sandwell Metropolitan Borough Council,http://www.sandwell.gov.uk/info/200202/performance_and_spending/1079/payments_over_500,11-Apr-2021,Childrens Services,REDACTED PERSONAL DATA,Childrens Services,727.27,External Contract Hire,2122P01_CR00120,REDACTED PERSONAL DATA
Sandwell Metropolitan Borough Council,http://www.sandwell.gov.uk/info/200202/performance_and_spending/1079/payments_over_500,11-Apr-2021,Childrens Services,REDACTED PERSONAL DATA,Childrens Services,727.27,External Contract Hire,2122P01_CR00121,REDACTED PERSONAL DATA
Sandwell Metropolitan Borough Council,http://www.sandwell.gov.uk/info/200202/performance_and_spending/1079/payments_over_500,11-Apr-2021,Childrens Services,REDACTED PERSONAL DATA,Childrens Services,545.45,External Contract Hire,2122P01_CR00122,REDACTED PERSONAL DATA
Sandwell Metropolitan Borough Council,http://www.sandwell.gov.uk/info/200202/performance_and_spending/1079/payments_over_500,11-Apr-2021,Childrens Services,REDACTED PERSONAL DATA,Childrens Services,545.45,External Contract Hire,2122P01_CR00123,REDACTED PERSONAL DATA
Sandwell Metropolitan Borough Council,http://www.sandwell.gov.uk/info/200202/performance_and_spending/1079/payments_over_500,11-Apr-2021,Childrens Services,REDACTED PERSONAL DATA,Childrens Services,545.45,External Contract Hire,2122P01_CR00124,REDACTED PERSONAL DATA
Sandwell Metropolitan Borough Council,http://www.sandwell.gov.uk/info/200202/performance_and_spending/1079/payments_over_500,11-Apr-2021,Childrens Services,REDACTED PERSONAL DATA,Childrens Services,545.45,External Contract Hire,2122P01_CR00125,REDACTED PERSONAL DATA
Sandwell Metropolitan Borough Council,http://www.sandwell.gov.uk/info/200202/performance_and_spending/1079/payments_over_500,11-Apr-2021,Childrens Services,REDACTED PERSONAL DATA,Childrens Services,545.45,External Contract Hire,2122P01_CR00126,REDACTED PERSONAL DATA
Sandwell Metropolitan Borough Council,http://www.sandwell.gov.uk/info/200202/performance_and_spending/1079/payments_over_500,11-Apr-2021,Childrens Services,REDACTED PERSONAL DATA,Childrens Services,545.45,External Contract Hire,2122P01_CR00127,REDACTED PERSONAL DATA
Sandwell Metropolitan Borough Council,http://www.sandwell.gov.uk/info/200202/performance_and_spending/1079/payments_over_500,11-Apr-2021,Childrens Services,REDACTED PERSONAL DATA,Childrens Services,545.45,External Contract Hire,2122P01_CR00128,REDACTED PERSONAL DATA
Sandwell Metropolitan Borough Council,http://www.sandwell.gov.uk/info/200202/performance_and_spending/1079/payments_over_500,11-Apr-2021,Childrens Services,REDACTED PERSONAL DATA,Childrens Services,545.45,External Contract Hire,2122P01_CR00129,REDACTED PERSONAL DATA
Sandwell Metropolitan Borough Council,http://www.sandwell.gov.uk/info/200202/performance_and_spending/1079/payments_over_500,11-Apr-2021,Childrens Services,REDACTED PERSONAL DATA,Childrens Services,545.45,External Contract Hire,2122P01_CR00130,REDACTED PERSONAL DATA
Sandwell Metropolitan Borough Council,http://www.sandwell.gov.uk/info/200202/performance_and_spending/1079/payments_over_500,11-Apr-2021,Childrens Services,REDACTED PERSONAL DATA,Childrens Services,545.45,External Contract Hire,2122P01_CR00131,REDACTED PERSONAL DATA
Sandwell Metropolitan Borough Council,http://www.sandwell.gov.uk/info/200202/performance_and_spending/1079/payments_over_500,11-Apr-2021,Childrens Services,REDACTED PERSONAL DATA,Childrens Services,545.45,External Contract Hire,2122P01_CR00132,REDACTED PERSONAL DATA
Sandwell Metropolitan Borough Council,http://www.sandwell.gov.uk/info/200202/performance_and_spending/1079/payments_over_500,11-Apr-2021,Childrens Services,REDACTED PERSONAL DATA,Childrens Services,545.45,External Contract Hire,2122P01_CR00133,REDACTED PERSONAL DATA
Sandwell Metropolitan Borough Council,http://www.sandwell.gov.uk/info/200202/performance_and_spending/1079/payments_over_500,11-Apr-2021,Childrens Services,REDACTED PERSONAL DATA,Childrens Services,545.45,External Contract Hire,2122P01_CR00134,REDACTED PERSONAL DATA
Sandwell Metropolitan Borough Council,http://www.sandwell.gov.uk/info/200202/performance_and_spending/1079/payments_over_500,11-Apr-2021,Childrens Services,REDACTED PERSONAL DATA,Childrens Services,727.27,External Contract Hire,2122P01_CR00135,REDACTED PERSONAL DATA
Sandwell Metropolitan Borough Council,http://www.sandwell.gov.uk/info/200202/performance_and_spending/1079/payments_over_500,11-Apr-2021,Childrens Services,REDACTED PERSONAL DATA,Childrens Services,727.27,External Contract Hire,2122P01_CR00136,REDACTED PERSONAL DATA
Sandwell Metropolitan Borough Council,http://www.sandwell.gov.uk/info/200202/performance_and_spending/1079/payments_over_500,11-Apr-2021,Childrens Services,REDACTED PERSONAL DATA,Childrens Services,727.27,External Contract Hire,2122P01_CR00137,REDACTED PERSONAL DATA
Sandwell Metropolitan Borough Council,http://www.sandwell.gov.uk/info/200202/performance_and_spending/1079/payments_over_500,11-Apr-2021,Childrens Services,REDACTED PERSONAL DATA,Childrens Services,727.27,External Contract Hire,2122P01_CR00138,REDACTED PERSONAL DATA
Sandwell Metropolitan Borough Council,http://www.sandwell.gov.uk/info/200202/performance_and_spending/1079/payments_over_500,11-Apr-2021,Childrens Services,REDACTED PERSONAL DATA,Childrens Services,727.27,External Contract Hire,2122P01_CR00139,REDACTED PERSONAL DATA
Sandwell Metropolitan Borough Council,http://www.sandwell.gov.uk/info/200202/performance_and_spending/1079/payments_over_500,11-Apr-2021,Childrens Services,REDACTED PERSONAL DATA,Childrens Services,727.27,External Contract Hire,2122P01_CR00140,REDACTED PERSONAL DATA
Sandwell Metropolitan Borough Council,http://www.sandwell.gov.uk/info/200202/performance_and_spending/1079/payments_over_500,11-Apr-2021,Childrens Services,REDACTED PERSONAL DATA,Childrens Services,727.27,External Contract Hire,2122P01_CR00141,REDACTED PERSONAL DATA
Sandwell Metropolitan Borough Council,http://www.sandwell.gov.uk/info/200202/performance_and_spending/1079/payments_over_500,11-Apr-2021,Childrens Services,REDACTED PERSONAL DATA,Childrens Services,727.27,External Contract Hire,2122P01_CR00142,REDACTED PERSONAL DATA
Sandwell Metropolitan Borough Council,http://www.sandwell.gov.uk/info/200202/performance_and_spending/1079/payments_over_500,11-Apr-2021,Childrens Services,REDACTED PERSONAL DATA,Childrens Services,727.27,External Contract Hire,2122P01_CR00143,REDACTED PERSONAL DATA
Sandwell Metropolitan Borough Council,http://www.sandwell.gov.uk/info/200202/performance_and_spending/1079/payments_over_500,11-Apr-2021,Childrens Services,REDACTED PERSONAL DATA,Childrens Services,727.28,External Contract Hire,2122P01_CR00144,REDACTED PERSONAL DATA
Sandwell Metropolitan Borough Council,http://www.sandwell.gov.uk/info/200202/performance_and_spending/1079/payments_over_500,11-Apr-2021,Childrens Services,REDACTED PERSONAL DATA,Childrens Services,727.28,External Contract Hire,2122P01_CR00145,REDACTED PERSONAL DATA
Sandwell Metropolitan Borough Council,http://www.sandwell.gov.uk/info/200202/performance_and_spending/1079/payments_over_500,11-Apr-2021,Childrens Services,REDACTED PERSONAL DATA,Childrens Services,800.00,External Contract Hire,2122P01_CR00146,REDACTED PERSONAL DATA
Sandwell Metropolitan Borough Council,http://www.sandwell.gov.uk/info/200202/performance_and_spending/1079/payments_over_500,11-Apr-2021,Childrens Services,REDACTED PERSONAL DATA,Childrens Services,909.09,External Contract Hire,2122P01_CR00147,REDACTED PERSONAL DATA
Sandwell Metropolitan Borough Council,http://www.sandwell.gov.uk/info/200202/performance_and_spending/1079/payments_over_500,11-Apr-2021,Childrens Services,REDACTED PERSONAL DATA,Childrens Services,1090.90,External Contract Hire,2122P01_CR00148,REDACTED PERSONAL DATA
Sandwell Metropolitan Borough Council,http://www.sandwell.gov.uk/info/200202/performance_and_spending/1079/payments_over_500,09-Apr-2021,Childrens Services,THE BRANCH,Childrens Services,23316.00,Grant Payments,2122P01_CR00149,08588514
Sandwell Metropolitan Borough Council,http://www.sandwell.gov.uk/info/200202/performance_and_spending/1079/payments_over_500,06-Apr-2021,Childrens Services,LIGHTWOODS AFTERWOODS CLUB,Childrens Services,720.00,Grant Payments,2122P01_CR00150,70880
Sandwell Metropolitan Borough Council,http://www.sandwell.gov.uk/info/200202/performance_and_spending/1079/payments_over_500,09-Apr-2021,Childrens Services,SANDWELL WOMENS AID,Childrens Services,13750.00,Grant Payments,2122P01_CR00151,01626705
Sandwell Metropolitan Borough Council,http://www.sandwell.gov.uk/info/200202/performance_and_spending/1079/payments_over_500,09-Apr-2021,Childrens Services,IDEAL FOR ALL LIMITED,Childrens Services,14046.00,Grant Payments,2122P01_CR00152,01678484
Sandwell Metropolitan Borough Council,http://www.sandwell.gov.uk/info/200202/performance_and_spending/1079/payments_over_500,09-Apr-2021,Childrens Services,SADWICA DAY NURSERY,Childrens Services,22612.50,Grant Payments,2122P01_CR00153,01667892
Sandwell Metropolitan Borough Council,http://www.sandwell.gov.uk/info/200202/performance_and_spending/1079/payments_over_500,09-Apr-2021,Childrens Services,LION FARM ACTION CENTRE (SANDWELL) LTD,Childrens Services,35700.50,Grant Payments,2122P01_CR00154,21023409
Sandwell Metropolitan Borough Council,http://www.sandwell.gov.uk/info/200202/performance_and_spending/1079/payments_over_500,09-Apr-2021,Childrens Services,MURRAY HALL COMMUNITY TRUST,Childrens Services,42821.00,Grant Payments,2122P01_CR00155,01627284
Sandwell Metropolitan Borough Council,http://www.sandwell.gov.uk/info/200202/performance_and_spending/1079/payments_over_500,09-Apr-2021,Childrens Services,SKILLS WORK AND ENTERPRISE DEVELOPMENT AGENCY LTD,Childrens Services,50633.50,Grant Payments,2122P01_CR00156,5092
Sandwell Metropolitan Borough Council,http://www.sandwell.gov.uk/info/200202/performance_and_spending/1079/payments_over_500,09-Apr-2021,Childrens Services,CREATIVE ACADEMIES LTD,Childrens Services,50864.50,Grant Payments,2122P01_CR00157,116825
Sandwell Metropolitan Borough Council,http://www.sandwell.gov.uk/info/200202/performance_and_spending/1079/payments_over_500,09-Apr-2021,Childrens Services,GROUNDWORK WEST MIDLANDS,Childrens Services,78606.00,Grant Payments,2122P01_CR00158,92743
Sandwell Metropolitan Borough Council,http://www.sandwell.gov.uk/info/200202/performance_and_spending/1079/payments_over_500,01-Apr-2021,Childrens Services Capital,JOHN KNIGHT INTERIORS T/A FORWARD PRODUCTS,Childrens Services Capital,3051.15,"CIP - New Construction,Conversion, Enhancement & Reno",2122P01_CR00159,147728
Sandwell Metropolitan Borough Council,http://www.sandwell.gov.uk/info/200202/performance_and_spending/1079/payments_over_500,01-Apr-2021,Childrens Services Capital,WILLMOTT DIXON CONSTRUCTION LIMITED,Childrens Services Capital,585003.06,"CIP - New Construction,Conversion, Enhancement & Reno",2122P01_CR00160,34081
Sandwell Metropolitan Borough Council,http://www.sandwell.gov.uk/info/200202/performance_and_spending/1079/payments_over_500,01-Apr-2021,Childrens Services Capital,WILLMOTT DIXON CONSTRUCTION LIMITED,Childrens Services Capital,864263.36,"CIP - New Construction,Conversion, Enhancement & Reno",2122P01_CR00161,34081
Sandwell Metropolitan Borough Council,http://www.sandwell.gov.uk/info/200202/performance_and_spending/1079/payments_over_500,15-Apr-2021,Childrens Services Capital,M & H SURVEY SERVICES LIMITED,Childrens Services Capital,1350.00,Consultancy,2122P01_CR00162,114657
Sandwell Metropolitan Borough Council,http://www.sandwell.gov.uk/info/200202/performance_and_spending/1079/payments_over_500,21-Apr-2021,Childrens Services Capital,VIETEC LTD,Childrens Services Capital,7962.25,"CIP - New Construction,Conversion, Enhancement & Reno",2122P01_CR00163,9699
Sandwell Metropolitan Borough Council,http://www.sandwell.gov.uk/info/200202/performance_and_spending/1079/payments_over_500,01-Apr-2021,Childrens Services Capital,NICHOLLS COLTON & PARTNERS LTD,Childrens Services Capital,8603.00,"CIP - New Construction,Conversion, Enhancement & Reno",2122P01_CR00164,3215
Sandwell Metropolitan Borough Council,http://www.sandwell.gov.uk/info/200202/performance_and_spending/1079/payments_over_500,08-Apr-2021,Housing & Communities,NICOL TRANSMISSIONS UK LTD,Neighbourhoods,540.00,Fire Service Workshops,2122P01_CR00165,15941
Sandwell Metropolitan Borough Council,http://www.sandwell.gov.uk/info/200202/performance_and_spending/1079/payments_over_500,13-Apr-2021,Housing & Communities,TERBERG MATEC UK LTD,Neighbourhoods,760.04,Fire Service Workshops,2122P01_CR00166,21235
Sandwell Metropolitan Borough Council,http://www.sandwell.gov.uk/info/200202/performance_and_spending/1079/payments_over_500,06-Apr-2021,Housing & Communities,TERBERG MATEC UK LTD,Neighbourhoods,1648.93,Fire Service Workshops,2122P01_CR00167,21235
Sandwell Metropolitan Borough Council,http://www.sandwell.gov.uk/info/200202/performance_and_spending/1079/payments_over_500,01-Apr-2021,Housing & Communities,TERBERG MATEC UK LTD,Neighbourhoods,1813.15,Fire Service Workshops,2122P01_CR00168,21235
Sandwell Metropolitan Borough Council,http://www.sandwell.gov.uk/info/200202/performance_and_spending/1079/payments_over_500,08-Apr-2021,Housing & Communities,TERBERG MATEC UK LTD,Neighbourhoods,2624.73,Fire Service Workshops,2122P01_CR00169,21235
Sandwell Metropolitan Borough Council,http://www.sandwell.gov.uk/info/200202/performance_and_spending/1079/payments_over_500,16-Apr-2021,Housing & Communities,DENNIS EAGLE LTD,Neighbourhoods,501.23,Fire Service Workshops,2122P01_CR00170,01004865
Sandwell Metropolitan Borough Council,http://www.sandwell.gov.uk/info/200202/performance_and_spending/1079/payments_over_500,01-Apr-2021,Housing & Communities,NORTHGATE VEHICLE HIRE (WEST MIDLANDS) LTD,Neighbourhoods,531.03,Vehicle Hiring Charges,2122P01_CR00171,01057676
Sandwell Metropolitan Borough Council,http://www.sandwell.gov.uk/info/200202/performance_and_spending/1079/payments_over_500,21-Apr-2021,Housing & Communities,JAMES LISTER & SONS LTD,Neighbourhoods,553.80,Fire Service Workshops,2122P01_CR00172,01021821
Sandwell Metropolitan Borough Council,http://www.sandwell.gov.uk/info/200202/performance_and_spending/1079/payments_over_500,17-Apr-2021,Housing & Communities,JAMES LISTER & SONS LTD,Neighbourhoods,581.70,Fire Service Workshops,2122P01_CR00173,01021821
Sandwell Metropolitan Borough Council,http://www.sandwell.gov.uk/info/200202/performance_and_spending/1079/payments_over_500,15-Apr-2021,Housing & Communities,PARTSPLUS,Neighbourhoods,583.08,Fire Service Workshops,2122P01_CR00174,01087922
Sandwell Metropolitan Borough Council,http://www.sandwell.gov.uk/info/200202/performance_and_spending/1079/payments_over_500,08-Apr-2021,Housing & Communities,DENNIS EAGLE LTD,Neighbourhoods,589.93,Fire Service Workshops,2122P01_CR00175,01004865
Sandwell Metropolitan Borough Council,http://www.sandwell.gov.uk/info/200202/performance_and_spending/1079/payments_over_500,06-Apr-2021,Housing & Communities,BUCHER MUNICIPAL LTD,Neighbourhoods,606.58,Fire Service Workshops,2122P01_CR00176,01053625
Sandwell Metropolitan Borough Council,http://www.sandwell.gov.uk/info/200202/performance_and_spending/1079/payments_over_500,06-Apr-2021,Housing & Communities,H L SMITH (TRANSMISSIONS) LTD,Neighbourhoods,625.00,Fire Service Workshops,2122P01_CR00177,01032886
Sandwell Metropolitan Borough Council,http://www.sandwell.gov.uk/info/200202/performance_and_spending/1079/payments_over_500,12-Apr-2021,Housing & Communities,TH WHITE LIMITED,Neighbourhoods,631.55,Repairs & Maintenance,2122P01_CR00178,01774713
Sandwell Metropolitan Borough Council,http://www.sandwell.gov.uk/info/200202/performance_and_spending/1079/payments_over_500,27-Apr-2021,Housing & Communities,BUCHER MUNICIPAL LTD,Neighbourhoods,646.92,Fire Service Workshops,2122P01_CR00179,01053625
Sandwell Metropolitan Borough Council,http://www.sandwell.gov.uk/info/200202/performance_and_spending/1079/payments_over_500,06-Apr-2021,Housing & Communities,TEL SERVICES,Neighbourhoods,693.94,Equipment & Furniture ,2122P01_CR00180,84262
Sandwell Metropolitan Borough Council,http://www.sandwell.gov.uk/info/200202/performance_and_spending/1079/payments_over_500,07-Apr-2021,Housing & Communities,BUCHER MUNICIPAL LTD,Neighbourhoods,805.98,Fire Service Workshops,2122P01_CR00181,01053625
Sandwell Metropolitan Borough Council,http://www.sandwell.gov.uk/info/200202/performance_and_spending/1079/payments_over_500,07-Apr-2021,Housing & Communities,DENNIS EAGLE LTD,Neighbourhoods,821.10,Fire Service Workshops,2122P01_CR00182,01004865
Sandwell Metropolitan Borough Council,http://www.sandwell.gov.uk/info/200202/performance_and_spending/1079/payments_over_500,21-Apr-2021,Housing & Communities,JAMES LISTER & SONS LTD,Neighbourhoods,821.13,Fire Service Workshops,2122P01_CR00183,01021821
Sandwell Metropolitan Borough Council,http://www.sandwell.gov.uk/info/200202/performance_and_spending/1079/payments_over_500,27-Apr-2021,Housing & Communities,DENNIS EAGLE LTD,Neighbourhoods,851.64,Fire Service Workshops,2122P01_CR00184,01004865
Sandwell Metropolitan Borough Council,http://www.sandwell.gov.uk/info/200202/performance_and_spending/1079/payments_over_500,24-Apr-2021,Housing & Communities,DENNIS EAGLE LTD,Neighbourhoods,879.70,Fire Service Workshops,2122P01_CR00185,01004865
Sandwell Metropolitan Borough Council,http://www.sandwell.gov.uk/info/200202/performance_and_spending/1079/payments_over_500,21-Apr-2021,Housing & Communities,JAMES LISTER & SONS LTD,Neighbourhoods,897.49,Fire Service Workshops,2122P01_CR00186,01021821
Sandwell Metropolitan Borough Council,http://www.sandwell.gov.uk/info/200202/performance_and_spending/1079/payments_over_500,01-Apr-2021,Housing & Communities,SIMON TULLETT MACHINERY COMPANY LIMITED,Neighbourhoods,920.35,Repairs & Maintenance,2122P01_CR00187,109117
Sandwell Metropolitan Borough Council,http://www.sandwell.gov.uk/info/200202/performance_and_spending/1079/payments_over_500,19-Apr-2021,Housing & Communities,DENNIS EAGLE LTD,Neighbourhoods,967.95,Fire Service Workshops,2122P01_CR00188,01004865
Sandwell Metropolitan Borough Council,http://www.sandwell.gov.uk/info/200202/performance_and_spending/1079/payments_over_500,22-Apr-2021,Housing & Communities,BUCHER MUNICIPAL LTD,Neighbourhoods,979.20,Fire Service Workshops,2122P01_CR00189,01053625
Sandwell Metropolitan Borough Council,http://www.sandwell.gov.uk/info/200202/performance_and_spending/1079/payments_over_500,24-Apr-2021,Housing & Communities,DENNIS EAGLE LTD,Neighbourhoods,1033.81,Fire Service Workshops,2122P01_CR00190,01004865
Sandwell Metropolitan Borough Council,http://www.sandwell.gov.uk/info/200202/performance_and_spending/1079/payments_over_500,01-Apr-2021,Housing & Communities,COOPER MOBILE SERVICES LTD,Neighbourhoods,1042.58,Fire Service Workshops,2122P01_CR00191,01304378
Sandwell Metropolitan Borough Council,http://www.sandwell.gov.uk/info/200202/performance_and_spending/1079/payments_over_500,27-Apr-2021,Housing & Communities,DENNIS EAGLE LTD,Neighbourhoods,1097.16,Fire Service Workshops,2122P01_CR00192,01004865
Sandwell Metropolitan Borough Council,http://www.sandwell.gov.uk/info/200202/performance_and_spending/1079/payments_over_500,01-Apr-2021,Housing & Communities,FREIGHT TRANSPORT ASSOCIATION,Neighbourhoods,1168.00,Subscriptions,2122P01_CR00193,10335
Sandwell Metropolitan Borough Council,http://www.sandwell.gov.uk/info/200202/performance_and_spending/1079/payments_over_500,01-Apr-2021,Housing & Communities,BUCHER MUNICIPAL LTD,Neighbourhoods,1218.41,Fire Service Workshops,2122P01_CR00194,01053625
Sandwell Metropolitan Borough Council,http://www.sandwell.gov.uk/info/200202/performance_and_spending/1079/payments_over_500,21-Apr-2021,Housing & Communities,JAMES LISTER & SONS LTD,Neighbourhoods,1302.84,Fire Service Workshops,2122P01_CR00195,01021821
Sandwell Metropolitan Borough Council,http://www.sandwell.gov.uk/info/200202/performance_and_spending/1079/payments_over_500,01-Apr-2021,Housing & Communities,SCARAB SWEEPERS LTD,Neighbourhoods,1347.50,Fire Service Workshops,2122P01_CR00196,01710482
Sandwell Metropolitan Borough Council,http://www.sandwell.gov.uk/info/200202/performance_and_spending/1079/payments_over_500,21-Apr-2021,Housing & Communities,CARWOOD MOTOR UNITS LTD                                          01,Neighbourhoods,1350.00,Fire Service Workshops,2122P01_CR00197,01723816
Sandwell Metropolitan Borough Council,http://www.sandwell.gov.uk/info/200202/performance_and_spending/1079/payments_over_500,01-Apr-2021,Housing & Communities,MURLEY AGRICULTURAL SUPPLIES LTD,Neighbourhoods,1711.42,Fire Service Workshops,2122P01_CR00198,21076
Sandwell Metropolitan Borough Council,http://www.sandwell.gov.uk/info/200202/performance_and_spending/1079/payments_over_500,22-Apr-2021,Housing & Communities,DENNIS EAGLE LTD,Neighbourhoods,1938.38,Fire Service Workshops,2122P01_CR00199,01004865
Sandwell Metropolitan Borough Council,http://www.sandwell.gov.uk/info/200202/performance_and_spending/1079/payments_over_500,25-Apr-2021,Housing & Communities,BUCHER MUNICIPAL LTD,Neighbourhoods,2644.14,Fire Service Workshops,2122P01_CR00200,01053625
Sandwell Metropolitan Borough Council,http://www.sandwell.gov.uk/info/200202/performance_and_spending/1079/payments_over_500,16-Apr-2021,Housing & Communities,HARTSHORNE MOTOR SERVICES LTD                                   01,Neighbourhoods,3472.96,Fire Service Workshops,2122P01_CR00201,01508668
Sandwell Metropolitan Borough Council,http://www.sandwell.gov.uk/info/200202/performance_and_spending/1079/payments_over_500,01-Apr-2021,Housing & Communities,WEST WAY BIRMINGHAM,Housing & Communities Capital,19880.00,"CIP - Vehicles, Plant & Machinery",2122P01_CR00202,90607
Sandwell Metropolitan Borough Council,http://www.sandwell.gov.uk/info/200202/performance_and_spending/1079/payments_over_500,01-Apr-2021,Housing & Communities,WEST WAY BIRMINGHAM,Housing & Communities Capital,19880.00,"CIP - Vehicles, Plant & Machinery",2122P01_CR00203,90607
Sandwell Metropolitan Borough Council,http://www.sandwell.gov.uk/info/200202/performance_and_spending/1079/payments_over_500,01-Apr-2021,Housing & Communities,WEST WAY BIRMINGHAM,Housing & Communities Capital,19880.00,"CIP - Vehicles, Plant & Machinery",2122P01_CR00204,90607
Sandwell Metropolitan Borough Council,http://www.sandwell.gov.uk/info/200202/performance_and_spending/1079/payments_over_500,01-Apr-2021,Housing & Communities,WEST WAY BIRMINGHAM,Housing & Communities Capital,19880.00,"CIP - Vehicles, Plant & Machinery",2122P01_CR00205,90607
Sandwell Metropolitan Borough Council,http://www.sandwell.gov.uk/info/200202/performance_and_spending/1079/payments_over_500,01-Apr-2021,Housing & Communities,WEST WAY BIRMINGHAM,Housing & Communities Capital,19880.00,"CIP - Vehicles, Plant & Machinery",2122P01_CR00206,90607
Sandwell Metropolitan Borough Council,http://www.sandwell.gov.uk/info/200202/performance_and_spending/1079/payments_over_500,01-Apr-2021,Housing & Communities,WEST WAY BIRMINGHAM,Housing & Communities Capital,19880.00,"CIP - Vehicles, Plant & Machinery",2122P01_CR00207,90607
Sandwell Metropolitan Borough Council,http://www.sandwell.gov.uk/info/200202/performance_and_spending/1079/payments_over_500,01-Apr-2021,Housing & Communities,ENTERPRISE FLEX-E-RENT,Neighbourhoods,506.57,Vehicle Hiring Charges,2122P01_CR00208,142092
Sandwell Metropolitan Borough Council,http://www.sandwell.gov.uk/info/200202/performance_and_spending/1079/payments_over_500,01-Apr-2021,Housing & Communities,TRUCK & TRAILER EQUIPMENT LIMITED,Neighbourhoods,540.00,Fire Service Workshops,2122P01_CR00209,126296
Sandwell Metropolitan Borough Council,http://www.sandwell.gov.uk/info/200202/performance_and_spending/1079/payments_over_500,01-Apr-2021,Housing & Communities,GEESINK NORBA LTD,Neighbourhoods,582.61,Fire Service Workshops,2122P01_CR00210,102799
Sandwell Metropolitan Borough Council,http://www.sandwell.gov.uk/info/200202/performance_and_spending/1079/payments_over_500,01-Apr-2021,Housing & Communities,ENTERPRISE FLEX-E-RENT,Neighbourhoods,595.71,Vehicle Hiring Charges,2122P01_CR00211,142092
Sandwell Metropolitan Borough Council,http://www.sandwell.gov.uk/info/200202/performance_and_spending/1079/payments_over_500,15-Apr-2021,Housing & Communities,GREENMAN SPECIALIST VEHICLE SERVICES LTD.,Neighbourhoods,610.00,Fire Service Workshops,2122P01_CR00212,133345
Sandwell Metropolitan Borough Council,http://www.sandwell.gov.uk/info/200202/performance_and_spending/1079/payments_over_500,05-Apr-2021,Housing & Communities,HADLEYS STEAM CLEANING LTD,Neighbourhoods,618.00,Repairs & Maintenance,2122P01_CR00213,132536
Sandwell Metropolitan Borough Council,http://www.sandwell.gov.uk/info/200202/performance_and_spending/1079/payments_over_500,22-Apr-2021,Housing & Communities,FUCHS LUBRICANTS (UK) LTD,Neighbourhoods,660.00,Fire Service Workshops,2122P01_CR00214,130133
Sandwell Metropolitan Borough Council,http://www.sandwell.gov.uk/info/200202/performance_and_spending/1079/payments_over_500,28-Apr-2021,Housing & Communities,MACKWORTH VEHICLE CONVERSIONS,Neighbourhoods,675.00,Fire Service Workshops,2122P01_CR00215,124922
Sandwell Metropolitan Borough Council,http://www.sandwell.gov.uk/info/200202/performance_and_spending/1079/payments_over_500,28-Apr-2021,Housing & Communities,MACKWORTH VEHICLE CONVERSIONS,Neighbourhoods,675.00,Fire Service Workshops,2122P01_CR00216,124922
Sandwell Metropolitan Borough Council,http://www.sandwell.gov.uk/info/200202/performance_and_spending/1079/payments_over_500,28-Apr-2021,Housing & Communities,MACKWORTH VEHICLE CONVERSIONS,Neighbourhoods,675.00,Fire Service Workshops,2122P01_CR00217,124922
Sandwell Metropolitan Borough Council,http://www.sandwell.gov.uk/info/200202/performance_and_spending/1079/payments_over_500,28-Apr-2021,Housing & Communities,TRUCK & TRAILER EQUIPMENT LIMITED,Neighbourhoods,786.60,Fire Service Workshops,2122P01_CR00218,126296
Sandwell Metropolitan Borough Council,http://www.sandwell.gov.uk/info/200202/performance_and_spending/1079/payments_over_500,15-Apr-2021,Housing & Communities,ROBINS & DAY PARTS WEST MIDLANDS,Neighbourhoods,786.84,Fire Service Workshops,2122P01_CR00219,118812
Sandwell Metropolitan Borough Council,http://www.sandwell.gov.uk/info/200202/performance_and_spending/1079/payments_over_500,01-Apr-2021,Housing & Communities,REDACTED PERSONAL DATA,Neighbourhoods,862.20,Vehicle Hiring Charges,2122P01_CR00220,REDACTED PERSONAL DATA
Sandwell Metropolitan Borough Council,http://www.sandwell.gov.uk/info/200202/performance_and_spending/1079/payments_over_500,01-Apr-2021,Housing & Communities,GEESINK NORBA LTD,Neighbourhoods,904.26,Fire Service Workshops,2122P01_CR00221,102799
Sandwell Metropolitan Borough Council,http://www.sandwell.gov.uk/info/200202/performance_and_spending/1079/payments_over_500,28-Apr-2021,Housing & Communities,PHS BESAFE,Neighbourhoods,972.26,Laundry,2122P01_CR00222,124613
Sandwell Metropolitan Borough Council,http://www.sandwell.gov.uk/info/200202/performance_and_spending/1079/payments_over_500,11-Apr-2021,Housing & Communities,GEESINK NORBA LTD,Neighbourhoods,4258.00,Fire Service Workshops,2122P01_CR00223,102799
Sandwell Metropolitan Borough Council,http://www.sandwell.gov.uk/info/200202/performance_and_spending/1079/payments_over_500,01-Apr-2021,Housing & Communities,MIDLAND FORESTRY LIMITED,Neighbourhoods,522.00,Externally Purchased Professional Services ,2122P01_CR00224,45812
Sandwell Metropolitan Borough Council,http://www.sandwell.gov.uk/info/200202/performance_and_spending/1079/payments_over_500,01-Apr-2021,Housing & Communities,MIDLAND FORESTRY LIMITED,Neighbourhoods,560.00,Externally Purchased Professional Services ,2122P01_CR00225,45812
Sandwell Metropolitan Borough Council,http://www.sandwell.gov.uk/info/200202/performance_and_spending/1079/payments_over_500,01-Apr-2021,Housing & Communities,MIDLAND FORESTRY LIMITED,Neighbourhoods,780.00,Externally Purchased Professional Services ,2122P01_CR00226,45812
Sandwell Metropolitan Borough Council,http://www.sandwell.gov.uk/info/200202/performance_and_spending/1079/payments_over_500,01-Apr-2021,Housing & Communities,MIDLAND FORESTRY LIMITED,Neighbourhoods,783.00,Externally Purchased Professional Services ,2122P01_CR00227,45812
Sandwell Metropolitan Borough Council,http://www.sandwell.gov.uk/info/200202/performance_and_spending/1079/payments_over_500,01-Apr-2021,Housing & Communities,MIDLAND FORESTRY LIMITED,Neighbourhoods,783.00,Externally Purchased Professional Services ,2122P01_CR00228,45812
Sandwell Metropolitan Borough Council,http://www.sandwell.gov.uk/info/200202/performance_and_spending/1079/payments_over_500,01-Apr-2021,Housing & Communities,MIDLAND FORESTRY LIMITED,Neighbourhoods,933.00,Externally Purchased Professional Services ,2122P01_CR00229,45812
Sandwell Metropolitan Borough Council,http://www.sandwell.gov.uk/info/200202/performance_and_spending/1079/payments_over_500,01-Apr-2021,Housing & Communities,MIDLAND FORESTRY LIMITED,Neighbourhoods,1096.00,Externally Purchased Professional Services ,2122P01_CR00230,45812
Sandwell Metropolitan Borough Council,http://www.sandwell.gov.uk/info/200202/performance_and_spending/1079/payments_over_500,01-Apr-2021,Housing & Communities,MIDLAND FORESTRY LIMITED,Neighbourhoods,2200.00,Externally Purchased Professional Services ,2122P01_CR00231,45812
Sandwell Metropolitan Borough Council,http://www.sandwell.gov.uk/info/200202/performance_and_spending/1079/payments_over_500,01-Apr-2021,Housing & Communities,MIDLAND FORESTRY LIMITED,Neighbourhoods,2456.00,Externally Purchased Professional Services ,2122P01_CR00232,45812
Sandwell Metropolitan Borough Council,http://www.sandwell.gov.uk/info/200202/performance_and_spending/1079/payments_over_500,01-Apr-2021,Housing & Communities,REYNOLDS CONSERVATION LTD,Neighbourhoods,4850.00,Building Maintenance & Improvements,2122P01_CR00233,150214
Sandwell Metropolitan Borough Council,http://www.sandwell.gov.uk/info/200202/performance_and_spending/1079/payments_over_500,01-Apr-2021,Housing & Communities,MIDLAND FORESTRY LIMITED,Neighbourhoods,6280.00,Externally Purchased Professional Services ,2122P01_CR00234,45812
Sandwell Metropolitan Borough Council,http://www.sandwell.gov.uk/info/200202/performance_and_spending/1079/payments_over_500,13-Apr-2021,Housing & Communities,MIDLAND FORESTRY LIMITED,Neighbourhoods,12480.00,Externally Purchased Professional Services ,2122P01_CR00235,45812
Sandwell Metropolitan Borough Council,http://www.sandwell.gov.uk/info/200202/performance_and_spending/1079/payments_over_500,12-Apr-2021,Housing & Communities,INTERCLASS PLC,Housing & Communities Capital,150732.03,"CIP - New Construction,Conversion, Enhancement & Reno",2122P01_CR00236,77001959
Sandwell Metropolitan Borough Council,http://www.sandwell.gov.uk/info/200202/performance_and_spending/1079/payments_over_500,01-Apr-2021,Housing & Communities,WATES CONSTRUCTION LTD                                 01,Housing & Communities Capital,1056915.59,"CIP - New Construction,Conversion, Enhancement & Reno",2122P01_CR00237,77000882
Sandwell Metropolitan Borough Council,http://www.sandwell.gov.uk/info/200202/performance_and_spending/1079/payments_over_500,01-Apr-2021,Housing & Communities,WATES CONSTRUCTION LTD                                 01,Housing & Communities Capital,1963256.74,"CIP - New Construction,Conversion, Enhancement & Reno",2122P01_CR00238,77000882
Sandwell Metropolitan Borough Council,http://www.sandwell.gov.uk/info/200202/performance_and_spending/1079/payments_over_500,01-Apr-2021,Housing & Communities,SERCO LIMITED,Neighbourhoods,881.80,Externally Purchased Professional Services ,2122P01_CR00239,53771
Sandwell Metropolitan Borough Council,http://www.sandwell.gov.uk/info/200202/performance_and_spending/1079/payments_over_500,08-Apr-2021,Housing & Communities,Q TECHNICAL SERVICES UK LTD,Neighbourhoods,1015.00,Building Maintenance & Improvements,2122P01_CR00240,135645
Sandwell Metropolitan Borough Council,http://www.sandwell.gov.uk/info/200202/performance_and_spending/1079/payments_over_500,08-Apr-2021,Housing & Communities,"RYMACK SIGN SOLUTIONS LTD T/A PFI SIGN SOLUTIONS									",Neighbourhoods,1274.50,Civic Events,2122P01_CR00241,144885
Sandwell Metropolitan Borough Council,http://www.sandwell.gov.uk/info/200202/performance_and_spending/1079/payments_over_500,01-Apr-2021,Housing & Communities,SITEWATCH FIRE AND SURVEILLANCE LIMITED,Neighbourhoods,1500.00,Security,2122P01_CR00242,55288
Sandwell Metropolitan Borough Council,http://www.sandwell.gov.uk/info/200202/performance_and_spending/1079/payments_over_500,20-Apr-2021,Housing & Communities,HAYSTOUN CONSTRUCTION LTD,Neighbourhoods,1952.50,Operational Services ,2122P01_CR00243,11849
Sandwell Metropolitan Borough Council,http://www.sandwell.gov.uk/info/200202/performance_and_spending/1079/payments_over_500,01-Apr-2021,Housing & Communities,WHITTLE PROGRAMMED MAINTENANCE LIMITED,Neighbourhoods,4980.00,Building Maintenance & Improvements,2122P01_CR00244,129692
Sandwell Metropolitan Borough Council,http://www.sandwell.gov.uk/info/200202/performance_and_spending/1079/payments_over_500,13-Apr-2021,Housing & Communities,SERCO LIMITED,Neighbourhoods,13033.65,Waste Disposal Charges,2122P01_CR00245,53771
Sandwell Metropolitan Borough Council,http://www.sandwell.gov.uk/info/200202/performance_and_spending/1079/payments_over_500,01-Apr-2021,Housing & Communities,HAYSTOUN CONSTRUCTION LTD,Neighbourhoods,16000.00,Operational Services ,2122P01_CR00246,11849
Sandwell Metropolitan Borough Council,http://www.sandwell.gov.uk/info/200202/performance_and_spending/1079/payments_over_500,01-Apr-2021,Housing & Communities,HAYSTOUN CONSTRUCTION LTD,Neighbourhoods,30000.00,Operational Services ,2122P01_CR00247,11849
Sandwell Metropolitan Borough Council,http://www.sandwell.gov.uk/info/200202/performance_and_spending/1079/payments_over_500,16-Apr-2021,Housing & Communities,SERCO LIMITED,Neighbourhoods,284972.92,Waste Disposal Charges,2122P01_CR00248,53771
Sandwell Metropolitan Borough Council,http://www.sandwell.gov.uk/info/200202/performance_and_spending/1079/payments_over_500,01-Apr-2021,Housing & Communities,SERCO LIMITED,Neighbourhoods,319123.04,Waste Disposal Charges,2122P01_CR00249,53771
Sandwell Metropolitan Borough Council,http://www.sandwell.gov.uk/info/200202/performance_and_spending/1079/payments_over_500,13-Apr-2021,Housing & Communities,SERCO LIMITED,Neighbourhoods,1643655.10,Waste Disposal Charges,2122P01_CR00250,53771
Sandwell Metropolitan Borough Council,http://www.sandwell.gov.uk/info/200202/performance_and_spending/1079/payments_over_500,05-Apr-2021,Housing & Communities,SHARP,Neighbourhoods,4284.00,Rents,2122P01_CR00251,08280972
Sandwell Metropolitan Borough Council,http://www.sandwell.gov.uk/info/200202/performance_and_spending/1079/payments_over_500,04-Apr-2021,Housing & Communities,SHARP,Neighbourhoods,4402.44,Rents,2122P01_CR00252,08280972
Sandwell Metropolitan Borough Council,http://www.sandwell.gov.uk/info/200202/performance_and_spending/1079/payments_over_500,05-Apr-2021,Housing & Communities,SHARP,Neighbourhoods,4470.12,Rents,2122P01_CR00253,08280972
Sandwell Metropolitan Borough Council,http://www.sandwell.gov.uk/info/200202/performance_and_spending/1079/payments_over_500,01-Apr-2021,Housing & Communities,MANOR ABBEY FOODS LTD,Neighbourhoods,517.89,Catering Provisions,2122P01_CR00254,63063
Sandwell Metropolitan Borough Council,http://www.sandwell.gov.uk/info/200202/performance_and_spending/1079/payments_over_500,01-Apr-2021,Housing & Communities,MANOR ABBEY FOODS LTD,Neighbourhoods,614.91,Catering Provisions,2122P01_CR00255,63063
Sandwell Metropolitan Borough Council,http://www.sandwell.gov.uk/info/200202/performance_and_spending/1079/payments_over_500,01-Apr-2021,Housing & Communities,MIDLAND CHILLED FOODS LIMITED,Neighbourhoods,548.41,Catering Provisions,2122P01_CR00256,106924
Sandwell Metropolitan Borough Council,http://www.sandwell.gov.uk/info/200202/performance_and_spending/1079/payments_over_500,01-Apr-2021,Housing & Communities,MIDLAND CHILLED FOODS LIMITED,Neighbourhoods,633.81,Catering Provisions,2122P01_CR00257,106924
Sandwell Metropolitan Borough Council,http://www.sandwell.gov.uk/info/200202/performance_and_spending/1079/payments_over_500,01-Apr-2021,Housing & Communities,ST MARY'S HOUSE TENANTS & RESIDENTS ASSOCIATION,Neighbourhoods,1984.90,Tenants Expenses,2122P01_CR00258,95892
Sandwell Metropolitan Borough Council,http://www.sandwell.gov.uk/info/200202/performance_and_spending/1079/payments_over_500,06-Apr-2021,Housing & Communities,ESSEX AVENUE COMMUNITY ASSOCIATION,Neighbourhoods,3191.84,Tenants Expenses,2122P01_CR00259,113690
Sandwell Metropolitan Borough Council,http://www.sandwell.gov.uk/info/200202/performance_and_spending/1079/payments_over_500,12-Apr-2021,Housing & Communities,POST OFFICE COUNTERS,Neighbourhoods,8065.00,Licences & Test Fees,2122P01_CR00260,102580
Sandwell Metropolitan Borough Council,http://www.sandwell.gov.uk/info/200202/performance_and_spending/1079/payments_over_500,01-Apr-2021,Housing & Communities,PLACES FOR PEOPLE LEISURE MANAGEMENT LTD,Neighbourhoods,48205.09,SH Payments,2122P01_CR00261,118956
Sandwell Metropolitan Borough Council,http://www.sandwell.gov.uk/info/200202/performance_and_spending/1079/payments_over_500,01-Apr-2021,Housing & Communities,HQN LTD,Assistant Chief Executive (Excl SIU),700.00,Conference Expenses,2122P01_CR00262,38107
Sandwell Metropolitan Borough Council,http://www.sandwell.gov.uk/info/200202/performance_and_spending/1079/payments_over_500,11-Apr-2021,Housing & Communities,TOTAL GAS AND POWER LIMITED,Housing & Communities Capital,7977.62,"CIP - New Construction,Conversion, Enhancement & Reno",2122P01_CR00263,107605
Sandwell Metropolitan Borough Council,http://www.sandwell.gov.uk/info/200202/performance_and_spending/1079/payments_over_500,01-Apr-2021,Housing & Communities,SANDYFIELDS LTD,Neighbourhoods,500.00,Materials & Consumables,2122P01_CR00264,141181
Sandwell Metropolitan Borough Council,http://www.sandwell.gov.uk/info/200202/performance_and_spending/1079/payments_over_500,13-Apr-2021,Housing & Communities,GIFTWORKS,Neighbourhoods,538.70,Materials & Consumables,2122P01_CR00265,126079
Sandwell Metropolitan Borough Council,http://www.sandwell.gov.uk/info/200202/performance_and_spending/1079/payments_over_500,01-Apr-2021,Housing & Communities,BEECHWOOD TREES & LANDSCAPE LTD,Neighbourhoods,548.00,Externally Purchased Professional Services ,2122P01_CR00266,93287
Sandwell Metropolitan Borough Council,http://www.sandwell.gov.uk/info/200202/performance_and_spending/1079/payments_over_500,21-Apr-2021,Housing & Communities,BROMFORD HOUSING ASSOCIATION LTD,Neighbourhoods,553.00,Tenants Expenses,2122P01_CR00267,111493
Sandwell Metropolitan Borough Council,http://www.sandwell.gov.uk/info/200202/performance_and_spending/1079/payments_over_500,08-Apr-2021,Housing & Communities,PPL PRS LTD,Neighbourhoods,568.84,Civic Events,2122P01_CR00268,134302
Sandwell Metropolitan Borough Council,http://www.sandwell.gov.uk/info/200202/performance_and_spending/1079/payments_over_500,07-Apr-2021,Housing & Communities,WYNNSTAY (AGRICULTURAL SUPPLIES) LIMITED,Neighbourhoods,571.52,Externally Purchased Professional Services ,2122P01_CR00269,121165
Sandwell Metropolitan Borough Council,http://www.sandwell.gov.uk/info/200202/performance_and_spending/1079/payments_over_500,01-Apr-2021,Housing & Communities,VENDAID LTD,Neighbourhoods,572.29,Catering Provisions,2122P01_CR00270,01045695
Sandwell Metropolitan Borough Council,http://www.sandwell.gov.uk/info/200202/performance_and_spending/1079/payments_over_500,15-Apr-2021,Housing & Communities,BEECHWOOD TREES & LANDSCAPE LTD,Neighbourhoods,584.00,Externally Purchased Professional Services ,2122P01_CR00271,93287
Sandwell Metropolitan Borough Council,http://www.sandwell.gov.uk/info/200202/performance_and_spending/1079/payments_over_500,01-Apr-2021,Housing & Communities,WEST MIDLANDS HOUSING SOLUTIONS LTD,Neighbourhoods,585.00,Equipment & Furniture ,2122P01_CR00272,150318
Sandwell Metropolitan Borough Council,http://www.sandwell.gov.uk/info/200202/performance_and_spending/1079/payments_over_500,07-Apr-2021,Housing & Communities,BLACK MOUNTAIN REINDEERS,Neighbourhoods,610.00,Externally Purchased Professional Services ,2122P01_CR00273,141279
Sandwell Metropolitan Borough Council,http://www.sandwell.gov.uk/info/200202/performance_and_spending/1079/payments_over_500,20-Apr-2021,Housing & Communities,TRISCAN SYSTEMS LIMITED,Neighbourhoods,657.76,Externally Purchased Professional Services ,2122P01_CR00274,01437851
Sandwell Metropolitan Borough Council,http://www.sandwell.gov.uk/info/200202/performance_and_spending/1079/payments_over_500,07-Apr-2021,Housing & Communities,ACORN ENVIRONMENTAL MANAGEMENT GROUP LIMITED,Neighbourhoods,659.38,Externally Purchased Professional Services ,2122P01_CR00275,24254
Sandwell Metropolitan Borough Council,http://www.sandwell.gov.uk/info/200202/performance_and_spending/1079/payments_over_500,11-Apr-2021,Housing & Communities,TOTAL GAS AND POWER LIMITED,Neighbourhoods,686.90,Gas,2122P01_CR00276,107605
Sandwell Metropolitan Borough Council,http://www.sandwell.gov.uk/info/200202/performance_and_spending/1079/payments_over_500,01-Apr-2021,Housing & Communities,BEECHWOOD TREES & LANDSCAPE LTD,Neighbourhoods,695.00,Externally Purchased Professional Services ,2122P01_CR00277,93287
Sandwell Metropolitan Borough Council,http://www.sandwell.gov.uk/info/200202/performance_and_spending/1079/payments_over_500,19-Apr-2021,Housing & Communities,LAPWING UK LTD,Neighbourhoods,700.00,Protective Clothing & Uniforms,2122P01_CR00278,54666
Sandwell Metropolitan Borough Council,http://www.sandwell.gov.uk/info/200202/performance_and_spending/1079/payments_over_500,09-Apr-2021,Housing & Communities,CERTAS ENERGY LIMITED,Neighbourhoods,704.00,Oil,2122P01_CR00279,80421
Sandwell Metropolitan Borough Council,http://www.sandwell.gov.uk/info/200202/performance_and_spending/1079/payments_over_500,01-Apr-2021,Housing & Communities,WYNNSTAY (AGRICULTURAL SUPPLIES) LIMITED,Neighbourhoods,720.00,Materials & Consumables,2122P01_CR00280,121165
Sandwell Metropolitan Borough Council,http://www.sandwell.gov.uk/info/200202/performance_and_spending/1079/payments_over_500,21-Apr-2021,Housing & Communities,MARKETING FORCE LIMITED,Neighbourhoods,733.00,"Printing, Stationery & General Office Expenses",2122P01_CR00281,129573
Sandwell Metropolitan Borough Council,http://www.sandwell.gov.uk/info/200202/performance_and_spending/1079/payments_over_500,01-Apr-2021,Housing & Communities,WEST MIDLANDS HOUSING SOLUTIONS LTD,Neighbourhoods,825.00,Equipment & Furniture ,2122P01_CR00282,150318
Sandwell Metropolitan Borough Council,http://www.sandwell.gov.uk/info/200202/performance_and_spending/1079/payments_over_500,07-Apr-2021,Housing & Communities,PESTEX LTD,Neighbourhoods,840.00,Pest Control,2122P01_CR00283,01464607
Sandwell Metropolitan Borough Council,http://www.sandwell.gov.uk/info/200202/performance_and_spending/1079/payments_over_500,01-Apr-2021,Housing & Communities,BEECHWOOD TREES & LANDSCAPE LTD,Neighbourhoods,854.00,Externally Purchased Professional Services ,2122P01_CR00284,93287
Sandwell Metropolitan Borough Council,http://www.sandwell.gov.uk/info/200202/performance_and_spending/1079/payments_over_500,01-Apr-2021,Housing & Communities,TOTAL GAS AND POWER LIMITED,Neighbourhoods,884.55,Electricity,2122P01_CR00285,107605
Sandwell Metropolitan Borough Council,http://www.sandwell.gov.uk/info/200202/performance_and_spending/1079/payments_over_500,20-Apr-2021,Housing & Communities,ALAN MCGEACHIE (KURLY'S POETRY),Neighbourhoods,900.00,Externally Purchased Professional Services ,2122P01_CR00286,148537
Sandwell Metropolitan Borough Council,http://www.sandwell.gov.uk/info/200202/performance_and_spending/1079/payments_over_500,01-Apr-2021,Housing & Communities,BEECHWOOD TREES & LANDSCAPE LTD,Neighbourhoods,900.00,Externally Purchased Professional Services ,2122P01_CR00287,93287
Sandwell Metropolitan Borough Council,http://www.sandwell.gov.uk/info/200202/performance_and_spending/1079/payments_over_500,07-Apr-2021,Housing & Communities,ACORN ENVIRONMENTAL MANAGEMENT GROUP LIMITED,Neighbourhoods,949.17,Externally Purchased Professional Services ,2122P01_CR00288,24254
Sandwell Metropolitan Borough Council,http://www.sandwell.gov.uk/info/200202/performance_and_spending/1079/payments_over_500,01-Apr-2021,Housing & Communities,HIVES AND HONEY,Neighbourhoods,1000.00,Civic Events,2122P01_CR00289,150114
Sandwell Metropolitan Borough Council,http://www.sandwell.gov.uk/info/200202/performance_and_spending/1079/payments_over_500,01-Apr-2021,Housing & Communities,BEECHWOOD TREES & LANDSCAPE LTD,Neighbourhoods,1007.50,Externally Purchased Professional Services ,2122P01_CR00290,93287
Sandwell Metropolitan Borough Council,http://www.sandwell.gov.uk/info/200202/performance_and_spending/1079/payments_over_500,01-Apr-2021,Housing & Communities,XMA LTD,Neighbourhoods,1029.60,ICT ,2122P01_CR00291,01135462
Sandwell Metropolitan Borough Council,http://www.sandwell.gov.uk/info/200202/performance_and_spending/1079/payments_over_500,01-Apr-2021,Housing & Communities,WYNNSTAY (AGRICULTURAL SUPPLIES) LIMITED,Neighbourhoods,1044.47,Externally Purchased Professional Services ,2122P01_CR00292,121165
Sandwell Metropolitan Borough Council,http://www.sandwell.gov.uk/info/200202/performance_and_spending/1079/payments_over_500,01-Apr-2021,Housing & Communities,BEECHWOOD TREES & LANDSCAPE LTD,Neighbourhoods,1065.00,Externally Purchased Professional Services ,2122P01_CR00293,93287
Sandwell Metropolitan Borough Council,http://www.sandwell.gov.uk/info/200202/performance_and_spending/1079/payments_over_500,01-Apr-2021,Housing & Communities,PROFILE SECURITY SERVICES LTD,Neighbourhoods,1117.20,Security,2122P01_CR00294,131253
Sandwell Metropolitan Borough Council,http://www.sandwell.gov.uk/info/200202/performance_and_spending/1079/payments_over_500,01-Apr-2021,Housing & Communities,BEECHWOOD TREES & LANDSCAPE LTD,Neighbourhoods,1150.00,Externally Purchased Professional Services ,2122P01_CR00295,93287
Sandwell Metropolitan Borough Council,http://www.sandwell.gov.uk/info/200202/performance_and_spending/1079/payments_over_500,14-Apr-2021,Housing & Communities,NATIONWIDE REMOVALS & STORAGE LTD T/A REMOVALS.CO.UK,Neighbourhoods,1150.00,Waste Disposal Charges,2122P01_CR00296,123785
Sandwell Metropolitan Borough Council,http://www.sandwell.gov.uk/info/200202/performance_and_spending/1079/payments_over_500,01-Apr-2021,Housing & Communities,SUEZ RECYLING AND RECOVERY HOLDINGS UK LTD,Neighbourhoods,1150.31,Waste Disposal Charges,2122P01_CR00297,129939
Sandwell Metropolitan Borough Council,http://www.sandwell.gov.uk/info/200202/performance_and_spending/1079/payments_over_500,01-Apr-2021,Housing & Communities,BEECHWOOD TREES & LANDSCAPE LTD,Neighbourhoods,1200.00,Externally Purchased Professional Services ,2122P01_CR00298,93287
Sandwell Metropolitan Borough Council,http://www.sandwell.gov.uk/info/200202/performance_and_spending/1079/payments_over_500,01-Apr-2021,Housing & Communities,RG NIXON LTD,Neighbourhoods,1210.00,Building Maintenance & Improvements,2122P01_CR00299,01539261
Sandwell Metropolitan Borough Council,http://www.sandwell.gov.uk/info/200202/performance_and_spending/1079/payments_over_500,01-Apr-2021,Housing & Communities,LIVESTOCK SUPPLIES LTD,Neighbourhoods,1215.73,Externally Purchased Professional Services ,2122P01_CR00300,131931
Sandwell Metropolitan Borough Council,http://www.sandwell.gov.uk/info/200202/performance_and_spending/1079/payments_over_500,01-Apr-2021,Housing & Communities,2G CREATIVE LTD,Neighbourhoods,1220.00,Civic Events,2122P01_CR00301,151226
Sandwell Metropolitan Borough Council,http://www.sandwell.gov.uk/info/200202/performance_and_spending/1079/payments_over_500,01-Apr-2021,Housing & Communities,BEECHWOOD TREES & LANDSCAPE LTD,Neighbourhoods,1232.50,Externally Purchased Professional Services ,2122P01_CR00302,93287
Sandwell Metropolitan Borough Council,http://www.sandwell.gov.uk/info/200202/performance_and_spending/1079/payments_over_500,01-Apr-2021,Housing & Communities,WEST MIDLANDS HOUSING SOLUTIONS LTD,Neighbourhoods,1240.00,Equipment & Furniture ,2122P01_CR00303,150318
Sandwell Metropolitan Borough Council,http://www.sandwell.gov.uk/info/200202/performance_and_spending/1079/payments_over_500,07-Apr-2021,Housing & Communities,PENNON WATER SERVICES T/A SSWB,Neighbourhoods,1249.67,Water Services,2122P01_CR00304,131726
Sandwell Metropolitan Borough Council,http://www.sandwell.gov.uk/info/200202/performance_and_spending/1079/payments_over_500,09-Apr-2021,Housing & Communities,WALSALL MBC,Neighbourhoods,1313.65,Waste Disposal Charges,2122P01_CR00305,01106025
Sandwell Metropolitan Borough Council,http://www.sandwell.gov.uk/info/200202/performance_and_spending/1079/payments_over_500,07-Apr-2021,Housing & Communities,ACORN ENVIRONMENTAL MANAGEMENT GROUP LIMITED,Neighbourhoods,1343.83,Externally Purchased Professional Services ,2122P01_CR00306,24254
Sandwell Metropolitan Borough Council,http://www.sandwell.gov.uk/info/200202/performance_and_spending/1079/payments_over_500,01-Apr-2021,Housing & Communities,BEECHWOOD TREES & LANDSCAPE LTD,Neighbourhoods,1350.00,Externally Purchased Professional Services ,2122P01_CR00307,93287
Sandwell Metropolitan Borough Council,http://www.sandwell.gov.uk/info/200202/performance_and_spending/1079/payments_over_500,01-Apr-2021,Housing & Communities,TUDOR ENVIRONMENTAL,Neighbourhoods,1357.00,Materials & Consumables,2122P01_CR00308,01528713
Sandwell Metropolitan Borough Council,http://www.sandwell.gov.uk/info/200202/performance_and_spending/1079/payments_over_500,01-Apr-2021,Housing & Communities,BEECHWOOD TREES & LANDSCAPE LTD,Neighbourhoods,1360.00,Externally Purchased Professional Services ,2122P01_CR00309,93287
Sandwell Metropolitan Borough Council,http://www.sandwell.gov.uk/info/200202/performance_and_spending/1079/payments_over_500,01-Apr-2021,Housing & Communities,WEST MIDLANDS HOUSING SOLUTIONS LTD,Neighbourhoods,1410.00,Equipment & Furniture ,2122P01_CR00310,150318
Sandwell Metropolitan Borough Council,http://www.sandwell.gov.uk/info/200202/performance_and_spending/1079/payments_over_500,01-Apr-2021,Housing & Communities,BEECHWOOD TREES & LANDSCAPE LTD,Neighbourhoods,1430.00,Externally Purchased Professional Services ,2122P01_CR00311,93287
Sandwell Metropolitan Borough Council,http://www.sandwell.gov.uk/info/200202/performance_and_spending/1079/payments_over_500,01-Apr-2021,Housing & Communities,WEST MIDLANDS HOUSING SOLUTIONS LTD,Neighbourhoods,1465.00,Equipment & Furniture ,2122P01_CR00312,150318
Sandwell Metropolitan Borough Council,http://www.sandwell.gov.uk/info/200202/performance_and_spending/1079/payments_over_500,01-Apr-2021,Housing & Communities,BEECHWOOD TREES & LANDSCAPE LTD,Neighbourhoods,1585.00,Externally Purchased Professional Services ,2122P01_CR00313,93287
Sandwell Metropolitan Borough Council,http://www.sandwell.gov.uk/info/200202/performance_and_spending/1079/payments_over_500,07-Apr-2021,Housing & Communities,WYNNSTAY (AGRICULTURAL SUPPLIES) LIMITED,Neighbourhoods,1779.39,Externally Purchased Professional Services ,2122P01_CR00314,121165
Sandwell Metropolitan Borough Council,http://www.sandwell.gov.uk/info/200202/performance_and_spending/1079/payments_over_500,07-Apr-2021,Housing & Communities,ACORN ENVIRONMENTAL MANAGEMENT GROUP LIMITED,Neighbourhoods,1885.00,Externally Purchased Professional Services ,2122P01_CR00315,24254
Sandwell Metropolitan Borough Council,http://www.sandwell.gov.uk/info/200202/performance_and_spending/1079/payments_over_500,07-Apr-2021,Housing & Communities,ACORN ENVIRONMENTAL MANAGEMENT GROUP LIMITED,Neighbourhoods,1885.00,Externally Purchased Professional Services ,2122P01_CR00316,24254
Sandwell Metropolitan Borough Council,http://www.sandwell.gov.uk/info/200202/performance_and_spending/1079/payments_over_500,01-Apr-2021,Housing & Communities,ENVIRONMENT AGENCY,Neighbourhoods,1920.00,Subscriptions,2122P01_CR00317,01548028
Sandwell Metropolitan Borough Council,http://www.sandwell.gov.uk/info/200202/performance_and_spending/1079/payments_over_500,15-Apr-2021,Housing & Communities,ALLSTAR BUSINESS SOLUTIONS LIMITED,Neighbourhoods,2188.72,Fuel ,2122P01_CR00318,104057
Sandwell Metropolitan Borough Council,http://www.sandwell.gov.uk/info/200202/performance_and_spending/1079/payments_over_500,01-Apr-2021,Housing & Communities,PROFILE SECURITY SERVICES LTD,Neighbourhoods,2334.15,Security,2122P01_CR00319,131253
Sandwell Metropolitan Borough Council,http://www.sandwell.gov.uk/info/200202/performance_and_spending/1079/payments_over_500,01-Apr-2021,Housing & Communities,ALLSTAR BUSINESS SOLUTIONS LIMITED,Neighbourhoods,2412.16,Fuel ,2122P01_CR00320,104057
Sandwell Metropolitan Borough Council,http://www.sandwell.gov.uk/info/200202/performance_and_spending/1079/payments_over_500,01-Apr-2021,Housing & Communities,PROFILE SECURITY SERVICES LTD,Neighbourhoods,2447.20,Security,2122P01_CR00321,131253
Sandwell Metropolitan Borough Council,http://www.sandwell.gov.uk/info/200202/performance_and_spending/1079/payments_over_500,01-Apr-2021,Housing & Communities,ENVIRONMENT AGENCY,Neighbourhoods,2731.25,Subscriptions,2122P01_CR00322,01548028
Sandwell Metropolitan Borough Council,http://www.sandwell.gov.uk/info/200202/performance_and_spending/1079/payments_over_500,09-Apr-2021,Housing & Communities,GREENWICH LEISURE LTD,Neighbourhoods,3000.00,ICT ,2122P01_CR00323,136157
Sandwell Metropolitan Borough Council,http://www.sandwell.gov.uk/info/200202/performance_and_spending/1079/payments_over_500,01-Apr-2021,Housing & Communities,BEECHWOOD TREES & LANDSCAPE LTD,Neighbourhoods,3202.50,Externally Purchased Professional Services ,2122P01_CR00324,93287
Sandwell Metropolitan Borough Council,http://www.sandwell.gov.uk/info/200202/performance_and_spending/1079/payments_over_500,01-Apr-2021,Housing & Communities,BEECHWOOD TREES & LANDSCAPE LTD,Neighbourhoods,3275.00,Externally Purchased Professional Services ,2122P01_CR00325,93287
Sandwell Metropolitan Borough Council,http://www.sandwell.gov.uk/info/200202/performance_and_spending/1079/payments_over_500,01-Apr-2021,Housing & Communities,HEADLAND ARCHAEOLOGY UK LTD,Neighbourhoods,3365.00,Externally Purchased Professional Services ,2122P01_CR00326,147317
Sandwell Metropolitan Borough Council,http://www.sandwell.gov.uk/info/200202/performance_and_spending/1079/payments_over_500,01-Apr-2021,Housing & Communities,POLICE & CRIME COMMISIONER FOR WEST MIDLANDS,Neighbourhoods,3525.51,Externally Purchased Professional Services ,2122P01_CR00327,125707
Sandwell Metropolitan Borough Council,http://www.sandwell.gov.uk/info/200202/performance_and_spending/1079/payments_over_500,01-Apr-2021,Housing & Communities,HOARE LEA LLP,Neighbourhoods,3550.00,Consultancy,2122P01_CR00328,137607
Sandwell Metropolitan Borough Council,http://www.sandwell.gov.uk/info/200202/performance_and_spending/1079/payments_over_500,16-Apr-2021,Housing & Communities,PINSENT MASON LLP,Neighbourhoods,3575.40,Externally Purchased Professional Services ,2122P01_CR00329,47648
Sandwell Metropolitan Borough Council,http://www.sandwell.gov.uk/info/200202/performance_and_spending/1079/payments_over_500,01-Apr-2021,Housing & Communities,EXHIBITION PLUS,Neighbourhoods,4624.00,Civic Events,2122P01_CR00330,117729
Sandwell Metropolitan Borough Council,http://www.sandwell.gov.uk/info/200202/performance_and_spending/1079/payments_over_500,01-Apr-2021,Housing & Communities,SANDWELL & WEST BIRMINGHAM HOSPITALS NHS TRUST,Neighbourhoods,5198.53,Waste Disposal Charges,2122P01_CR00331,1385
Sandwell Metropolitan Borough Council,http://www.sandwell.gov.uk/info/200202/performance_and_spending/1079/payments_over_500,01-Apr-2021,Housing & Communities,CREATIVE ACADEMIES LTD,Neighbourhoods,5624.57,Grant Payments,2122P01_CR00332,116825
Sandwell Metropolitan Borough Council,http://www.sandwell.gov.uk/info/200202/performance_and_spending/1079/payments_over_500,01-Apr-2021,Housing & Communities,PROFILE SECURITY SERVICES LTD,Neighbourhoods,5665.80,Security,2122P01_CR00333,131253
Sandwell Metropolitan Borough Council,http://www.sandwell.gov.uk/info/200202/performance_and_spending/1079/payments_over_500,01-Apr-2021,Housing & Communities,BEECHWOOD TREES & LANDSCAPE LTD,Neighbourhoods,5750.00,Externally Purchased Professional Services ,2122P01_CR00334,93287
Sandwell Metropolitan Borough Council,http://www.sandwell.gov.uk/info/200202/performance_and_spending/1079/payments_over_500,19-Apr-2021,Housing & Communities,AECOM INFRASTRUCTURE & ENVIRONMENT UK LIMITED,Neighbourhoods,5789.90,Consultancy,2122P01_CR00335,107299
Sandwell Metropolitan Borough Council,http://www.sandwell.gov.uk/info/200202/performance_and_spending/1079/payments_over_500,01-Apr-2021,Housing & Communities,TSA SPORTS AND EDUCATION CIC,Neighbourhoods,5817.75,Grant Payments,2122P01_CR00336,139844
Sandwell Metropolitan Borough Council,http://www.sandwell.gov.uk/info/200202/performance_and_spending/1079/payments_over_500,01-Apr-2021,Housing & Communities,BEECHWOOD TREES & LANDSCAPE LTD,Neighbourhoods,5890.00,Externally Purchased Professional Services ,2122P01_CR00337,93287
Sandwell Metropolitan Borough Council,http://www.sandwell.gov.uk/info/200202/performance_and_spending/1079/payments_over_500,01-Apr-2021,Housing & Communities,BEECHWOOD TREES & LANDSCAPE LTD,Neighbourhoods,6080.00,Externally Purchased Professional Services ,2122P01_CR00338,93287
Sandwell Metropolitan Borough Council,http://www.sandwell.gov.uk/info/200202/performance_and_spending/1079/payments_over_500,01-Apr-2021,Housing & Communities,COMMUNITY SKILLS AND KNOWLEDGE NETWORK CIC,Neighbourhoods,6315.00,Grant Payments,2122P01_CR00339,133735
Sandwell Metropolitan Borough Council,http://www.sandwell.gov.uk/info/200202/performance_and_spending/1079/payments_over_500,01-Apr-2021,Housing & Communities,BEECHWOOD TREES & LANDSCAPE LTD,Neighbourhoods,6842.00,Externally Purchased Professional Services ,2122P01_CR00340,93287
Sandwell Metropolitan Borough Council,http://www.sandwell.gov.uk/info/200202/performance_and_spending/1079/payments_over_500,04-Apr-2021,Housing & Communities,COBWEB INFORMATION LTD,Neighbourhoods,6995.00,Materials & Consumables,2122P01_CR00341,151627
Sandwell Metropolitan Borough Council,http://www.sandwell.gov.uk/info/200202/performance_and_spending/1079/payments_over_500,01-Apr-2021,Housing & Communities,PINSENT MASON LLP,Neighbourhoods,7115.40,Externally Purchased Professional Services ,2122P01_CR00342,47648
Sandwell Metropolitan Borough Council,http://www.sandwell.gov.uk/info/200202/performance_and_spending/1079/payments_over_500,01-Apr-2021,Housing & Communities,BEECHWOOD TREES & LANDSCAPE LTD,Neighbourhoods,7194.00,Externally Purchased Professional Services ,2122P01_CR00343,93287
Sandwell Metropolitan Borough Council,http://www.sandwell.gov.uk/info/200202/performance_and_spending/1079/payments_over_500,14-Apr-2021,Housing & Communities,PHOENIX SOFTWARE LTD,Neighbourhoods,9507.44,ICT ,2122P01_CR00344,01504689
Sandwell Metropolitan Borough Council,http://www.sandwell.gov.uk/info/200202/performance_and_spending/1079/payments_over_500,01-Apr-2021,Housing & Communities,BLACK COUNTRY WOMEN'S AID,Neighbourhoods,10000.00,Grant Payments,2122P01_CR00345,127401
Sandwell Metropolitan Borough Council,http://www.sandwell.gov.uk/info/200202/performance_and_spending/1079/payments_over_500,22-Apr-2021,Housing & Communities,PERVASIVE NETWORKS LTD,Neighbourhoods,11362.80,Externally Purchased Professional Services ,2122P01_CR00346,01658599
Sandwell Metropolitan Borough Council,http://www.sandwell.gov.uk/info/200202/performance_and_spending/1079/payments_over_500,01-Apr-2021,Housing & Communities,CERTAS ENERGY LIMITED,Neighbourhoods,12579.58,Fuel ,2122P01_CR00347,80421
Sandwell Metropolitan Borough Council,http://www.sandwell.gov.uk/info/200202/performance_and_spending/1079/payments_over_500,01-Apr-2021,Housing & Communities,RIDDELL TPS LIMITED,Neighbourhoods,18528.08,Rents,2122P01_CR00348,132427
Sandwell Metropolitan Borough Council,http://www.sandwell.gov.uk/info/200202/performance_and_spending/1079/payments_over_500,01-Apr-2021,Housing & Communities,BIBLIOTHECA LIMITED,Neighbourhoods,30313.59,ICT ,2122P01_CR00349,94179
Sandwell Metropolitan Borough Council,http://www.sandwell.gov.uk/info/200202/performance_and_spending/1079/payments_over_500,01-Apr-2021,Housing & Communities,RIGBY TAYLOR LTD,Neighbourhoods,700.00,Materials & Consumables,2122P01_CR00350,01076172
Sandwell Metropolitan Borough Council,http://www.sandwell.gov.uk/info/200202/performance_and_spending/1079/payments_over_500,09-Apr-2021,Housing & Communities,AL-AMEEN TOURS & TRAVEL,Neighbourhoods,1100.00,Rents,2122P01_CR00351,151589
Sandwell Metropolitan Borough Council,http://www.sandwell.gov.uk/info/200202/performance_and_spending/1079/payments_over_500,06-Apr-2021,Housing & Communities,HAMSTEAD VILLAGE TENANTS & RESIDENTS ASSOCIATION,Neighbourhoods,1190.94,Tenants Expenses,2122P01_CR00352,140897
Sandwell Metropolitan Borough Council,http://www.sandwell.gov.uk/info/200202/performance_and_spending/1079/payments_over_500,28-Apr-2021,Housing & Communities,BAYLIEF FARM,Neighbourhoods,1500.00,Externally Purchased Professional Services ,2122P01_CR00353,151871
Sandwell Metropolitan Borough Council,http://www.sandwell.gov.uk/info/200202/performance_and_spending/1079/payments_over_500,08-Apr-2021,Housing & Communities,J & NN PROPERTIES,Neighbourhoods,2450.47,Rents,2122P01_CR00354,148972
Sandwell Metropolitan Borough Council,http://www.sandwell.gov.uk/info/200202/performance_and_spending/1079/payments_over_500,27-Apr-2021,Housing & Communities,REDACTED PERSONAL DATA,Neighbourhoods,500.00,Rents,2122P01_CR00355,REDACTED PERSONAL DATA
Sandwell Metropolitan Borough Council,http://www.sandwell.gov.uk/info/200202/performance_and_spending/1079/payments_over_500,27-Apr-2021,Housing & Communities,REDACTED PERSONAL DATA,Neighbourhoods,500.00,Rents,2122P01_CR00356,REDACTED PERSONAL DATA
Sandwell Metropolitan Borough Council,http://www.sandwell.gov.uk/info/200202/performance_and_spending/1079/payments_over_500,27-Apr-2021,Housing & Communities,REDACTED PERSONAL DATA,Neighbourhoods,500.00,Rents,2122P01_CR00357,REDACTED PERSONAL DATA
Sandwell Metropolitan Borough Council,http://www.sandwell.gov.uk/info/200202/performance_and_spending/1079/payments_over_500,27-Apr-2021,Housing & Communities,REDACTED PERSONAL DATA,Neighbourhoods,500.00,Rents,2122P01_CR00358,REDACTED PERSONAL DATA
Sandwell Metropolitan Borough Council,http://www.sandwell.gov.uk/info/200202/performance_and_spending/1079/payments_over_500,27-Apr-2021,Housing & Communities,REDACTED PERSONAL DATA,Neighbourhoods,500.00,Rents,2122P01_CR00359,REDACTED PERSONAL DATA
Sandwell Metropolitan Borough Council,http://www.sandwell.gov.uk/info/200202/performance_and_spending/1079/payments_over_500,27-Apr-2021,Housing & Communities,REDACTED PERSONAL DATA,Neighbourhoods,500.00,Rents,2122P01_CR00360,REDACTED PERSONAL DATA
Sandwell Metropolitan Borough Council,http://www.sandwell.gov.uk/info/200202/performance_and_spending/1079/payments_over_500,27-Apr-2021,Housing & Communities,REDACTED PERSONAL DATA,Neighbourhoods,550.00,Rents,2122P01_CR00361,REDACTED PERSONAL DATA
Sandwell Metropolitan Borough Council,http://www.sandwell.gov.uk/info/200202/performance_and_spending/1079/payments_over_500,27-Apr-2021,Housing & Communities,REDACTED PERSONAL DATA,Neighbourhoods,550.00,Rents,2122P01_CR00362,REDACTED PERSONAL DATA
Sandwell Metropolitan Borough Council,http://www.sandwell.gov.uk/info/200202/performance_and_spending/1079/payments_over_500,27-Apr-2021,Housing & Communities,REDACTED PERSONAL DATA,Neighbourhoods,550.00,Rents,2122P01_CR00363,REDACTED PERSONAL DATA
Sandwell Metropolitan Borough Council,http://www.sandwell.gov.uk/info/200202/performance_and_spending/1079/payments_over_500,27-Apr-2021,Housing & Communities,REDACTED PERSONAL DATA,Neighbourhoods,1000.00,Rents,2122P01_CR00364,REDACTED PERSONAL DATA
Sandwell Metropolitan Borough Council,http://www.sandwell.gov.uk/info/200202/performance_and_spending/1079/payments_over_500,27-Apr-2021,Housing & Communities,REDACTED PERSONAL DATA,Neighbourhoods,500.00,Rents,2122P01_CR00365,REDACTED PERSONAL DATA
Sandwell Metropolitan Borough Council,http://www.sandwell.gov.uk/info/200202/performance_and_spending/1079/payments_over_500,27-Apr-2021,Housing & Communities,REDACTED PERSONAL DATA,Neighbourhoods,500.00,Rents,2122P01_CR00366,REDACTED PERSONAL DATA
Sandwell Metropolitan Borough Council,http://www.sandwell.gov.uk/info/200202/performance_and_spending/1079/payments_over_500,27-Apr-2021,Housing & Communities,REDACTED PERSONAL DATA,Neighbourhoods,500.00,Rents,2122P01_CR00367,REDACTED PERSONAL DATA
Sandwell Metropolitan Borough Council,http://www.sandwell.gov.uk/info/200202/performance_and_spending/1079/payments_over_500,27-Apr-2021,Housing & Communities,REDACTED PERSONAL DATA,Neighbourhoods,500.00,Rents,2122P01_CR00368,REDACTED PERSONAL DATA
Sandwell Metropolitan Borough Council,http://www.sandwell.gov.uk/info/200202/performance_and_spending/1079/payments_over_500,27-Apr-2021,Housing & Communities,REDACTED PERSONAL DATA,Neighbourhoods,500.00,Rents,2122P01_CR00369,REDACTED PERSONAL DATA
Sandwell Metropolitan Borough Council,http://www.sandwell.gov.uk/info/200202/performance_and_spending/1079/payments_over_500,27-Apr-2021,Housing & Communities,REDACTED PERSONAL DATA,Neighbourhoods,500.00,Rents,2122P01_CR00370,REDACTED PERSONAL DATA
Sandwell Metropolitan Borough Council,http://www.sandwell.gov.uk/info/200202/performance_and_spending/1079/payments_over_500,27-Apr-2021,Housing & Communities,REDACTED PERSONAL DATA,Neighbourhoods,550.00,Rents,2122P01_CR00371,REDACTED PERSONAL DATA
Sandwell Metropolitan Borough Council,http://www.sandwell.gov.uk/info/200202/performance_and_spending/1079/payments_over_500,27-Apr-2021,Housing & Communities,REDACTED PERSONAL DATA,Neighbourhoods,550.00,Rents,2122P01_CR00372,REDACTED PERSONAL DATA
Sandwell Metropolitan Borough Council,http://www.sandwell.gov.uk/info/200202/performance_and_spending/1079/payments_over_500,27-Apr-2021,Housing & Communities,REDACTED PERSONAL DATA,Neighbourhoods,500.00,Rents,2122P01_CR00373,REDACTED PERSONAL DATA
Sandwell Metropolitan Borough Council,http://www.sandwell.gov.uk/info/200202/performance_and_spending/1079/payments_over_500,08-Apr-2021,Housing & Communities,REWIND UK EDUCATION AND INTERVENTIONS LTD,Neighbourhoods,6250.00,Grant Payments,2122P01_CR00374,110507
Sandwell Metropolitan Borough Council,http://www.sandwell.gov.uk/info/200202/performance_and_spending/1079/payments_over_500,09-Apr-2021,Housing & Communities,HILL TOP COMMUNITY DEVELOPMENT ASSOCIATION,Neighbourhoods,10546.00,Grant Payments,2122P01_CR00375,97197
Sandwell Metropolitan Borough Council,http://www.sandwell.gov.uk/info/200202/performance_and_spending/1079/payments_over_500,09-Apr-2021,Housing & Communities,SANDWELL IRISH SOCIETY,Neighbourhoods,1707.00,Grant Payments,2122P01_CR00376,21029971
Sandwell Metropolitan Borough Council,http://www.sandwell.gov.uk/info/200202/performance_and_spending/1079/payments_over_500,09-Apr-2021,Housing & Communities,GAYTON ROAD COMMUNITY CENTRE ASSOCIATION,Neighbourhoods,5334.00,Grant Payments,2122P01_CR00377,112420
Sandwell Metropolitan Borough Council,http://www.sandwell.gov.uk/info/200202/performance_and_spending/1079/payments_over_500,09-Apr-2021,Housing & Communities,MURRAY HALL COMMUNITY TRUST,Neighbourhoods,5868.00,Grant Payments,2122P01_CR00378,01627284
Sandwell Metropolitan Borough Council,http://www.sandwell.gov.uk/info/200202/performance_and_spending/1079/payments_over_500,06-Apr-2021,Housing & Communities,SANDWELL CONSORTIUM CIC,Neighbourhoods,7985.00,Grant Payments,2122P01_CR00379,104616
Sandwell Metropolitan Borough Council,http://www.sandwell.gov.uk/info/200202/performance_and_spending/1079/payments_over_500,09-Apr-2021,Housing & Communities,YEW TREE & TAME BRIDGE COMMUNITY CENTRE,Neighbourhoods,8321.00,Grant Payments,2122P01_CR00380,108389
Sandwell Metropolitan Borough Council,http://www.sandwell.gov.uk/info/200202/performance_and_spending/1079/payments_over_500,09-Apr-2021,Housing & Communities,SANDWELL IRISH COMMUNITY ASSOCIATION,Neighbourhoods,8325.00,Grant Payments,2122P01_CR00381,37424
Sandwell Metropolitan Borough Council,http://www.sandwell.gov.uk/info/200202/performance_and_spending/1079/payments_over_500,09-Apr-2021,Housing & Communities,BLACK COUNTRY TOURING,Neighbourhoods,10555.00,Grant Payments,2122P01_CR00382,01661722
Sandwell Metropolitan Borough Council,http://www.sandwell.gov.uk/info/200202/performance_and_spending/1079/payments_over_500,09-Apr-2021,Housing & Communities,YEMENI COMMUNITY ASSOCIATION IN SANDWELL,Neighbourhoods,11472.50,Grant Payments,2122P01_CR00383,01711292
Sandwell Metropolitan Borough Council,http://www.sandwell.gov.uk/info/200202/performance_and_spending/1079/payments_over_500,09-Apr-2021,Housing & Communities,FRIAR PARK MILLENNIUM CENTRE,Neighbourhoods,12003.50,Grant Payments,2122P01_CR00384,28476
Sandwell Metropolitan Borough Council,http://www.sandwell.gov.uk/info/200202/performance_and_spending/1079/payments_over_500,09-Apr-2021,Housing & Communities,WARLEY COMMUNITY GYM,Neighbourhoods,12484.00,Grant Payments,2122P01_CR00385,01705613
Sandwell Metropolitan Borough Council,http://www.sandwell.gov.uk/info/200202/performance_and_spending/1079/payments_over_500,09-Apr-2021,Housing & Communities,YEMENI COMMUNITY ASSOCIATION IN SANDWELL,Neighbourhoods,14615.00,Grant Payments,2122P01_CR00386,01711292
Sandwell Metropolitan Borough Council,http://www.sandwell.gov.uk/info/200202/performance_and_spending/1079/payments_over_500,09-Apr-2021,Housing & Communities,SMETHWICK PAKISTANI MUSLIM ASSOCIATION LTD,Neighbourhoods,15729.00,Grant Payments,2122P01_CR00387,01715191
Sandwell Metropolitan Borough Council,http://www.sandwell.gov.uk/info/200202/performance_and_spending/1079/payments_over_500,09-Apr-2021,Housing & Communities,SMETHWICK PAKISTANI MUSLIM ASSOCIATION LTD,Neighbourhoods,15917.50,Grant Payments,2122P01_CR00388,01715191
Sandwell Metropolitan Borough Council,http://www.sandwell.gov.uk/info/200202/performance_and_spending/1079/payments_over_500,09-Apr-2021,Housing & Communities,WARLEY WOODS COMMUNITY TRUST                           01,Neighbourhoods,18122.00,Grant Payments,2122P01_CR00389,08588603
Sandwell Metropolitan Borough Council,http://www.sandwell.gov.uk/info/200202/performance_and_spending/1079/payments_over_500,20-Apr-2021,Housing & Communities,WARLEY WOODS COMMUNITY TRUST                           01,Neighbourhoods,18122.00,Grant Payments,2122P01_CR00390,08588603
Sandwell Metropolitan Borough Council,http://www.sandwell.gov.uk/info/200202/performance_and_spending/1079/payments_over_500,09-Apr-2021,Housing & Communities,GREAT BRIDGE COMMUNITY FORUM,Neighbourhoods,18519.00,Grant Payments,2122P01_CR00391,21026008
Sandwell Metropolitan Borough Council,http://www.sandwell.gov.uk/info/200202/performance_and_spending/1079/payments_over_500,09-Apr-2021,Housing & Communities,BANGLADESHI ISLAMIC CENTRE,Neighbourhoods,21628.00,Grant Payments,2122P01_CR00392,01722187
Sandwell Metropolitan Borough Council,http://www.sandwell.gov.uk/info/200202/performance_and_spending/1079/payments_over_500,09-Apr-2021,Housing & Communities,NORTH SMETHWICK DEVELOPMENT TRUST,Neighbourhoods,22936.00,Grant Payments,2122P01_CR00393,01346623
Sandwell Metropolitan Borough Council,http://www.sandwell.gov.uk/info/200202/performance_and_spending/1079/payments_over_500,09-Apr-2021,Housing & Communities,WEST SMETHWICK ENTERPRISE AND STEPPING STONES PRE-SCHOOL,Neighbourhoods,24623.00,Grant Payments,2122P01_CR00394,01722169
Sandwell Metropolitan Borough Council,http://www.sandwell.gov.uk/info/200202/performance_and_spending/1079/payments_over_500,09-Apr-2021,Housing & Communities,COMMUNITY ACTION PROJECT,Neighbourhoods,25265.50,Grant Payments,2122P01_CR00395,01702622
Sandwell Metropolitan Borough Council,http://www.sandwell.gov.uk/info/200202/performance_and_spending/1079/payments_over_500,09-Apr-2021,Housing & Communities,MULTISTORY,Neighbourhoods,28541.50,Grant Payments,2122P01_CR00396,6471
Sandwell Metropolitan Borough Council,http://www.sandwell.gov.uk/info/200202/performance_and_spending/1079/payments_over_500,09-Apr-2021,Housing & Communities,BRUSHSTROKES,Neighbourhoods,31359.50,Grant Payments,2122P01_CR00397,21029374
Sandwell Metropolitan Borough Council,http://www.sandwell.gov.uk/info/200202/performance_and_spending/1079/payments_over_500,09-Apr-2021,Housing & Communities,BANGLADESHI WOMEN'S ASSOCIATION LIMITED,Neighbourhoods,35438.50,Grant Payments,2122P01_CR00398,69648
Sandwell Metropolitan Borough Council,http://www.sandwell.gov.uk/info/200202/performance_and_spending/1079/payments_over_500,09-Apr-2021,Housing & Communities,SHARP LTD,Neighbourhoods,36905.00,Grant Payments,2122P01_CR00399,01601345
Sandwell Metropolitan Borough Council,http://www.sandwell.gov.uk/info/200202/performance_and_spending/1079/payments_over_500,09-Apr-2021,Housing & Communities,ST ALBANS COMMUNITY ASSOCIATION,Neighbourhoods,50012.50,Grant Payments,2122P01_CR00400,08323189
Sandwell Metropolitan Borough Council,http://www.sandwell.gov.uk/info/200202/performance_and_spending/1079/payments_over_500,09-Apr-2021,Housing & Communities,SANDWELL CONSORTIUM CIC,Neighbourhoods,170285.00,Grant Payments,2122P01_CR00401,104616
Sandwell Metropolitan Borough Council,http://www.sandwell.gov.uk/info/200202/performance_and_spending/1079/payments_over_500,09-Apr-2021,Housing & Communities,SANDWELL CITIZENS ADVICE BUREAUX,Neighbourhoods,349294.00,Grant Payments,2122P01_CR00402,01760899
Sandwell Metropolitan Borough Council,http://www.sandwell.gov.uk/info/200202/performance_and_spending/1079/payments_over_500,09-Apr-2021,Housing & Communities,S.C.V.O.,Housing & Communities Capital,154313.00,Grant Payments,2122P01_CR00403,109813
Sandwell Metropolitan Borough Council,http://www.sandwell.gov.uk/info/200202/performance_and_spending/1079/payments_over_500,09-Apr-2021,Housing & Communities,AGAPE MINISTRIES,Neighbourhoods,2667.00,Grant Payments,2122P01_CR00404,112863
Sandwell Metropolitan Borough Council,http://www.sandwell.gov.uk/info/200202/performance_and_spending/1079/payments_over_500,09-Apr-2021,Housing & Communities,SANDWELL COMMUNITY HUBS CO-OPERATIVE,Neighbourhoods,7467.50,Grant Payments,2122P01_CR00405,112422
Sandwell Metropolitan Borough Council,http://www.sandwell.gov.uk/info/200202/performance_and_spending/1079/payments_over_500,09-Apr-2021,Housing & Communities,REDACTED PERSONAL DATA,Neighbourhoods,7917.50,Grant Payments,2122P01_CR00406,REDACTED PERSONAL DATA
Sandwell Metropolitan Borough Council,http://www.sandwell.gov.uk/info/200202/performance_and_spending/1079/payments_over_500,12-Apr-2021,Housing & Communities,SMETHWICK CHURCH ACTION NETWORK,Neighbourhoods,12000.00,Grant Payments,2122P01_CR00407,118380
Sandwell Metropolitan Borough Council,http://www.sandwell.gov.uk/info/200202/performance_and_spending/1079/payments_over_500,09-Apr-2021,Housing & Communities,SANDWELL COMMUNITY HUBS CO-OPERATIVE,Neighbourhoods,12535.00,Grant Payments,2122P01_CR00408,112422
Sandwell Metropolitan Borough Council,http://www.sandwell.gov.uk/info/200202/performance_and_spending/1079/payments_over_500,09-Apr-2021,Housing & Communities,S.C.V.O.,Neighbourhoods,14500.00,Grant Payments,2122P01_CR00409,109813
Sandwell Metropolitan Borough Council,http://www.sandwell.gov.uk/info/200202/performance_and_spending/1079/payments_over_500,01-Apr-2021,Housing Revenue Account Capital,PR PROPERTY MAINTENANCE,Housing Revenue Account Capital,1395.44,Deferred Charges/Grant Payments,2122P01_CR00410,33836
Sandwell Metropolitan Borough Council,http://www.sandwell.gov.uk/info/200202/performance_and_spending/1079/payments_over_500,23-Apr-2021,Housing Revenue Account Capital,DOLPHIN LIFTS MIDLANDS LTD,Housing Revenue Account Capital,4425.00,Deferred Charges/Grant Payments,2122P01_CR00411,123852
Sandwell Metropolitan Borough Council,http://www.sandwell.gov.uk/info/200202/performance_and_spending/1079/payments_over_500,01-Apr-2021,Housing Revenue Account Capital,PR PROPERTY MAINTENANCE,Housing Revenue Account Capital,6759.26,Deferred Charges/Grant Payments,2122P01_CR00412,33836
Sandwell Metropolitan Borough Council,http://www.sandwell.gov.uk/info/200202/performance_and_spending/1079/payments_over_500,01-Apr-2021,Housing Revenue Account Capital,VINCI CONSTRUCTION LTD,Housing Revenue Account Capital,1175.10,Deferred Charges/Grant Payments,2122P01_CR00413,36361
Sandwell Metropolitan Borough Council,http://www.sandwell.gov.uk/info/200202/performance_and_spending/1079/payments_over_500,01-Apr-2021,Housing Revenue Account Capital,LOVELL PARTNERSHIPS  LTD,Housing Revenue Account Capital,2220.31,"CIP - New Construction,Conversion, Enhancement & Reno",2122P01_CR00414,77007398
Sandwell Metropolitan Borough Council,http://www.sandwell.gov.uk/info/200202/performance_and_spending/1079/payments_over_500,07-Apr-2021,Housing Revenue Account Capital,AXIS EUROPE PLC                                                           02,Housing Revenue Account Capital,3996.94,Deferred Charges/Grant Payments,2122P01_CR00415,64946
Sandwell Metropolitan Borough Council,http://www.sandwell.gov.uk/info/200202/performance_and_spending/1079/payments_over_500,07-Apr-2021,Housing Revenue Account Capital,AXIS EUROPE PLC                                                           02,Housing Revenue Account Capital,4507.32,Deferred Charges/Grant Payments,2122P01_CR00416,64946
Sandwell Metropolitan Borough Council,http://www.sandwell.gov.uk/info/200202/performance_and_spending/1079/payments_over_500,01-Apr-2021,Housing Revenue Account Capital,VINCI CONSTRUCTION LTD,Housing Revenue Account Capital,4742.95,Deferred Charges/Grant Payments,2122P01_CR00417,36361
Sandwell Metropolitan Borough Council,http://www.sandwell.gov.uk/info/200202/performance_and_spending/1079/payments_over_500,07-Apr-2021,Housing Revenue Account Capital,VINCI CONSTRUCTION LTD,Housing Revenue Account Capital,4834.53,Deferred Charges/Grant Payments,2122P01_CR00418,36361
Sandwell Metropolitan Borough Council,http://www.sandwell.gov.uk/info/200202/performance_and_spending/1079/payments_over_500,07-Apr-2021,Housing Revenue Account Capital,VINCI CONSTRUCTION LTD,Housing Revenue Account Capital,4918.66,Deferred Charges/Grant Payments,2122P01_CR00419,36361
Sandwell Metropolitan Borough Council,http://www.sandwell.gov.uk/info/200202/performance_and_spending/1079/payments_over_500,01-Apr-2021,Housing Revenue Account Capital,VINCI CONSTRUCTION LTD,Housing Revenue Account Capital,4953.83,Deferred Charges/Grant Payments,2122P01_CR00420,36361
Sandwell Metropolitan Borough Council,http://www.sandwell.gov.uk/info/200202/performance_and_spending/1079/payments_over_500,01-Apr-2021,Housing Revenue Account Capital,AXIS EUROPE PLC                                                           02,Housing Revenue Account Capital,5089.62,Deferred Charges/Grant Payments,2122P01_CR00421,64946
Sandwell Metropolitan Borough Council,http://www.sandwell.gov.uk/info/200202/performance_and_spending/1079/payments_over_500,01-Apr-2021,Housing Revenue Account Capital,AXIS EUROPE PLC                                                           02,Housing Revenue Account Capital,5146.67,Deferred Charges/Grant Payments,2122P01_CR00422,64946
Sandwell Metropolitan Borough Council,http://www.sandwell.gov.uk/info/200202/performance_and_spending/1079/payments_over_500,21-Apr-2021,Housing Revenue Account Capital,AXIS EUROPE PLC                                                           02,Housing Revenue Account Capital,5148.66,Deferred Charges/Grant Payments,2122P01_CR00423,64946
Sandwell Metropolitan Borough Council,http://www.sandwell.gov.uk/info/200202/performance_and_spending/1079/payments_over_500,01-Apr-2021,Housing Revenue Account Capital,VINCI CONSTRUCTION LTD,Housing Revenue Account Capital,5199.81,Deferred Charges/Grant Payments,2122P01_CR00424,36361
Sandwell Metropolitan Borough Council,http://www.sandwell.gov.uk/info/200202/performance_and_spending/1079/payments_over_500,01-Apr-2021,Housing Revenue Account Capital,AXIS EUROPE PLC                                                           02,Housing Revenue Account Capital,5335.88,Deferred Charges/Grant Payments,2122P01_CR00425,64946
Sandwell Metropolitan Borough Council,http://www.sandwell.gov.uk/info/200202/performance_and_spending/1079/payments_over_500,07-Apr-2021,Housing Revenue Account Capital,VINCI CONSTRUCTION LTD,Housing Revenue Account Capital,5378.45,Deferred Charges/Grant Payments,2122P01_CR00426,36361
Sandwell Metropolitan Borough Council,http://www.sandwell.gov.uk/info/200202/performance_and_spending/1079/payments_over_500,01-Apr-2021,Housing Revenue Account Capital,VINCI CONSTRUCTION LTD,Housing Revenue Account Capital,5389.94,Deferred Charges/Grant Payments,2122P01_CR00427,36361
Sandwell Metropolitan Borough Council,http://www.sandwell.gov.uk/info/200202/performance_and_spending/1079/payments_over_500,01-Apr-2021,Housing Revenue Account Capital,AXIS EUROPE PLC                                                           02,Housing Revenue Account Capital,5497.24,Deferred Charges/Grant Payments,2122P01_CR00428,64946
Sandwell Metropolitan Borough Council,http://www.sandwell.gov.uk/info/200202/performance_and_spending/1079/payments_over_500,01-Apr-2021,Housing Revenue Account Capital,VINCI CONSTRUCTION LTD,Housing Revenue Account Capital,5698.73,Deferred Charges/Grant Payments,2122P01_CR00429,36361
Sandwell Metropolitan Borough Council,http://www.sandwell.gov.uk/info/200202/performance_and_spending/1079/payments_over_500,01-Apr-2021,Housing Revenue Account Capital,AXIS EUROPE PLC                                                           02,Housing Revenue Account Capital,5794.65,Deferred Charges/Grant Payments,2122P01_CR00430,64946
Sandwell Metropolitan Borough Council,http://www.sandwell.gov.uk/info/200202/performance_and_spending/1079/payments_over_500,01-Apr-2021,Housing Revenue Account Capital,AXIS EUROPE PLC                                                           02,Housing Revenue Account Capital,5853.80,Deferred Charges/Grant Payments,2122P01_CR00431,64946
Sandwell Metropolitan Borough Council,http://www.sandwell.gov.uk/info/200202/performance_and_spending/1079/payments_over_500,07-Apr-2021,Housing Revenue Account Capital,AXIS EUROPE PLC                                                           02,Housing Revenue Account Capital,5856.12,Deferred Charges/Grant Payments,2122P01_CR00432,64946
Sandwell Metropolitan Borough Council,http://www.sandwell.gov.uk/info/200202/performance_and_spending/1079/payments_over_500,01-Apr-2021,Housing Revenue Account Capital,VINCI CONSTRUCTION LTD,Housing Revenue Account Capital,6536.28,Deferred Charges/Grant Payments,2122P01_CR00433,36361
Sandwell Metropolitan Borough Council,http://www.sandwell.gov.uk/info/200202/performance_and_spending/1079/payments_over_500,01-Apr-2021,Housing Revenue Account Capital,AXIS EUROPE PLC                                                           02,Housing Revenue Account Capital,6577.14,Deferred Charges/Grant Payments,2122P01_CR00434,64946
Sandwell Metropolitan Borough Council,http://www.sandwell.gov.uk/info/200202/performance_and_spending/1079/payments_over_500,01-Apr-2021,Housing Revenue Account Capital,AXIS EUROPE PLC                                                           02,Housing Revenue Account Capital,7789.65,Deferred Charges/Grant Payments,2122P01_CR00435,64946
Sandwell Metropolitan Borough Council,http://www.sandwell.gov.uk/info/200202/performance_and_spending/1079/payments_over_500,01-Apr-2021,Housing Revenue Account Capital,VINCI CONSTRUCTION LTD,Housing Revenue Account Capital,8954.54,Deferred Charges/Grant Payments,2122P01_CR00436,36361
Sandwell Metropolitan Borough Council,http://www.sandwell.gov.uk/info/200202/performance_and_spending/1079/payments_over_500,01-Apr-2021,Housing Revenue Account Capital,OPENVIEW SECURITY SOLUTIONS LIMITED,Housing Revenue Account Capital,21216.12,"CIP - New Construction,Conversion, Enhancement & Reno",2122P01_CR00437,77000151
Sandwell Metropolitan Borough Council,http://www.sandwell.gov.uk/info/200202/performance_and_spending/1079/payments_over_500,01-Apr-2021,Housing Revenue Account Capital,LOVELL PARTNERSHIPS  LTD,Housing Revenue Account Capital,39302.72,"CIP - New Construction,Conversion, Enhancement & Reno",2122P01_CR00438,77007398
Sandwell Metropolitan Borough Council,http://www.sandwell.gov.uk/info/200202/performance_and_spending/1079/payments_over_500,01-Apr-2021,Housing Revenue Account Capital,AXIS EUROPE PLC                                                           02,Housing Revenue Account Capital,63225.68,Deferred Charges/Grant Payments,2122P01_CR00439,64946
Sandwell Metropolitan Borough Council,http://www.sandwell.gov.uk/info/200202/performance_and_spending/1079/payments_over_500,16-Apr-2021,Housing Revenue Account Capital,VINCI CONSTRUCTION LTD,Housing Revenue Account Capital,117560.88,"CIP - New Construction,Conversion, Enhancement & Reno",2122P01_CR00440,36361
Sandwell Metropolitan Borough Council,http://www.sandwell.gov.uk/info/200202/performance_and_spending/1079/payments_over_500,01-Apr-2021,Housing Revenue Account Capital,LOVELL PARTNERSHIPS  LTD,Housing Revenue Account Capital,146531.66,"CIP - New Construction,Conversion, Enhancement & Reno",2122P01_CR00441,77007398
Sandwell Metropolitan Borough Council,http://www.sandwell.gov.uk/info/200202/performance_and_spending/1079/payments_over_500,01-Apr-2021,Housing Revenue Account Capital,VINCI CONSTRUCTION LTD,Housing Revenue Account Capital,152695.09,"CIP - New Construction,Conversion, Enhancement & Reno",2122P01_CR00442,36361
Sandwell Metropolitan Borough Council,http://www.sandwell.gov.uk/info/200202/performance_and_spending/1079/payments_over_500,11-Apr-2021,Housing Revenue Account Capital,SEDDON CONSTRUCTION LIMITED,Housing Revenue Account Capital,252778.30,"CIP - New Construction,Conversion, Enhancement & Reno",2122P01_CR00443,132999
Sandwell Metropolitan Borough Council,http://www.sandwell.gov.uk/info/200202/performance_and_spending/1079/payments_over_500,16-Apr-2021,Housing Revenue Account Capital,VINCI CONSTRUCTION LTD,Housing Revenue Account Capital,566336.20,"CIP - New Construction,Conversion, Enhancement & Reno",2122P01_CR00444,36361
Sandwell Metropolitan Borough Council,http://www.sandwell.gov.uk/info/200202/performance_and_spending/1079/payments_over_500,01-Apr-2021,Housing Revenue Account Capital,LOVELL PARTNERSHIPS  LTD,Housing Revenue Account Capital,787690.65,"CIP - New Construction,Conversion, Enhancement & Reno",2122P01_CR00445,77007398
Sandwell Metropolitan Borough Council,http://www.sandwell.gov.uk/info/200202/performance_and_spending/1079/payments_over_500,01-Apr-2021,Housing Revenue Account Capital,SELECT WINDOWS (HOME IMPROVEMENTS) LIMITED,Housing Revenue Account Capital,500.50,Contract Payments,2122P01_CR00446,42616
Sandwell Metropolitan Borough Council,http://www.sandwell.gov.uk/info/200202/performance_and_spending/1079/payments_over_500,01-Apr-2021,Housing Revenue Account Capital,SELECT WINDOWS (HOME IMPROVEMENTS) LIMITED,Housing Revenue Account Capital,504.00,Contract Payments,2122P01_CR00447,42616
Sandwell Metropolitan Borough Council,http://www.sandwell.gov.uk/info/200202/performance_and_spending/1079/payments_over_500,14-Apr-2021,Housing Revenue Account Capital,SELECT WINDOWS (HOME IMPROVEMENTS) LIMITED,Housing Revenue Account Capital,613.00,Contract Payments,2122P01_CR00448,42616
Sandwell Metropolitan Borough Council,http://www.sandwell.gov.uk/info/200202/performance_and_spending/1079/payments_over_500,01-Apr-2021,Housing Revenue Account Capital,SELECT WINDOWS (HOME IMPROVEMENTS) LIMITED,Housing Revenue Account Capital,623.00,Contract Payments,2122P01_CR00449,42616
Sandwell Metropolitan Borough Council,http://www.sandwell.gov.uk/info/200202/performance_and_spending/1079/payments_over_500,14-Apr-2021,Housing Revenue Account Capital,SELECT WINDOWS (HOME IMPROVEMENTS) LIMITED,Housing Revenue Account Capital,644.00,Contract Payments,2122P01_CR00450,42616
Sandwell Metropolitan Borough Council,http://www.sandwell.gov.uk/info/200202/performance_and_spending/1079/payments_over_500,14-Apr-2021,Housing Revenue Account Capital,SELECT WINDOWS (HOME IMPROVEMENTS) LIMITED,Housing Revenue Account Capital,693.25,Contract Payments,2122P01_CR00451,42616
Sandwell Metropolitan Borough Council,http://www.sandwell.gov.uk/info/200202/performance_and_spending/1079/payments_over_500,14-Apr-2021,Housing Revenue Account Capital,SELECT WINDOWS (HOME IMPROVEMENTS) LIMITED,Housing Revenue Account Capital,718.30,Contract Payments,2122P01_CR00452,42616
Sandwell Metropolitan Borough Council,http://www.sandwell.gov.uk/info/200202/performance_and_spending/1079/payments_over_500,14-Apr-2021,Housing Revenue Account Capital,SELECT WINDOWS (HOME IMPROVEMENTS) LIMITED,Housing Revenue Account Capital,721.00,Contract Payments,2122P01_CR00453,42616
Sandwell Metropolitan Borough Council,http://www.sandwell.gov.uk/info/200202/performance_and_spending/1079/payments_over_500,01-Apr-2021,Housing Revenue Account Capital,SELECT WINDOWS (HOME IMPROVEMENTS) LIMITED,Housing Revenue Account Capital,826.00,Contract Payments,2122P01_CR00454,42616
Sandwell Metropolitan Borough Council,http://www.sandwell.gov.uk/info/200202/performance_and_spending/1079/payments_over_500,14-Apr-2021,Housing Revenue Account Capital,SELECT WINDOWS (HOME IMPROVEMENTS) LIMITED,Housing Revenue Account Capital,2364.90,Contract Payments,2122P01_CR00455,42616
Sandwell Metropolitan Borough Council,http://www.sandwell.gov.uk/info/200202/performance_and_spending/1079/payments_over_500,01-Apr-2021,Housing Revenue Account Capital,T.A. SMITH (BUILDERS) LIMITED,Housing Revenue Account Capital,11174.86,Deferred Charges/Grant Payments,2122P01_CR00456,89846
Sandwell Metropolitan Borough Council,http://www.sandwell.gov.uk/info/200202/performance_and_spending/1079/payments_over_500,01-Apr-2021,Housing Revenue Account Capital,SPELLER METCALFE MALVERN LIMITED,Housing Revenue Account Capital,962294.03,"CIP - New Construction,Conversion, Enhancement & Reno",2122P01_CR00457,92473
Sandwell Metropolitan Borough Council,http://www.sandwell.gov.uk/info/200202/performance_and_spending/1079/payments_over_500,08-Apr-2021,Housing Revenue Account Capital,NICHOLLS COLTON & PARTNERS LTD,Housing Revenue Account Capital,-500.00,"CIP - New Construction,Conversion, Enhancement & Reno",2122P01_CR00458,3215
Sandwell Metropolitan Borough Council,http://www.sandwell.gov.uk/info/200202/performance_and_spending/1079/payments_over_500,01-Apr-2021,Housing Revenue Account Capital,RIDGE & PARTNERS LLP,Housing Revenue Account Capital,900.00,Deferred Charges/Grant Payments,2122P01_CR00459,134994
Sandwell Metropolitan Borough Council,http://www.sandwell.gov.uk/info/200202/performance_and_spending/1079/payments_over_500,15-Apr-2021,Housing Revenue Account Capital,FRASER WOOD (MIDLANDS) LIMITED,Housing Revenue Account Capital,1960.00,Externally Purchased Professional Services ,2122P01_CR00460,57157
Sandwell Metropolitan Borough Council,http://www.sandwell.gov.uk/info/200202/performance_and_spending/1079/payments_over_500,12-Apr-2021,Housing Revenue Account Capital,FRASER WOOD (MIDLANDS) LIMITED,Housing Revenue Account Capital,4330.00,Externally Purchased Professional Services ,2122P01_CR00461,57157
Sandwell Metropolitan Borough Council,http://www.sandwell.gov.uk/info/200202/performance_and_spending/1079/payments_over_500,01-Apr-2021,Housing Revenue Account Capital,RIDGE & PARTNERS LLP,Housing Revenue Account Capital,4975.00,"CIP - New Construction,Conversion, Enhancement & Reno",2122P01_CR00462,134994
Sandwell Metropolitan Borough Council,http://www.sandwell.gov.uk/info/200202/performance_and_spending/1079/payments_over_500,01-Apr-2021,Housing Revenue Account Capital,POWRED HEATING COMPONENTS LIMITED,Housing Revenue Account Capital,5393.56,Materials & Consumables,2122P01_CR00463,133978
Sandwell Metropolitan Borough Council,http://www.sandwell.gov.uk/info/200202/performance_and_spending/1079/payments_over_500,01-Apr-2021,Housing Revenue Account Capital,NICHOLLS COLTON & PARTNERS LTD,Housing Revenue Account Capital,5575.00,"CIP - New Construction,Conversion, Enhancement & Reno",2122P01_CR00464,3215
Sandwell Metropolitan Borough Council,http://www.sandwell.gov.uk/info/200202/performance_and_spending/1079/payments_over_500,17-Apr-2021,Housing Revenue Account Capital,POWRED HEATING COMPONENTS LIMITED,Housing Revenue Account Capital,7620.36,Materials & Consumables,2122P01_CR00465,133978
Sandwell Metropolitan Borough Council,http://www.sandwell.gov.uk/info/200202/performance_and_spending/1079/payments_over_500,10-Apr-2021,Housing Revenue Account Capital,POWRED HEATING COMPONENTS LIMITED,Housing Revenue Account Capital,8313.71,Materials & Consumables,2122P01_CR00466,133978
Sandwell Metropolitan Borough Council,http://www.sandwell.gov.uk/info/200202/performance_and_spending/1079/payments_over_500,01-Apr-2021,Housing Revenue Account Capital,NICHOLLS COLTON & PARTNERS LTD,Housing Revenue Account Capital,8360.00,"CIP - New Construction,Conversion, Enhancement & Reno",2122P01_CR00467,3215
Sandwell Metropolitan Borough Council,http://www.sandwell.gov.uk/info/200202/performance_and_spending/1079/payments_over_500,01-Apr-2021,Housing Revenue Account Capital,POWRED HEATING COMPONENTS LIMITED,Housing Revenue Account Capital,11170.16,Materials & Consumables,2122P01_CR00468,133978
Sandwell Metropolitan Borough Council,http://www.sandwell.gov.uk/info/200202/performance_and_spending/1079/payments_over_500,01-Apr-2021,Housing Revenue Account Capital,POWRED HEATING COMPONENTS LIMITED,Housing Revenue Account Capital,13264.93,Materials & Consumables,2122P01_CR00469,133978
Sandwell Metropolitan Borough Council,http://www.sandwell.gov.uk/info/200202/performance_and_spending/1079/payments_over_500,06-Apr-2021,Housing Revenue Account Capital,SURE MAINTENANCE LIMITED,Housing Revenue Account Capital,297981.50,"CIP - New Construction,Conversion, Enhancement & Reno",2122P01_CR00470,93926
Sandwell Metropolitan Borough Council,http://www.sandwell.gov.uk/info/200202/performance_and_spending/1079/payments_over_500,19-Apr-2021,Housing Revenue Account Capital,HIGGS AND SONS SOLICITORS ,Housing Revenue Account Capital,132293.00,CIP - Acquisition of Land & Existing Buildings,2122P01_CR00471,120965
Sandwell Metropolitan Borough Council,http://www.sandwell.gov.uk/info/200202/performance_and_spending/1079/payments_over_500,16-Apr-2021,Housing Revenue Account Capital,HIGGS AND SONS SOLICITORS ,Housing Revenue Account Capital,132293.00,CIP - Acquisition of Land & Existing Buildings,2122P01_CR00472,120965
Sandwell Metropolitan Borough Council,http://www.sandwell.gov.uk/info/200202/performance_and_spending/1079/payments_over_500,14-Apr-2021,Housing Revenue Account Capital,HIGGS AND SONS SOLICITORS ,Housing Revenue Account Capital,160618.00,CIP - Acquisition of Land & Existing Buildings,2122P01_CR00473,120965
Sandwell Metropolitan Borough Council,http://www.sandwell.gov.uk/info/200202/performance_and_spending/1079/payments_over_500,06-Apr-2021,Housing Revenue Account Capital,HIGGS AND SONS SOLICITORS ,Housing Revenue Account Capital,163287.20,CIP - Acquisition of Land & Existing Buildings,2122P01_CR00474,120965
Sandwell Metropolitan Borough Council,http://www.sandwell.gov.uk/info/200202/performance_and_spending/1079/payments_over_500,08-Apr-2021,Housing Revenue Account Capital,HIGGS AND SONS SOLICITORS ,Housing Revenue Account Capital,182339.20,CIP - Acquisition of Land & Existing Buildings,2122P01_CR00475,120965
Sandwell Metropolitan Borough Council,http://www.sandwell.gov.uk/info/200202/performance_and_spending/1079/payments_over_500,06-Apr-2021,Housing Revenue Account Capital,HIGGS AND SONS SOLICITORS ,Housing Revenue Account Capital,184308.00,CIP - Acquisition of Land & Existing Buildings,2122P01_CR00476,120965
Sandwell Metropolitan Borough Council,http://www.sandwell.gov.uk/info/200202/performance_and_spending/1079/payments_over_500,01-Apr-2021,Housing Revenue Account Capital,MARY HACKETT & ASSOCIATES LTD,Housing Revenue Account Capital,22380.00,Deferred Charges/Grant Payments,2122P01_CR00477,149837
Sandwell Metropolitan Borough Council,http://www.sandwell.gov.uk/info/200202/performance_and_spending/1079/payments_over_500,21-Apr-2021,Individual School Budgets With Inclusion,LITTLE VALERS PRE SCHOOL,Individual School Budgets With Inclusion,3139.20,Grant Payments,2122P01_CR00478,99107
Sandwell Metropolitan Borough Council,http://www.sandwell.gov.uk/info/200202/performance_and_spending/1079/payments_over_500,21-Apr-2021,Individual School Budgets With Inclusion,REDACTED PERSONAL DATA,Individual School Budgets With Inclusion,588.60,Grant Payments,2122P01_CR00479,REDACTED PERSONAL DATA
Sandwell Metropolitan Borough Council,http://www.sandwell.gov.uk/info/200202/performance_and_spending/1079/payments_over_500,01-Apr-2021,Individual School Budgets With Inclusion,REDACTED PERSONAL DATA,Individual School Budgets With Inclusion,774.00,Grant Payments,2122P01_CR00480,REDACTED PERSONAL DATA
Sandwell Metropolitan Borough Council,http://www.sandwell.gov.uk/info/200202/performance_and_spending/1079/payments_over_500,21-Apr-2021,Individual School Budgets With Inclusion,REDACTED PERSONAL DATA,Individual School Budgets With Inclusion,784.80,Grant Payments,2122P01_CR00481,REDACTED PERSONAL DATA
Sandwell Metropolitan Borough Council,http://www.sandwell.gov.uk/info/200202/performance_and_spending/1079/payments_over_500,21-Apr-2021,Individual School Budgets With Inclusion,ROOTS & SHOOTS PLAYGROUP,Individual School Budgets With Inclusion,4492.80,Grant Payments,2122P01_CR00482,75502
Sandwell Metropolitan Borough Council,http://www.sandwell.gov.uk/info/200202/performance_and_spending/1079/payments_over_500,21-Apr-2021,Individual School Budgets With Inclusion,5 STAR DAY NURSERY LIMITED,Individual School Budgets With Inclusion,8044.20,Grant Payments,2122P01_CR00483,105382
Sandwell Metropolitan Borough Council,http://www.sandwell.gov.uk/info/200202/performance_and_spending/1079/payments_over_500,21-Apr-2021,Individual School Budgets With Inclusion,REDACTED PERSONAL DATA,Individual School Budgets With Inclusion,784.80,Grant Payments,2122P01_CR00484,REDACTED PERSONAL DATA
Sandwell Metropolitan Borough Council,http://www.sandwell.gov.uk/info/200202/performance_and_spending/1079/payments_over_500,21-Apr-2021,Individual School Budgets With Inclusion,LITTLE ANGELS DAY NURSERY LIMITED,Individual School Budgets With Inclusion,4816.80,Grant Payments,2122P01_CR00485,10207
Sandwell Metropolitan Borough Council,http://www.sandwell.gov.uk/info/200202/performance_and_spending/1079/payments_over_500,21-Apr-2021,Individual School Budgets With Inclusion,REDACTED PERSONAL DATA,Individual School Budgets With Inclusion,588.60,Grant Payments,2122P01_CR00486,REDACTED PERSONAL DATA
Sandwell Metropolitan Borough Council,http://www.sandwell.gov.uk/info/200202/performance_and_spending/1079/payments_over_500,21-Apr-2021,Individual School Budgets With Inclusion,MAC-E-MOOZ DAYCARE LTD,Individual School Budgets With Inclusion,615.60,Grant Payments,2122P01_CR00487,112058
Sandwell Metropolitan Borough Council,http://www.sandwell.gov.uk/info/200202/performance_and_spending/1079/payments_over_500,21-Apr-2021,Individual School Budgets With Inclusion,REDACTED PERSONAL DATA,Individual School Budgets With Inclusion,622.35,Grant Payments,2122P01_CR00488,REDACTED PERSONAL DATA
Sandwell Metropolitan Borough Council,http://www.sandwell.gov.uk/info/200202/performance_and_spending/1079/payments_over_500,21-Apr-2021,Individual School Budgets With Inclusion,REDACTED PERSONAL DATA,Individual School Budgets With Inclusion,622.35,Grant Payments,2122P01_CR00489,REDACTED PERSONAL DATA
Sandwell Metropolitan Borough Council,http://www.sandwell.gov.uk/info/200202/performance_and_spending/1079/payments_over_500,21-Apr-2021,Individual School Budgets With Inclusion,REDACTED PERSONAL DATA,Individual School Budgets With Inclusion,784.80,Grant Payments,2122P01_CR00490,REDACTED PERSONAL DATA
Sandwell Metropolitan Borough Council,http://www.sandwell.gov.uk/info/200202/performance_and_spending/1079/payments_over_500,21-Apr-2021,Individual School Budgets With Inclusion,REDACTED PERSONAL DATA,Individual School Budgets With Inclusion,784.80,Grant Payments,2122P01_CR00491,REDACTED PERSONAL DATA
Sandwell Metropolitan Borough Council,http://www.sandwell.gov.uk/info/200202/performance_and_spending/1079/payments_over_500,21-Apr-2021,Individual School Budgets With Inclusion,REDACTED PERSONAL DATA,Individual School Budgets With Inclusion,784.80,Grant Payments,2122P01_CR00492,REDACTED PERSONAL DATA
Sandwell Metropolitan Borough Council,http://www.sandwell.gov.uk/info/200202/performance_and_spending/1079/payments_over_500,21-Apr-2021,Individual School Budgets With Inclusion,REDACTED PERSONAL DATA,Individual School Budgets With Inclusion,802.80,Grant Payments,2122P01_CR00493,REDACTED PERSONAL DATA
Sandwell Metropolitan Borough Council,http://www.sandwell.gov.uk/info/200202/performance_and_spending/1079/payments_over_500,21-Apr-2021,Individual School Budgets With Inclusion,REDACTED PERSONAL DATA,Individual School Budgets With Inclusion,829.80,Grant Payments,2122P01_CR00494,REDACTED PERSONAL DATA
Sandwell Metropolitan Borough Council,http://www.sandwell.gov.uk/info/200202/performance_and_spending/1079/payments_over_500,21-Apr-2021,Individual School Budgets With Inclusion,REDACTED PERSONAL DATA,Individual School Budgets With Inclusion,941.76,Grant Payments,2122P01_CR00495,REDACTED PERSONAL DATA
Sandwell Metropolitan Borough Council,http://www.sandwell.gov.uk/info/200202/performance_and_spending/1079/payments_over_500,21-Apr-2021,Individual School Budgets With Inclusion,REDACTED PERSONAL DATA,Individual School Budgets With Inclusion,972.41,Grant Payments,2122P01_CR00496,REDACTED PERSONAL DATA
Sandwell Metropolitan Borough Council,http://www.sandwell.gov.uk/info/200202/performance_and_spending/1079/payments_over_500,21-Apr-2021,Individual School Budgets With Inclusion,REDACTED PERSONAL DATA,Individual School Budgets With Inclusion,981.00,Grant Payments,2122P01_CR00497,REDACTED PERSONAL DATA
Sandwell Metropolitan Borough Council,http://www.sandwell.gov.uk/info/200202/performance_and_spending/1079/payments_over_500,21-Apr-2021,Individual School Budgets With Inclusion,BLUEBERRY DAY NURSERY,Individual School Budgets With Inclusion,1177.20,Grant Payments,2122P01_CR00498,141884
Sandwell Metropolitan Borough Council,http://www.sandwell.gov.uk/info/200202/performance_and_spending/1079/payments_over_500,21-Apr-2021,Individual School Budgets With Inclusion,REDACTED PERSONAL DATA,Individual School Budgets With Inclusion,1177.20,Grant Payments,2122P01_CR00499,REDACTED PERSONAL DATA
Sandwell Metropolitan Borough Council,http://www.sandwell.gov.uk/info/200202/performance_and_spending/1079/payments_over_500,21-Apr-2021,Individual School Budgets With Inclusion,REDACTED PERSONAL DATA,Individual School Budgets With Inclusion,1373.40,Grant Payments,2122P01_CR00500,REDACTED PERSONAL DATA
Sandwell Metropolitan Borough Council,http://www.sandwell.gov.uk/info/200202/performance_and_spending/1079/payments_over_500,21-Apr-2021,Individual School Budgets With Inclusion,REDACTED PERSONAL DATA,Individual School Budgets With Inclusion,1452.15,Grant Payments,2122P01_CR00501,REDACTED PERSONAL DATA
Sandwell Metropolitan Borough Council,http://www.sandwell.gov.uk/info/200202/performance_and_spending/1079/payments_over_500,21-Apr-2021,Individual School Budgets With Inclusion,REDACTED PERSONAL DATA,Individual School Budgets With Inclusion,1984.50,Grant Payments,2122P01_CR00502,REDACTED PERSONAL DATA
Sandwell Metropolitan Borough Council,http://www.sandwell.gov.uk/info/200202/performance_and_spending/1079/payments_over_500,21-Apr-2021,Individual School Budgets With Inclusion,BOOKWORMS DAYCARE BRICKHOUSE,Individual School Budgets With Inclusion,2223.72,Grant Payments,2122P01_CR00503,127727
Sandwell Metropolitan Borough Council,http://www.sandwell.gov.uk/info/200202/performance_and_spending/1079/payments_over_500,21-Apr-2021,Individual School Budgets With Inclusion,TINY STEPS,Individual School Budgets With Inclusion,2408.40,Grant Payments,2122P01_CR00504,125778
Sandwell Metropolitan Borough Council,http://www.sandwell.gov.uk/info/200202/performance_and_spending/1079/payments_over_500,21-Apr-2021,Individual School Budgets With Inclusion,TWO STEPS PRE-SCHOOL,Individual School Budgets With Inclusion,3010.50,Grant Payments,2122P01_CR00505,109186
Sandwell Metropolitan Borough Council,http://www.sandwell.gov.uk/info/200202/performance_and_spending/1079/payments_over_500,21-Apr-2021,Individual School Budgets With Inclusion,TIP TOP DAY NURSERY WEDNESBURY,Individual School Budgets With Inclusion,3139.20,Grant Payments,2122P01_CR00506,147082
Sandwell Metropolitan Borough Council,http://www.sandwell.gov.uk/info/200202/performance_and_spending/1079/payments_over_500,21-Apr-2021,Individual School Budgets With Inclusion,LITTLE STEPPERS,Individual School Budgets With Inclusion,5186.25,Grant Payments,2122P01_CR00507,120240
Sandwell Metropolitan Borough Council,http://www.sandwell.gov.uk/info/200202/performance_and_spending/1079/payments_over_500,21-Apr-2021,Individual School Budgets With Inclusion,UNITED KIDS CHILDCARE,Individual School Budgets With Inclusion,6422.40,Grant Payments,2122P01_CR00508,134806
Sandwell Metropolitan Borough Council,http://www.sandwell.gov.uk/info/200202/performance_and_spending/1079/payments_over_500,21-Apr-2021,Individual School Budgets With Inclusion,HAPPY DAYS NURSERY (GREETS GREEN),Individual School Budgets With Inclusion,6566.40,Grant Payments,2122P01_CR00509,125840
Sandwell Metropolitan Borough Council,http://www.sandwell.gov.uk/info/200202/performance_and_spending/1079/payments_over_500,21-Apr-2021,Individual School Budgets With Inclusion,BANANA MOON DAY NURSERY,Individual School Budgets With Inclusion,7425.90,Grant Payments,2122P01_CR00510,124220
Sandwell Metropolitan Borough Council,http://www.sandwell.gov.uk/info/200202/performance_and_spending/1079/payments_over_500,21-Apr-2021,Individual School Budgets With Inclusion,FIRST STEPS OLDBURY,Individual School Budgets With Inclusion,7541.10,Grant Payments,2122P01_CR00511,118886
Sandwell Metropolitan Borough Council,http://www.sandwell.gov.uk/info/200202/performance_and_spending/1079/payments_over_500,21-Apr-2021,Individual School Budgets With Inclusion,MINNS LIMITED,Individual School Budgets With Inclusion,7626.60,Grant Payments,2122P01_CR00512,120067
Sandwell Metropolitan Borough Council,http://www.sandwell.gov.uk/info/200202/performance_and_spending/1079/payments_over_500,21-Apr-2021,Individual School Budgets With Inclusion,KANGAROO POUCH AT GREAT BRIDGE,Individual School Budgets With Inclusion,7938.00,Grant Payments,2122P01_CR00513,129771
Sandwell Metropolitan Borough Council,http://www.sandwell.gov.uk/info/200202/performance_and_spending/1079/payments_over_500,21-Apr-2021,Individual School Budgets With Inclusion,TIPTON EXPLORERS NURSERY,Individual School Budgets With Inclusion,8429.40,Grant Payments,2122P01_CR00514,132351
Sandwell Metropolitan Borough Council,http://www.sandwell.gov.uk/info/200202/performance_and_spending/1079/payments_over_500,21-Apr-2021,Individual School Budgets With Inclusion,TIDDLYWINKS KIDDYS NURSERY LIMITED,Individual School Budgets With Inclusion,9525.60,Grant Payments,2122P01_CR00515,110667
Sandwell Metropolitan Borough Council,http://www.sandwell.gov.uk/info/200202/performance_and_spending/1079/payments_over_500,21-Apr-2021,Individual School Budgets With Inclusion,5 STAR DAY NURSERY - OLDBURY,Individual School Budgets With Inclusion,9922.50,Grant Payments,2122P01_CR00516,120730
Sandwell Metropolitan Borough Council,http://www.sandwell.gov.uk/info/200202/performance_and_spending/1079/payments_over_500,21-Apr-2021,Individual School Budgets With Inclusion,GNG NURSERY,Individual School Budgets With Inclusion,10637.10,Grant Payments,2122P01_CR00517,114805
Sandwell Metropolitan Borough Council,http://www.sandwell.gov.uk/info/200202/performance_and_spending/1079/payments_over_500,21-Apr-2021,Individual School Budgets With Inclusion,BOOKWORMS DAYCARE LIMITED,Individual School Budgets With Inclusion,11311.65,Grant Payments,2122P01_CR00518,114741
Sandwell Metropolitan Borough Council,http://www.sandwell.gov.uk/info/200202/performance_and_spending/1079/payments_over_500,21-Apr-2021,Individual School Budgets With Inclusion,ST HUBERTS PRE-SCHOOL PLAYGROUP 2,Individual School Budgets With Inclusion,17662.05,Grant Payments,2122P01_CR00519,123074
Sandwell Metropolitan Borough Council,http://www.sandwell.gov.uk/info/200202/performance_and_spending/1079/payments_over_500,21-Apr-2021,Individual School Budgets With Inclusion,RARE WOOD LIMITED,Individual School Budgets With Inclusion,12927.60,Grant Payments,2122P01_CR00520,20167
Sandwell Metropolitan Borough Council,http://www.sandwell.gov.uk/info/200202/performance_and_spending/1079/payments_over_500,21-Apr-2021,Individual School Budgets With Inclusion,LITTLE FRIENDS PRE SCHOOL,Individual School Budgets With Inclusion,1605.60,Grant Payments,2122P01_CR00521,10020
Sandwell Metropolitan Borough Council,http://www.sandwell.gov.uk/info/200202/performance_and_spending/1079/payments_over_500,21-Apr-2021,Individual School Budgets With Inclusion,MOORLANDS LITTLE LEARNERS PLAYGROUP,Individual School Budgets With Inclusion,4365.90,Grant Payments,2122P01_CR00522,46390
Sandwell Metropolitan Borough Council,http://www.sandwell.gov.uk/info/200202/performance_and_spending/1079/payments_over_500,21-Apr-2021,Individual School Budgets With Inclusion,STEPPING STONES NURSERY,Individual School Budgets With Inclusion,4564.35,Grant Payments,2122P01_CR00523,50029
Sandwell Metropolitan Borough Council,http://www.sandwell.gov.uk/info/200202/performance_and_spending/1079/payments_over_500,21-Apr-2021,Individual School Budgets With Inclusion,HAPPY DAYS PRE SCHOOL,Individual School Budgets With Inclusion,5820.30,Grant Payments,2122P01_CR00524,10017
Sandwell Metropolitan Borough Council,http://www.sandwell.gov.uk/info/200202/performance_and_spending/1079/payments_over_500,21-Apr-2021,Individual School Budgets With Inclusion,CAP DAY NURSERY,Individual School Budgets With Inclusion,7260.75,Grant Payments,2122P01_CR00525,51154
Sandwell Metropolitan Borough Council,http://www.sandwell.gov.uk/info/200202/performance_and_spending/1079/payments_over_500,21-Apr-2021,Individual School Budgets With Inclusion,FIRST STEPS DAY NURSERY,Individual School Budgets With Inclusion,7626.60,Grant Payments,2122P01_CR00526,51155
Sandwell Metropolitan Borough Council,http://www.sandwell.gov.uk/info/200202/performance_and_spending/1079/payments_over_500,21-Apr-2021,Individual School Budgets With Inclusion,TIPTON NURSERY,Individual School Budgets With Inclusion,8618.40,Grant Payments,2122P01_CR00527,89881
Sandwell Metropolitan Borough Council,http://www.sandwell.gov.uk/info/200202/performance_and_spending/1079/payments_over_500,21-Apr-2021,Individual School Budgets With Inclusion,THE FAMILY NURSERY COMPANY LTD,Individual School Budgets With Inclusion,8830.80,Grant Payments,2122P01_CR00528,89879
Sandwell Metropolitan Borough Council,http://www.sandwell.gov.uk/info/200202/performance_and_spending/1079/payments_over_500,21-Apr-2021,Individual School Budgets With Inclusion,LITTLE WENDY HOUSE DAY NURSERY,Individual School Budgets With Inclusion,12242.70,Grant Payments,2122P01_CR00529,91544
Sandwell Metropolitan Borough Council,http://www.sandwell.gov.uk/info/200202/performance_and_spending/1079/payments_over_500,21-Apr-2021,Individual School Budgets With Inclusion,BRIGHT LIGHTS DAY NURSERY,Individual School Budgets With Inclusion,12722.40,Grant Payments,2122P01_CR00530,89877
Sandwell Metropolitan Borough Council,http://www.sandwell.gov.uk/info/200202/performance_and_spending/1079/payments_over_500,21-Apr-2021,Individual School Budgets With Inclusion,TINY WOODS PRE SCHOOL,Individual School Budgets With Inclusion,18639.00,Grant Payments,2122P01_CR00531,91788
Sandwell Metropolitan Borough Council,http://www.sandwell.gov.uk/info/200202/performance_and_spending/1079/payments_over_500,21-Apr-2021,Individual School Budgets With Inclusion,TIMBERTREE NEIGHBOURHOOD NURSERY,Individual School Budgets With Inclusion,12700.80,Grant Payments,2122P01_CR00532,135664
Sandwell Metropolitan Borough Council,http://www.sandwell.gov.uk/info/200202/performance_and_spending/1079/payments_over_500,21-Apr-2021,Individual School Budgets With Inclusion,REDACTED PERSONAL DATA,Individual School Budgets With Inclusion,855.44,Grant Payments,2122P01_CR00533,REDACTED PERSONAL DATA
Sandwell Metropolitan Borough Council,http://www.sandwell.gov.uk/info/200202/performance_and_spending/1079/payments_over_500,21-Apr-2021,Individual School Budgets With Inclusion,REDACTED PERSONAL DATA,Individual School Budgets With Inclusion,1203.21,Grant Payments,2122P01_CR00534,REDACTED PERSONAL DATA
Sandwell Metropolitan Borough Council,http://www.sandwell.gov.uk/info/200202/performance_and_spending/1079/payments_over_500,21-Apr-2021,Individual School Budgets With Inclusion,KANGAROO POUCH CHARLEMONT,Individual School Budgets With Inclusion,3813.30,Grant Payments,2122P01_CR00535,117283
Sandwell Metropolitan Borough Council,http://www.sandwell.gov.uk/info/200202/performance_and_spending/1079/payments_over_500,21-Apr-2021,Individual School Budgets With Inclusion,REDACTED PERSONAL DATA,Individual School Budgets With Inclusion,562.44,Grant Payments,2122P01_CR00536,REDACTED PERSONAL DATA
Sandwell Metropolitan Borough Council,http://www.sandwell.gov.uk/info/200202/performance_and_spending/1079/payments_over_500,21-Apr-2021,Individual School Budgets With Inclusion,REDACTED PERSONAL DATA,Individual School Budgets With Inclusion,784.80,Grant Payments,2122P01_CR00537,REDACTED PERSONAL DATA
Sandwell Metropolitan Borough Council,http://www.sandwell.gov.uk/info/200202/performance_and_spending/1079/payments_over_500,21-Apr-2021,Individual School Budgets With Inclusion,REDACTED PERSONAL DATA,Individual School Budgets With Inclusion,784.80,Grant Payments,2122P01_CR00538,REDACTED PERSONAL DATA
Sandwell Metropolitan Borough Council,http://www.sandwell.gov.uk/info/200202/performance_and_spending/1079/payments_over_500,21-Apr-2021,Individual School Budgets With Inclusion,REDACTED PERSONAL DATA,Individual School Budgets With Inclusion,981.00,Grant Payments,2122P01_CR00539,REDACTED PERSONAL DATA
Sandwell Metropolitan Borough Council,http://www.sandwell.gov.uk/info/200202/performance_and_spending/1079/payments_over_500,21-Apr-2021,Individual School Budgets With Inclusion,REDACTED PERSONAL DATA,Individual School Budgets With Inclusion,1003.50,Grant Payments,2122P01_CR00540,REDACTED PERSONAL DATA
Sandwell Metropolitan Borough Council,http://www.sandwell.gov.uk/info/200202/performance_and_spending/1079/payments_over_500,21-Apr-2021,Individual School Budgets With Inclusion,REDACTED PERSONAL DATA,Individual School Budgets With Inclusion,1190.70,Grant Payments,2122P01_CR00541,REDACTED PERSONAL DATA
Sandwell Metropolitan Borough Council,http://www.sandwell.gov.uk/info/200202/performance_and_spending/1079/payments_over_500,21-Apr-2021,Individual School Budgets With Inclusion,K L THAW CHILDMINDING,Individual School Budgets With Inclusion,1452.15,Grant Payments,2122P01_CR00542,104746
Sandwell Metropolitan Borough Council,http://www.sandwell.gov.uk/info/200202/performance_and_spending/1079/payments_over_500,01-Apr-2021,Individual School Budgets With Inclusion,REDACTED PERSONAL DATA,Individual School Budgets With Inclusion,1584.00,Grant Payments,2122P01_CR00543,REDACTED PERSONAL DATA
Sandwell Metropolitan Borough Council,http://www.sandwell.gov.uk/info/200202/performance_and_spending/1079/payments_over_500,21-Apr-2021,Individual School Budgets With Inclusion,REDACTED PERSONAL DATA,Individual School Budgets With Inclusion,1806.30,Grant Payments,2122P01_CR00544,REDACTED PERSONAL DATA
Sandwell Metropolitan Borough Council,http://www.sandwell.gov.uk/info/200202/performance_and_spending/1079/payments_over_500,21-Apr-2021,Individual School Budgets With Inclusion,AL KAHIR SCHOOL,Individual School Budgets With Inclusion,3813.30,Grant Payments,2122P01_CR00545,128728
Sandwell Metropolitan Borough Council,http://www.sandwell.gov.uk/info/200202/performance_and_spending/1079/payments_over_500,21-Apr-2021,Individual School Budgets With Inclusion,KANGAROO POUCH AT TIVIDALE,Individual School Budgets With Inclusion,5755.05,Grant Payments,2122P01_CR00546,113715
Sandwell Metropolitan Borough Council,http://www.sandwell.gov.uk/info/200202/performance_and_spending/1079/payments_over_500,21-Apr-2021,Individual School Budgets With Inclusion,DAFFODILS NURSERY LTD,Individual School Budgets With Inclusion,6771.60,Grant Payments,2122P01_CR00547,120066
Sandwell Metropolitan Borough Council,http://www.sandwell.gov.uk/info/200202/performance_and_spending/1079/payments_over_500,21-Apr-2021,Individual School Budgets With Inclusion,OUR LADY AND ST HUBERTS CATHOLIC PRIMARY SCHOOL                                      02,Individual School Budgets With Inclusion,10120.95,Grant Payments,2122P01_CR00548,61053
Sandwell Metropolitan Borough Council,http://www.sandwell.gov.uk/info/200202/performance_and_spending/1079/payments_over_500,21-Apr-2021,Individual School Budgets With Inclusion,REDACTED PERSONAL DATA,Individual School Budgets With Inclusion,12502.35,Grant Payments,2122P01_CR00549,REDACTED PERSONAL DATA
Sandwell Metropolitan Borough Council,http://www.sandwell.gov.uk/info/200202/performance_and_spending/1079/payments_over_500,21-Apr-2021,Individual School Budgets With Inclusion,SANDWELL NHS TRUST DAY NURSERY,Individual School Budgets With Inclusion,14718.00,Grant Payments,2122P01_CR00550,40788
Sandwell Metropolitan Borough Council,http://www.sandwell.gov.uk/info/200202/performance_and_spending/1079/payments_over_500,21-Apr-2021,Individual School Budgets With Inclusion,REDACTED PERSONAL DATA,Individual School Budgets With Inclusion,714.42,Grant Payments,2122P01_CR00551,REDACTED PERSONAL DATA
Sandwell Metropolitan Borough Council,http://www.sandwell.gov.uk/info/200202/performance_and_spending/1079/payments_over_500,21-Apr-2021,Individual School Budgets With Inclusion,JOYFUL CHILDRENS NURSERY,Individual School Budgets With Inclusion,548.10,Grant Payments,2122P01_CR00552,150961
Sandwell Metropolitan Borough Council,http://www.sandwell.gov.uk/info/200202/performance_and_spending/1079/payments_over_500,21-Apr-2021,Individual School Budgets With Inclusion,REDACTED PERSONAL DATA,Individual School Budgets With Inclusion,588.60,Grant Payments,2122P01_CR00553,REDACTED PERSONAL DATA
Sandwell Metropolitan Borough Council,http://www.sandwell.gov.uk/info/200202/performance_and_spending/1079/payments_over_500,21-Apr-2021,Individual School Budgets With Inclusion,CONFEDERATION OF BANGLADESHI ORGANISATIONS (CBO) LIMITED,Individual School Budgets With Inclusion,1037.25,Grant Payments,2122P01_CR00554,10034
Sandwell Metropolitan Borough Council,http://www.sandwell.gov.uk/info/200202/performance_and_spending/1079/payments_over_500,21-Apr-2021,Individual School Budgets With Inclusion,ST MICHAELS DAY NURSERY,Individual School Budgets With Inclusion,2281.95,Grant Payments,2122P01_CR00555,01698538
Sandwell Metropolitan Borough Council,http://www.sandwell.gov.uk/info/200202/performance_and_spending/1079/payments_over_500,21-Apr-2021,Individual School Budgets With Inclusion,PLAYHOUSE DAY NURSERY,Individual School Budgets With Inclusion,2381.40,Grant Payments,2122P01_CR00556,01586669
Sandwell Metropolitan Borough Council,http://www.sandwell.gov.uk/info/200202/performance_and_spending/1079/payments_over_500,21-Apr-2021,Individual School Budgets With Inclusion,LITTLE LEGEND NURSERIES LTD,Individual School Budgets With Inclusion,2875.50,Grant Payments,2122P01_CR00557,117890
Sandwell Metropolitan Borough Council,http://www.sandwell.gov.uk/info/200202/performance_and_spending/1079/payments_over_500,21-Apr-2021,Individual School Budgets With Inclusion,CATHERINE HOUSE DAY NURSERY,Individual School Budgets With Inclusion,2976.75,Grant Payments,2122P01_CR00558,08587767
Sandwell Metropolitan Borough Council,http://www.sandwell.gov.uk/info/200202/performance_and_spending/1079/payments_over_500,21-Apr-2021,Individual School Budgets With Inclusion,BLUEBELLS DAY NURSERY,Individual School Budgets With Inclusion,3572.10,Grant Payments,2122P01_CR00559,01721314
Sandwell Metropolitan Borough Council,http://www.sandwell.gov.uk/info/200202/performance_and_spending/1079/payments_over_500,21-Apr-2021,Individual School Budgets With Inclusion,LITTLE ACADEMY NURSERY,Individual School Budgets With Inclusion,4214.70,Grant Payments,2122P01_CR00560,81904
Sandwell Metropolitan Borough Council,http://www.sandwell.gov.uk/info/200202/performance_and_spending/1079/payments_over_500,21-Apr-2021,Individual School Budgets With Inclusion,FATIMA DAY NURSERY,Individual School Budgets With Inclusion,4564.35,Grant Payments,2122P01_CR00561,131343
Sandwell Metropolitan Borough Council,http://www.sandwell.gov.uk/info/200202/performance_and_spending/1079/payments_over_500,21-Apr-2021,Individual School Budgets With Inclusion,N & K VARMA LIMITED T/A (KIDDIES PLAYHOUSE TIPTON),Individual School Budgets With Inclusion,4816.80,Grant Payments,2122P01_CR00562,26124
Sandwell Metropolitan Borough Council,http://www.sandwell.gov.uk/info/200202/performance_and_spending/1079/payments_over_500,21-Apr-2021,Individual School Budgets With Inclusion,SADWICA DAY NURSERY,Individual School Budgets With Inclusion,5130.00,Grant Payments,2122P01_CR00563,01667892
Sandwell Metropolitan Borough Council,http://www.sandwell.gov.uk/info/200202/performance_and_spending/1079/payments_over_500,21-Apr-2021,Individual School Budgets With Inclusion,LITTLE SAPLINGS CHILDCARE CENTRES,Individual School Budgets With Inclusion,5218.20,Grant Payments,2122P01_CR00564,131043
Sandwell Metropolitan Borough Council,http://www.sandwell.gov.uk/info/200202/performance_and_spending/1079/payments_over_500,21-Apr-2021,Individual School Budgets With Inclusion,MINI MONKEYS LTD,Individual School Budgets With Inclusion,5768.28,Grant Payments,2122P01_CR00565,114818
Sandwell Metropolitan Borough Council,http://www.sandwell.gov.uk/info/200202/performance_and_spending/1079/payments_over_500,21-Apr-2021,Individual School Budgets With Inclusion,KANGAROO POUCH LIMITED,Individual School Budgets With Inclusion,5820.30,Grant Payments,2122P01_CR00566,106981
Sandwell Metropolitan Borough Council,http://www.sandwell.gov.uk/info/200202/performance_and_spending/1079/payments_over_500,21-Apr-2021,Individual School Budgets With Inclusion,PITTA PATTA DAYCARE,Individual School Budgets With Inclusion,6221.70,Grant Payments,2122P01_CR00567,114742
Sandwell Metropolitan Borough Council,http://www.sandwell.gov.uk/info/200202/performance_and_spending/1079/payments_over_500,21-Apr-2021,Individual School Budgets With Inclusion,PERRYFIELDS PRE SCHOOL,Individual School Budgets With Inclusion,7756.44,Grant Payments,2122P01_CR00568,18879
Sandwell Metropolitan Borough Council,http://www.sandwell.gov.uk/info/200202/performance_and_spending/1079/payments_over_500,21-Apr-2021,Individual School Budgets With Inclusion,LITTLE LEARNERS LTD,Individual School Budgets With Inclusion,8208.00,Grant Payments,2122P01_CR00569,01424133
Sandwell Metropolitan Borough Council,http://www.sandwell.gov.uk/info/200202/performance_and_spending/1079/payments_over_500,21-Apr-2021,Individual School Budgets With Inclusion,FIREFLIES NURSERY LIMITED,Individual School Budgets With Inclusion,8228.70,Grant Payments,2122P01_CR00570,124120
Sandwell Metropolitan Borough Council,http://www.sandwell.gov.uk/info/200202/performance_and_spending/1079/payments_over_500,21-Apr-2021,Individual School Budgets With Inclusion,CONIFERS DAY NURSERY LTD,Individual School Budgets With Inclusion,8334.90,Grant Payments,2122P01_CR00571,131957
Sandwell Metropolitan Borough Council,http://www.sandwell.gov.uk/info/200202/performance_and_spending/1079/payments_over_500,21-Apr-2021,Individual School Budgets With Inclusion,SPON LANE DAY NURSERY LIMITED,Individual School Budgets With Inclusion,8413.20,Grant Payments,2122P01_CR00572,127024
Sandwell Metropolitan Borough Council,http://www.sandwell.gov.uk/info/200202/performance_and_spending/1079/payments_over_500,21-Apr-2021,Individual School Budgets With Inclusion,LILLIPUT LODGE CHILDRENS DAY NURSERY,Individual School Budgets With Inclusion,8533.35,Grant Payments,2122P01_CR00573,2980
Sandwell Metropolitan Borough Council,http://www.sandwell.gov.uk/info/200202/performance_and_spending/1079/payments_over_500,21-Apr-2021,Individual School Budgets With Inclusion,LOLA BELLES PRIVATE DAY NURSERY,Individual School Budgets With Inclusion,8630.10,Grant Payments,2122P01_CR00574,89271
Sandwell Metropolitan Borough Council,http://www.sandwell.gov.uk/info/200202/performance_and_spending/1079/payments_over_500,21-Apr-2021,Individual School Budgets With Inclusion,BLOXCIDGE HOUSE DAY NURSERY,Individual School Budgets With Inclusion,8731.80,Grant Payments,2122P01_CR00575,82862
Sandwell Metropolitan Borough Council,http://www.sandwell.gov.uk/info/200202/performance_and_spending/1079/payments_over_500,21-Apr-2021,Individual School Budgets With Inclusion,BUSY BEE NURSERY,Individual School Budgets With Inclusion,9031.50,Grant Payments,2122P01_CR00576,01222577
Sandwell Metropolitan Borough Council,http://www.sandwell.gov.uk/info/200202/performance_and_spending/1079/payments_over_500,21-Apr-2021,Individual School Budgets With Inclusion,THE TODDLER HOUSE LIMITED,Individual School Budgets With Inclusion,9432.90,Grant Payments,2122P01_CR00577,122166
Sandwell Metropolitan Borough Council,http://www.sandwell.gov.uk/info/200202/performance_and_spending/1079/payments_over_500,21-Apr-2021,Individual School Budgets With Inclusion,ROWLEY VILLAGE DAY NURSERY,Individual School Budgets With Inclusion,9525.60,Grant Payments,2122P01_CR00578,24228
Sandwell Metropolitan Borough Council,http://www.sandwell.gov.uk/info/200202/performance_and_spending/1079/payments_over_500,21-Apr-2021,Individual School Budgets With Inclusion,SANTOS DAY NURSERIES,Individual School Budgets With Inclusion,9613.80,Grant Payments,2122P01_CR00579,129262
Sandwell Metropolitan Borough Council,http://www.sandwell.gov.uk/info/200202/performance_and_spending/1079/payments_over_500,21-Apr-2021,Individual School Budgets With Inclusion,FERNDALE PRIMARY SCHOOL                                    01,Individual School Budgets With Inclusion,9653.04,Grant Payments,2122P01_CR00580,11562
Sandwell Metropolitan Borough Council,http://www.sandwell.gov.uk/info/200202/performance_and_spending/1079/payments_over_500,21-Apr-2021,Individual School Budgets With Inclusion,SUNNY SKIES DAY NURSERY,Individual School Budgets With Inclusion,9834.30,Grant Payments,2122P01_CR00581,82726
Sandwell Metropolitan Borough Council,http://www.sandwell.gov.uk/info/200202/performance_and_spending/1079/payments_over_500,21-Apr-2021,Individual School Budgets With Inclusion,HUMPTY DUMPTYS DAY NURSERY,Individual School Budgets With Inclusion,10035.00,Grant Payments,2122P01_CR00582,08510771
Sandwell Metropolitan Borough Council,http://www.sandwell.gov.uk/info/200202/performance_and_spending/1079/payments_over_500,21-Apr-2021,Individual School Budgets With Inclusion,SMARTY PANTS @ LIGHTWOODS HOUSE LTD,Individual School Budgets With Inclusion,10319.40,Grant Payments,2122P01_CR00583,130645
Sandwell Metropolitan Borough Council,http://www.sandwell.gov.uk/info/200202/performance_and_spending/1079/payments_over_500,21-Apr-2021,Individual School Budgets With Inclusion,RAK DAY CARE LTD T/A HAPPY VALLEY PRE SCHOOL LTD,Individual School Budgets With Inclusion,10637.10,Grant Payments,2122P01_CR00584,01572212
Sandwell Metropolitan Borough Council,http://www.sandwell.gov.uk/info/200202/performance_and_spending/1079/payments_over_500,21-Apr-2021,Individual School Budgets With Inclusion,UNITED KIDS LIMITED,Individual School Budgets With Inclusion,10716.30,Grant Payments,2122P01_CR00585,136360
Sandwell Metropolitan Borough Council,http://www.sandwell.gov.uk/info/200202/performance_and_spending/1079/payments_over_500,21-Apr-2021,Individual School Budgets With Inclusion,ABC DAY NURSERY & PRE SCHOOL LTD,Individual School Budgets With Inclusion,10987.20,Grant Payments,2122P01_CR00586,01472823
Sandwell Metropolitan Borough Council,http://www.sandwell.gov.uk/info/200202/performance_and_spending/1079/payments_over_500,21-Apr-2021,Individual School Budgets With Inclusion,THE WONDER YEARS DAY NURSERY LIMITED,Individual School Budgets With Inclusion,11172.30,Grant Payments,2122P01_CR00587,01647249
Sandwell Metropolitan Borough Council,http://www.sandwell.gov.uk/info/200202/performance_and_spending/1079/payments_over_500,21-Apr-2021,Individual School Budgets With Inclusion,TINY TOEZ LIMITED,Individual School Budgets With Inclusion,11575.80,Grant Payments,2122P01_CR00588,23618
Sandwell Metropolitan Borough Council,http://www.sandwell.gov.uk/info/200202/performance_and_spending/1079/payments_over_500,21-Apr-2021,Individual School Budgets With Inclusion,THE PATCH DAY NURSERY,Individual School Budgets With Inclusion,12871.56,Grant Payments,2122P01_CR00589,126020
Sandwell Metropolitan Borough Council,http://www.sandwell.gov.uk/info/200202/performance_and_spending/1079/payments_over_500,21-Apr-2021,Individual School Budgets With Inclusion,SUMMERHILL LITTLE TREASURES,Individual School Budgets With Inclusion,13446.90,Grant Payments,2122P01_CR00590,89880
Sandwell Metropolitan Borough Council,http://www.sandwell.gov.uk/info/200202/performance_and_spending/1079/payments_over_500,21-Apr-2021,Individual School Budgets With Inclusion,SMARTY PANTS PRIVATE DAY NURSERY LTD,Individual School Budgets With Inclusion,13446.90,Grant Payments,2122P01_CR00591,74037
Sandwell Metropolitan Borough Council,http://www.sandwell.gov.uk/info/200202/performance_and_spending/1079/payments_over_500,21-Apr-2021,Individual School Budgets With Inclusion,LITTLE EXPLORERS (WEST MIDLANDS) LTD,Individual School Budgets With Inclusion,14605.92,Grant Payments,2122P01_CR00592,114804
Sandwell Metropolitan Borough Council,http://www.sandwell.gov.uk/info/200202/performance_and_spending/1079/payments_over_500,21-Apr-2021,Individual School Budgets With Inclusion,TIPTON TODDLERS DAY NURSERY,Individual School Budgets With Inclusion,14778.21,Grant Payments,2122P01_CR00593,4397
Sandwell Metropolitan Borough Council,http://www.sandwell.gov.uk/info/200202/performance_and_spending/1079/payments_over_500,21-Apr-2021,Individual School Budgets With Inclusion,FAIRYTALES NURSERY LTD,Individual School Budgets With Inclusion,18257.40,Grant Payments,2122P01_CR00594,106247
Sandwell Metropolitan Borough Council,http://www.sandwell.gov.uk/info/200202/performance_and_spending/1079/payments_over_500,21-Apr-2021,Individual School Budgets With Inclusion,TICK TOCK DAY NURSERY LTD,Individual School Budgets With Inclusion,21876.30,Grant Payments,2122P01_CR00595,9391
Sandwell Metropolitan Borough Council,http://www.sandwell.gov.uk/info/200202/performance_and_spending/1079/payments_over_500,21-Apr-2021,Individual School Budgets With Inclusion,WEST BROMWICH & DISTRICT Y.M.C.A. COMMUNITY ENTERPRISES,Individual School Budgets With Inclusion,21956.40,Grant Payments,2122P01_CR00596,01088376
Sandwell Metropolitan Borough Council,http://www.sandwell.gov.uk/info/200202/performance_and_spending/1079/payments_over_500,21-Apr-2021,Individual School Budgets With Inclusion,WONDERLAND CHILDRENS DAY NURSERY (UK) LTD,Individual School Budgets With Inclusion,22879.80,Grant Payments,2122P01_CR00597,50852
Sandwell Metropolitan Borough Council,http://www.sandwell.gov.uk/info/200202/performance_and_spending/1079/payments_over_500,21-Apr-2021,Individual School Budgets With Inclusion,WIGGLES & GIGGLES LTD,Individual School Budgets With Inclusion,22955.40,Grant Payments,2122P01_CR00598,01674799
Sandwell Metropolitan Borough Council,http://www.sandwell.gov.uk/info/200202/performance_and_spending/1079/payments_over_500,21-Apr-2021,Individual School Budgets With Inclusion,UNICORN DAY NURSERY,Individual School Budgets With Inclusion,22971.60,Grant Payments,2122P01_CR00599,91543
Sandwell Metropolitan Borough Council,http://www.sandwell.gov.uk/info/200202/performance_and_spending/1079/payments_over_500,21-Apr-2021,Individual School Budgets With Inclusion,LAVENDER FARM DAY NURSERY,Individual School Budgets With Inclusion,28098.00,Grant Payments,2122P01_CR00600,65596
Sandwell Metropolitan Borough Council,http://www.sandwell.gov.uk/info/200202/performance_and_spending/1079/payments_over_500,21-Apr-2021,Individual School Budgets With Inclusion,QUEEN ALEXANDRA COLLEGE,Individual School Budgets With Inclusion,141022.37,Externally Purchased Professional Services ,2122P01_CR00601,114126
Sandwell Metropolitan Borough Council,http://www.sandwell.gov.uk/info/200202/performance_and_spending/1079/payments_over_500,01-Apr-2021,Individual School Budgets With Inclusion,SANDWELL FUTURES LTD,Individual School Budgets With Inclusion,531.59,Private Contractors,2122P01_CR00602,88151
Sandwell Metropolitan Borough Council,http://www.sandwell.gov.uk/info/200202/performance_and_spending/1079/payments_over_500,12-Apr-2021,Individual School Budgets With Inclusion,SANDWELL FUTURES LTD,Individual School Budgets With Inclusion,609.12,Private Contractors,2122P01_CR00603,88151
Sandwell Metropolitan Borough Council,http://www.sandwell.gov.uk/info/200202/performance_and_spending/1079/payments_over_500,12-Apr-2021,Individual School Budgets With Inclusion,SANDWELL FUTURES LTD,Individual School Budgets With Inclusion,613.39,Private Contractors,2122P01_CR00604,88151
Sandwell Metropolitan Borough Council,http://www.sandwell.gov.uk/info/200202/performance_and_spending/1079/payments_over_500,03-Apr-2021,Individual School Budgets With Inclusion,SITEWATCH FIRE AND SURVEILLANCE LIMITED,Individual School Budgets With Inclusion,705.55,Security,2122P01_CR00605,55288
Sandwell Metropolitan Borough Council,http://www.sandwell.gov.uk/info/200202/performance_and_spending/1079/payments_over_500,12-Apr-2021,Individual School Budgets With Inclusion,SANDWELL FUTURES LTD,Individual School Budgets With Inclusion,1675.11,Private Contractors,2122P01_CR00606,88151
Sandwell Metropolitan Borough Council,http://www.sandwell.gov.uk/info/200202/performance_and_spending/1079/payments_over_500,12-Apr-2021,Individual School Budgets With Inclusion,SANDWELL FUTURES LTD,Individual School Budgets With Inclusion,2315.84,Private Contractors,2122P01_CR00607,88151
Sandwell Metropolitan Borough Council,http://www.sandwell.gov.uk/info/200202/performance_and_spending/1079/payments_over_500,12-Apr-2021,Individual School Budgets With Inclusion,SANDWELL FUTURES LTD,Individual School Budgets With Inclusion,3286.79,Private Contractors,2122P01_CR00608,88151
Sandwell Metropolitan Borough Council,http://www.sandwell.gov.uk/info/200202/performance_and_spending/1079/payments_over_500,01-Apr-2021,Individual School Budgets With Inclusion,SANDWELL FUTURES LTD,Individual School Budgets With Inclusion,3733.47,Private Contractors,2122P01_CR00609,88151
Sandwell Metropolitan Borough Council,http://www.sandwell.gov.uk/info/200202/performance_and_spending/1079/payments_over_500,01-Apr-2021,Individual School Budgets With Inclusion,SANDWELL FUTURES LTD,Individual School Budgets With Inclusion,4024.59,Private Contractors,2122P01_CR00610,88151
Sandwell Metropolitan Borough Council,http://www.sandwell.gov.uk/info/200202/performance_and_spending/1079/payments_over_500,07-Apr-2021,Individual School Budgets With Inclusion,SANDWELL FUTURES LTD,Individual School Budgets With Inclusion,91026.96,Private Contractors,2122P01_CR00611,88151
Sandwell Metropolitan Borough Council,http://www.sandwell.gov.uk/info/200202/performance_and_spending/1079/payments_over_500,07-Apr-2021,Individual School Budgets With Inclusion,SANDWELL FUTURES LTD,Individual School Budgets With Inclusion,109913.32,Private Contractors,2122P01_CR00612,88151
Sandwell Metropolitan Borough Council,http://www.sandwell.gov.uk/info/200202/performance_and_spending/1079/payments_over_500,04-Apr-2021,Individual School Budgets With Inclusion,SANDWELL FUTURES LTD,Individual School Budgets With Inclusion,111215.26,Private Contractors,2122P01_CR00613,88151
Sandwell Metropolitan Borough Council,http://www.sandwell.gov.uk/info/200202/performance_and_spending/1079/payments_over_500,07-Apr-2021,Individual School Budgets With Inclusion,SANDWELL FUTURES LTD,Individual School Budgets With Inclusion,113807.27,Private Contractors,2122P01_CR00614,88151
Sandwell Metropolitan Borough Council,http://www.sandwell.gov.uk/info/200202/performance_and_spending/1079/payments_over_500,22-Apr-2021,Individual School Budgets With Inclusion,TIDDLYWINKS KIDDYS NURSERY LIMITED,Individual School Budgets With Inclusion,2815.20,Externally Purchased Professional Services ,2122P01_CR00615,110667
Sandwell Metropolitan Borough Council,http://www.sandwell.gov.uk/info/200202/performance_and_spending/1079/payments_over_500,01-Apr-2021,Individual School Budgets With Inclusion,QUORN HALL SCHOOL,Individual School Budgets With Inclusion,23950.00,Other Establishments,2122P01_CR00616,137617
Sandwell Metropolitan Borough Council,http://www.sandwell.gov.uk/info/200202/performance_and_spending/1079/payments_over_500,06-Apr-2021,Individual School Budgets With Inclusion,REDACTED PERSONAL DATA,Individual School Budgets With Inclusion,2500.00,Externally Purchased Professional Services ,2122P01_CR00617,REDACTED PERSONAL DATA
Sandwell Metropolitan Borough Council,http://www.sandwell.gov.uk/info/200202/performance_and_spending/1079/payments_over_500,01-Apr-2021,Individual School Budgets With Inclusion,CENTAUR TRAINING & DEVELOPMENT  LTD,Individual School Budgets With Inclusion,2995.00,Staff Development & Training,2122P01_CR00618,24937
Sandwell Metropolitan Borough Council,http://www.sandwell.gov.uk/info/200202/performance_and_spending/1079/payments_over_500,06-Apr-2021,Individual School Budgets With Inclusion,REFLECTIONS OFFICE SOLUTIONS LTD,Individual School Budgets With Inclusion,1423.45,Equipment & Furniture ,2122P01_CR00619,135744
Sandwell Metropolitan Borough Council,http://www.sandwell.gov.uk/info/200202/performance_and_spending/1079/payments_over_500,01-Apr-2021,Individual School Budgets With Inclusion,BLACKWOOD SCHOOL,Individual School Budgets With Inclusion,1820.00,Other Local Authorities,2122P01_CR00620,23214
Sandwell Metropolitan Borough Council,http://www.sandwell.gov.uk/info/200202/performance_and_spending/1079/payments_over_500,01-Apr-2021,Individual School Budgets With Inclusion,BLACKWOOD SCHOOL,Individual School Budgets With Inclusion,2835.04,Other Local Authorities,2122P01_CR00621,23214
Sandwell Metropolitan Borough Council,http://www.sandwell.gov.uk/info/200202/performance_and_spending/1079/payments_over_500,01-Apr-2021,Individual School Budgets With Inclusion,THE JANE LANE SCHOOL,Individual School Budgets With Inclusion,23365.74,Other Local Authorities,2122P01_CR00622,28482
Sandwell Metropolitan Borough Council,http://www.sandwell.gov.uk/info/200202/performance_and_spending/1079/payments_over_500,01-Apr-2021,Individual School Budgets With Inclusion,BISHOP MILNER CATHOLIC COLLEGE,Individual School Budgets With Inclusion,525.67,Other Local Authorities,2122P01_CR00623,44760
Sandwell Metropolitan Borough Council,http://www.sandwell.gov.uk/info/200202/performance_and_spending/1079/payments_over_500,01-Apr-2021,Individual School Budgets With Inclusion,C J H TREE SERVICE,Individual School Budgets With Inclusion,595.00,Grounds Maintenance & Improvements,2122P01_CR00624,118153
Sandwell Metropolitan Borough Council,http://www.sandwell.gov.uk/info/200202/performance_and_spending/1079/payments_over_500,01-Apr-2021,Individual School Budgets With Inclusion,NATIONAL INSTITUTE OF CONDUCTIVE EDUCATION,Individual School Budgets With Inclusion,750.00,Other Local Authorities,2122P01_CR00625,120320
Sandwell Metropolitan Borough Council,http://www.sandwell.gov.uk/info/200202/performance_and_spending/1079/payments_over_500,01-Apr-2021,Individual School Budgets With Inclusion,NATIONAL INSTITUTE OF CONDUCTIVE EDUCATION,Individual School Budgets With Inclusion,2100.00,Other Local Authorities,2122P01_CR00626,120320
Sandwell Metropolitan Borough Council,http://www.sandwell.gov.uk/info/200202/performance_and_spending/1079/payments_over_500,01-Apr-2021,Individual School Budgets With Inclusion,WILSON STUART SCHOOL,Individual School Budgets With Inclusion,5030.00,Other Local Authorities,2122P01_CR00627,115237
Sandwell Metropolitan Borough Council,http://www.sandwell.gov.uk/info/200202/performance_and_spending/1079/payments_over_500,19-Apr-2021,Individual School Budgets With Inclusion,ST GEORGES SCHOOL EDGBASTON,Individual School Budgets With Inclusion,6046.67,Other Establishments,2122P01_CR00628,131335
Sandwell Metropolitan Borough Council,http://www.sandwell.gov.uk/info/200202/performance_and_spending/1079/payments_over_500,01-Apr-2021,Individual School Budgets With Inclusion,ACORN CARE AND EDUCATION LIMITED,Individual School Budgets With Inclusion,13812.67,Other Establishments,2122P01_CR00629,115235
Sandwell Metropolitan Borough Council,http://www.sandwell.gov.uk/info/200202/performance_and_spending/1079/payments_over_500,01-Apr-2021,Individual School Budgets With Inclusion,ACORN CARE AND EDUCATION LIMITED,Individual School Budgets With Inclusion,14456.67,Other Establishments,2122P01_CR00630,115235
Sandwell Metropolitan Borough Council,http://www.sandwell.gov.uk/info/200202/performance_and_spending/1079/payments_over_500,01-Apr-2021,Individual School Budgets With Inclusion,ACORN CARE AND EDUCATION LIMITED,Individual School Budgets With Inclusion,14456.67,Other Establishments,2122P01_CR00631,115235
Sandwell Metropolitan Borough Council,http://www.sandwell.gov.uk/info/200202/performance_and_spending/1079/payments_over_500,01-Apr-2021,Individual School Budgets With Inclusion,ACORN CARE AND EDUCATION LIMITED,Individual School Budgets With Inclusion,15554.33,Other Establishments,2122P01_CR00632,115235
Sandwell Metropolitan Borough Council,http://www.sandwell.gov.uk/info/200202/performance_and_spending/1079/payments_over_500,01-Apr-2021,Individual School Budgets With Inclusion,ACORN CARE AND EDUCATION LIMITED,Individual School Budgets With Inclusion,15554.33,Other Establishments,2122P01_CR00633,115235
Sandwell Metropolitan Borough Council,http://www.sandwell.gov.uk/info/200202/performance_and_spending/1079/payments_over_500,01-Apr-2021,Individual School Budgets With Inclusion,ACORN CARE AND EDUCATION LIMITED,Individual School Budgets With Inclusion,17302.00,Other Establishments,2122P01_CR00634,115235
Sandwell Metropolitan Borough Council,http://www.sandwell.gov.uk/info/200202/performance_and_spending/1079/payments_over_500,01-Apr-2021,Individual School Budgets With Inclusion,ACORN CARE AND EDUCATION LIMITED,Individual School Budgets With Inclusion,17302.00,Other Establishments,2122P01_CR00635,115235
Sandwell Metropolitan Borough Council,http://www.sandwell.gov.uk/info/200202/performance_and_spending/1079/payments_over_500,01-Apr-2021,Individual School Budgets With Inclusion,ACORN CARE AND EDUCATION LIMITED,Individual School Budgets With Inclusion,17302.00,Other Establishments,2122P01_CR00636,115235
Sandwell Metropolitan Borough Council,http://www.sandwell.gov.uk/info/200202/performance_and_spending/1079/payments_over_500,01-Apr-2021,Individual School Budgets With Inclusion,ACORN CARE AND EDUCATION LIMITED,Individual School Budgets With Inclusion,17302.00,Other Establishments,2122P01_CR00637,115235
Sandwell Metropolitan Borough Council,http://www.sandwell.gov.uk/info/200202/performance_and_spending/1079/payments_over_500,01-Apr-2021,Individual School Budgets With Inclusion,ACORN CARE AND EDUCATION LIMITED,Individual School Budgets With Inclusion,17302.00,Other Establishments,2122P01_CR00638,115235
Sandwell Metropolitan Borough Council,http://www.sandwell.gov.uk/info/200202/performance_and_spending/1079/payments_over_500,01-Apr-2021,Individual School Budgets With Inclusion,ACORN CARE AND EDUCATION LIMITED,Individual School Budgets With Inclusion,21429.00,Other Establishments,2122P01_CR00639,115235
Sandwell Metropolitan Borough Council,http://www.sandwell.gov.uk/info/200202/performance_and_spending/1079/payments_over_500,01-Apr-2021,Individual School Budgets With Inclusion,OPTIONS AUTISM,Individual School Budgets With Inclusion,7321.10,Other Establishments,2122P01_CR00640,136009
Sandwell Metropolitan Borough Council,http://www.sandwell.gov.uk/info/200202/performance_and_spending/1079/payments_over_500,01-Apr-2021,Individual School Budgets With Inclusion,REDACTED PERSONAL DATA,Individual School Budgets With Inclusion,810.00,Externally Purchased Professional Services ,2122P01_CR00641,REDACTED PERSONAL DATA
Sandwell Metropolitan Borough Council,http://www.sandwell.gov.uk/info/200202/performance_and_spending/1079/payments_over_500,01-Apr-2021,Individual School Budgets With Inclusion,REDACTED PERSONAL DATA,Individual School Budgets With Inclusion,1620.00,Externally Purchased Professional Services ,2122P01_CR00642,REDACTED PERSONAL DATA
Sandwell Metropolitan Borough Council,http://www.sandwell.gov.uk/info/200202/performance_and_spending/1079/payments_over_500,01-Apr-2021,Individual School Budgets With Inclusion,QUARRY BANK PRIMARY,Individual School Budgets With Inclusion,2547.46,Other Local Authorities,2122P01_CR00643,115468
Sandwell Metropolitan Borough Council,http://www.sandwell.gov.uk/info/200202/performance_and_spending/1079/payments_over_500,06-Apr-2021,Individual School Budgets With Inclusion,WEST MIDLANDS COMBINED AUTHORITY,Individual School Budgets With Inclusion,12320.00,Vehicle Hiring Charges,2122P01_CR00644,126646
Sandwell Metropolitan Borough Council,http://www.sandwell.gov.uk/info/200202/performance_and_spending/1079/payments_over_500,22-Apr-2021,Individual School Budgets With Inclusion,THE EDUCATION DEVELOPMENT SERVICE LIMITED,Individual School Budgets With Inclusion,-19000.00,Other Establishments,2122P01_CR00645,104614
Sandwell Metropolitan Borough Council,http://www.sandwell.gov.uk/info/200202/performance_and_spending/1079/payments_over_500,12-Apr-2021,Individual School Budgets With Inclusion,ENVIRONMENTS FOR LEARNING SANDWELL PFI ONE LIMITED,Individual School Budgets With Inclusion,537.47,PFI & PPP Schemes,2122P01_CR00646,98332
Sandwell Metropolitan Borough Council,http://www.sandwell.gov.uk/info/200202/performance_and_spending/1079/payments_over_500,01-Apr-2021,Individual School Budgets With Inclusion,YMCA WOLVERHAMPTON,Individual School Budgets With Inclusion,540.00,Externally Purchased Professional Services ,2122P01_CR00647,138063
Sandwell Metropolitan Borough Council,http://www.sandwell.gov.uk/info/200202/performance_and_spending/1079/payments_over_500,06-Apr-2021,Individual School Budgets With Inclusion,COLMORE EDUCATION RECRUITMENT,Individual School Budgets With Inclusion,600.00,Agency Staff,2122P01_CR00648,148720
Sandwell Metropolitan Borough Council,http://www.sandwell.gov.uk/info/200202/performance_and_spending/1079/payments_over_500,06-Apr-2021,Individual School Budgets With Inclusion,COLMORE EDUCATION RECRUITMENT,Individual School Budgets With Inclusion,600.00,Agency Staff,2122P01_CR00649,148720
Sandwell Metropolitan Borough Council,http://www.sandwell.gov.uk/info/200202/performance_and_spending/1079/payments_over_500,12-Apr-2021,Individual School Budgets With Inclusion,ENVIRONMENTS FOR LEARNING SANDWELL PFI ONE LIMITED,Individual School Budgets With Inclusion,654.00,PFI & PPP Schemes,2122P01_CR00650,98332
Sandwell Metropolitan Borough Council,http://www.sandwell.gov.uk/info/200202/performance_and_spending/1079/payments_over_500,03-Apr-2021,Individual School Budgets With Inclusion,WHITENOISE DESIGN,Individual School Budgets With Inclusion,662.50,Building Maintenance & Improvements,2122P01_CR00651,137563
Sandwell Metropolitan Borough Council,http://www.sandwell.gov.uk/info/200202/performance_and_spending/1079/payments_over_500,12-Apr-2021,Individual School Budgets With Inclusion,ENVIRONMENTS FOR LEARNING SANDWELL PFI ONE LIMITED,Individual School Budgets With Inclusion,667.58,PFI & PPP Schemes,2122P01_CR00652,98332
Sandwell Metropolitan Borough Council,http://www.sandwell.gov.uk/info/200202/performance_and_spending/1079/payments_over_500,19-Apr-2021,Individual School Budgets With Inclusion,BRITISH STANDARDS INSTITUTION,Individual School Budgets With Inclusion,679.00,Externally Purchased Professional Services ,2122P01_CR00653,01520113
Sandwell Metropolitan Borough Council,http://www.sandwell.gov.uk/info/200202/performance_and_spending/1079/payments_over_500,09-Apr-2021,Individual School Budgets With Inclusion,FAIRYTALES NURSERY LTD,Individual School Budgets With Inclusion,747.60,Externally Purchased Professional Services ,2122P01_CR00654,106247
Sandwell Metropolitan Borough Council,http://www.sandwell.gov.uk/info/200202/performance_and_spending/1079/payments_over_500,12-Apr-2021,Individual School Budgets With Inclusion,ENVIRONMENTS FOR LEARNING SANDWELL PFI ONE LIMITED,Individual School Budgets With Inclusion,752.10,PFI & PPP Schemes,2122P01_CR00655,98332
Sandwell Metropolitan Borough Council,http://www.sandwell.gov.uk/info/200202/performance_and_spending/1079/payments_over_500,06-Apr-2021,Individual School Budgets With Inclusion,COLMORE EDUCATION RECRUITMENT,Individual School Budgets With Inclusion,780.00,Agency Staff,2122P01_CR00656,148720
Sandwell Metropolitan Borough Council,http://www.sandwell.gov.uk/info/200202/performance_and_spending/1079/payments_over_500,01-Apr-2021,Individual School Budgets With Inclusion,URBAN OUTDOOR LEARNING,Individual School Budgets With Inclusion,800.00,Staff Development & Training,2122P01_CR00657,127824
Sandwell Metropolitan Borough Council,http://www.sandwell.gov.uk/info/200202/performance_and_spending/1079/payments_over_500,01-Apr-2021,Individual School Budgets With Inclusion,UNICORN DAY NURSERY,Individual School Budgets With Inclusion,810.00,Externally Purchased Professional Services ,2122P01_CR00658,91543
Sandwell Metropolitan Borough Council,http://www.sandwell.gov.uk/info/200202/performance_and_spending/1079/payments_over_500,01-Apr-2021,Individual School Budgets With Inclusion,UNICORN DAY NURSERY,Individual School Budgets With Inclusion,810.00,Externally Purchased Professional Services ,2122P01_CR00659,91543
Sandwell Metropolitan Borough Council,http://www.sandwell.gov.uk/info/200202/performance_and_spending/1079/payments_over_500,12-Apr-2021,Individual School Budgets With Inclusion,ENVIRONMENTS FOR LEARNING SANDWELL PFI ONE LIMITED,Individual School Budgets With Inclusion,955.27,PFI & PPP Schemes,2122P01_CR00660,98332
Sandwell Metropolitan Borough Council,http://www.sandwell.gov.uk/info/200202/performance_and_spending/1079/payments_over_500,01-Apr-2021,Individual School Budgets With Inclusion,WIGGLES & GIGGLES LTD,Individual School Budgets With Inclusion,972.00,Externally Purchased Professional Services ,2122P01_CR00661,01674799
Sandwell Metropolitan Borough Council,http://www.sandwell.gov.uk/info/200202/performance_and_spending/1079/payments_over_500,01-Apr-2021,Individual School Budgets With Inclusion,WIGGLES & GIGGLES LTD,Individual School Budgets With Inclusion,972.00,Externally Purchased Professional Services ,2122P01_CR00662,01674799
Sandwell Metropolitan Borough Council,http://www.sandwell.gov.uk/info/200202/performance_and_spending/1079/payments_over_500,01-Apr-2021,Individual School Budgets With Inclusion,STAFF SELECT LTD T/A NOVA TRAINING,Individual School Budgets With Inclusion,1035.00,Externally Purchased Professional Services ,2122P01_CR00663,25564
Sandwell Metropolitan Borough Council,http://www.sandwell.gov.uk/info/200202/performance_and_spending/1079/payments_over_500,01-Apr-2021,Individual School Budgets With Inclusion,PITTA PATTA DAYCARE,Individual School Budgets With Inclusion,1046.40,Externally Purchased Professional Services ,2122P01_CR00664,114742
Sandwell Metropolitan Borough Council,http://www.sandwell.gov.uk/info/200202/performance_and_spending/1079/payments_over_500,01-Apr-2021,Individual School Budgets With Inclusion,PITTA PATTA DAYCARE,Individual School Budgets With Inclusion,1046.40,Externally Purchased Professional Services ,2122P01_CR00665,114742
Sandwell Metropolitan Borough Council,http://www.sandwell.gov.uk/info/200202/performance_and_spending/1079/payments_over_500,01-Apr-2021,Individual School Budgets With Inclusion,PITTA PATTA DAYCARE,Individual School Budgets With Inclusion,1046.40,Externally Purchased Professional Services ,2122P01_CR00666,114742
Sandwell Metropolitan Borough Council,http://www.sandwell.gov.uk/info/200202/performance_and_spending/1079/payments_over_500,01-Apr-2021,Individual School Budgets With Inclusion,STAFF SELECT LTD T/A NOVA TRAINING,Individual School Budgets With Inclusion,1099.60,Externally Purchased Professional Services ,2122P01_CR00667,25564
Sandwell Metropolitan Borough Council,http://www.sandwell.gov.uk/info/200202/performance_and_spending/1079/payments_over_500,06-Apr-2021,Individual School Budgets With Inclusion,COLMORE EDUCATION RECRUITMENT,Individual School Budgets With Inclusion,1100.00,Agency Staff,2122P01_CR00668,148720
Sandwell Metropolitan Borough Council,http://www.sandwell.gov.uk/info/200202/performance_and_spending/1079/payments_over_500,06-Apr-2021,Individual School Budgets With Inclusion,JENNY'S KITCHEN (WALL HEATH) LTD,Individual School Budgets With Inclusion,1109.50,Contract Catering,2122P01_CR00669,01079439
Sandwell Metropolitan Borough Council,http://www.sandwell.gov.uk/info/200202/performance_and_spending/1079/payments_over_500,01-Apr-2021,Individual School Budgets With Inclusion,EG (TRAINING) LTD,Individual School Budgets With Inclusion,1144.77,Other Local Authorities,2122P01_CR00670,146780
Sandwell Metropolitan Borough Council,http://www.sandwell.gov.uk/info/200202/performance_and_spending/1079/payments_over_500,20-Apr-2021,Individual School Budgets With Inclusion,REACH PSYCHOLOGY LTD,Individual School Budgets With Inclusion,1160.00,SH Payments,2122P01_CR00671,137823
Sandwell Metropolitan Borough Council,http://www.sandwell.gov.uk/info/200202/performance_and_spending/1079/payments_over_500,06-Apr-2021,Individual School Budgets With Inclusion,TOTAL GAS AND POWER LIMITED,Individual School Budgets With Inclusion,1205.81,Electricity,2122P01_CR00672,107605
Sandwell Metropolitan Borough Council,http://www.sandwell.gov.uk/info/200202/performance_and_spending/1079/payments_over_500,01-Apr-2021,Individual School Budgets With Inclusion,STAFF SELECT LTD T/A NOVA TRAINING,Individual School Budgets With Inclusion,1207.50,Externally Purchased Professional Services ,2122P01_CR00673,25564
Sandwell Metropolitan Borough Council,http://www.sandwell.gov.uk/info/200202/performance_and_spending/1079/payments_over_500,01-Apr-2021,Individual School Budgets With Inclusion,ST HUBERTS PRE-SCHOOL PLAYGROUP LIMITED,Individual School Budgets With Inclusion,1260.00,Externally Purchased Professional Services ,2122P01_CR00674,01615026
Sandwell Metropolitan Borough Council,http://www.sandwell.gov.uk/info/200202/performance_and_spending/1079/payments_over_500,01-Apr-2021,Individual School Budgets With Inclusion,ST HUBERTS PRE-SCHOOL PLAYGROUP LIMITED,Individual School Budgets With Inclusion,1260.00,Externally Purchased Professional Services ,2122P01_CR00675,01615026
Sandwell Metropolitan Borough Council,http://www.sandwell.gov.uk/info/200202/performance_and_spending/1079/payments_over_500,01-Apr-2021,Individual School Budgets With Inclusion,YMCA WOLVERHAMPTON,Individual School Budgets With Inclusion,1296.00,Externally Purchased Professional Services ,2122P01_CR00676,138063
Sandwell Metropolitan Borough Council,http://www.sandwell.gov.uk/info/200202/performance_and_spending/1079/payments_over_500,01-Apr-2021,Individual School Budgets With Inclusion,ASCEND HEALTH AND CHILDCARE TRAINING,Individual School Budgets With Inclusion,1350.00,Externally Purchased Professional Services ,2122P01_CR00677,136631
Sandwell Metropolitan Borough Council,http://www.sandwell.gov.uk/info/200202/performance_and_spending/1079/payments_over_500,01-Apr-2021,Individual School Budgets With Inclusion,NISAI VIRTUAL ACADEMY LIMITED,Individual School Budgets With Inclusion,1350.00,Externally Purchased Professional Services ,2122P01_CR00678,131183
Sandwell Metropolitan Borough Council,http://www.sandwell.gov.uk/info/200202/performance_and_spending/1079/payments_over_500,09-Apr-2021,Individual School Budgets With Inclusion,FAIRYTALES NURSERY LTD,Individual School Budgets With Inclusion,1435.50,Externally Purchased Professional Services ,2122P01_CR00679,106247
Sandwell Metropolitan Borough Council,http://www.sandwell.gov.uk/info/200202/performance_and_spending/1079/payments_over_500,01-Apr-2021,Individual School Budgets With Inclusion,ST HUBERTS PRE-SCHOOL PLAYGROUP LIMITED,Individual School Budgets With Inclusion,1440.00,Externally Purchased Professional Services ,2122P01_CR00680,01615026
Sandwell Metropolitan Borough Council,http://www.sandwell.gov.uk/info/200202/performance_and_spending/1079/payments_over_500,15-Apr-2021,Individual School Budgets With Inclusion,WIGGLES & GIGGLES LTD,Individual School Budgets With Inclusion,1458.00,Externally Purchased Professional Services ,2122P01_CR00681,01674799
Sandwell Metropolitan Borough Council,http://www.sandwell.gov.uk/info/200202/performance_and_spending/1079/payments_over_500,06-Apr-2021,Individual School Budgets With Inclusion,WONDE LTD,Individual School Budgets With Inclusion,1530.00,Catering Provisions,2122P01_CR00682,149233
Sandwell Metropolitan Borough Council,http://www.sandwell.gov.uk/info/200202/performance_and_spending/1079/payments_over_500,15-Apr-2021,Individual School Budgets With Inclusion,SMARTY PANTS @ LIGHTWOODS HOUSE LTD,Individual School Budgets With Inclusion,1548.00,Externally Purchased Professional Services ,2122P01_CR00683,130645
Sandwell Metropolitan Borough Council,http://www.sandwell.gov.uk/info/200202/performance_and_spending/1079/payments_over_500,01-Apr-2021,Individual School Budgets With Inclusion,YMCA WOLVERHAMPTON,Individual School Budgets With Inclusion,1620.00,Externally Purchased Professional Services ,2122P01_CR00684,138063
Sandwell Metropolitan Borough Council,http://www.sandwell.gov.uk/info/200202/performance_and_spending/1079/payments_over_500,01-Apr-2021,Individual School Budgets With Inclusion,STAFF SELECT LTD T/A NOVA TRAINING,Individual School Budgets With Inclusion,1671.34,Externally Purchased Professional Services ,2122P01_CR00685,25564
Sandwell Metropolitan Borough Council,http://www.sandwell.gov.uk/info/200202/performance_and_spending/1079/payments_over_500,01-Apr-2021,Individual School Budgets With Inclusion,NISAI VIRTUAL ACADEMY LIMITED,Individual School Budgets With Inclusion,1883.33,Externally Purchased Professional Services ,2122P01_CR00686,131183
Sandwell Metropolitan Borough Council,http://www.sandwell.gov.uk/info/200202/performance_and_spending/1079/payments_over_500,03-Apr-2021,Individual School Budgets With Inclusion,SIPS EDUCATION LTD,Individual School Budgets With Inclusion,2250.00,Externally Purchased Professional Services ,2122P01_CR00687,110784
Sandwell Metropolitan Borough Council,http://www.sandwell.gov.uk/info/200202/performance_and_spending/1079/payments_over_500,01-Apr-2021,Individual School Budgets With Inclusion,PEARSON EDUCATION LIMITED,Individual School Budgets With Inclusion,2273.75,Materials & Consumables,2122P01_CR00688,01625441
Sandwell Metropolitan Borough Council,http://www.sandwell.gov.uk/info/200202/performance_and_spending/1079/payments_over_500,03-Apr-2021,Individual School Budgets With Inclusion,SIPS EDUCATION LTD,Individual School Budgets With Inclusion,2295.00,Building Maintenance & Improvements,2122P01_CR00689,110784
Sandwell Metropolitan Borough Council,http://www.sandwell.gov.uk/info/200202/performance_and_spending/1079/payments_over_500,01-Apr-2021,Individual School Budgets With Inclusion,WIGGLES & GIGGLES LTD,Individual School Budgets With Inclusion,2332.80,Externally Purchased Professional Services ,2122P01_CR00690,01674799
Sandwell Metropolitan Borough Council,http://www.sandwell.gov.uk/info/200202/performance_and_spending/1079/payments_over_500,22-Apr-2021,Individual School Budgets With Inclusion,SOUTH STAFFORDSHIRE COLLEGE,Individual School Budgets With Inclusion,2430.74,Externally Purchased Professional Services ,2122P01_CR00691,13528
Sandwell Metropolitan Borough Council,http://www.sandwell.gov.uk/info/200202/performance_and_spending/1079/payments_over_500,01-Apr-2021,Individual School Budgets With Inclusion,ST HUBERTS PRE-SCHOOL PLAYGROUP LIMITED,Individual School Budgets With Inclusion,2493.21,Externally Purchased Professional Services ,2122P01_CR00692,01615026
Sandwell Metropolitan Borough Council,http://www.sandwell.gov.uk/info/200202/performance_and_spending/1079/payments_over_500,01-Apr-2021,Individual School Budgets With Inclusion,SMARTY PANTS @ LIGHTWOODS HOUSE LTD,Individual School Budgets With Inclusion,2520.00,Externally Purchased Professional Services ,2122P01_CR00693,130645
Sandwell Metropolitan Borough Council,http://www.sandwell.gov.uk/info/200202/performance_and_spending/1079/payments_over_500,01-Apr-2021,Individual School Budgets With Inclusion,STAFF SELECT LTD T/A NOVA TRAINING,Individual School Budgets With Inclusion,2645.00,Externally Purchased Professional Services ,2122P01_CR00694,25564
Sandwell Metropolitan Borough Council,http://www.sandwell.gov.uk/info/200202/performance_and_spending/1079/payments_over_500,01-Apr-2021,Individual School Budgets With Inclusion,HOMECARE DIRECT LTD,Individual School Budgets With Inclusion,2688.39,Other Local Authorities,2122P01_CR00695,146933
Sandwell Metropolitan Borough Council,http://www.sandwell.gov.uk/info/200202/performance_and_spending/1079/payments_over_500,15-Apr-2021,Individual School Budgets With Inclusion,KANGAROO POUCH LIMITED,Individual School Budgets With Inclusion,2700.00,Externally Purchased Professional Services ,2122P01_CR00696,106981
Sandwell Metropolitan Borough Council,http://www.sandwell.gov.uk/info/200202/performance_and_spending/1079/payments_over_500,01-Apr-2021,Individual School Budgets With Inclusion,HUNTERCOMBE YOUNG PEOPLE LTD,Individual School Budgets With Inclusion,2720.00,Externally Purchased Professional Services ,2122P01_CR00697,108302
Sandwell Metropolitan Borough Council,http://www.sandwell.gov.uk/info/200202/performance_and_spending/1079/payments_over_500,12-Apr-2021,Individual School Budgets With Inclusion,ENVIRONMENTS FOR LEARNING SANDWELL PFI ONE LIMITED,Individual School Budgets With Inclusion,3040.41,PFI & PPP Schemes,2122P01_CR00698,98332
Sandwell Metropolitan Borough Council,http://www.sandwell.gov.uk/info/200202/performance_and_spending/1079/payments_over_500,01-Apr-2021,Individual School Budgets With Inclusion,STAFF SELECT LTD T/A NOVA TRAINING,Individual School Budgets With Inclusion,3111.34,Externally Purchased Professional Services ,2122P01_CR00699,25564
Sandwell Metropolitan Borough Council,http://www.sandwell.gov.uk/info/200202/performance_and_spending/1079/payments_over_500,01-Apr-2021,Individual School Budgets With Inclusion,BIRMINGHAM CITY COUNCIL,Individual School Budgets With Inclusion,3170.00,Other Local Authorities,2122P01_CR00700,01622521
Sandwell Metropolitan Borough Council,http://www.sandwell.gov.uk/info/200202/performance_and_spending/1079/payments_over_500,01-Apr-2021,Individual School Budgets With Inclusion,ENVIRONMENTS FOR LEARNING SANDWELL PFI ONE LIMITED,Individual School Budgets With Inclusion,3264.67,PFI & PPP Schemes,2122P01_CR00701,98332
Sandwell Metropolitan Borough Council,http://www.sandwell.gov.uk/info/200202/performance_and_spending/1079/payments_over_500,01-Apr-2021,Individual School Budgets With Inclusion,LAVENDER FARM DAY NURSERY,Individual School Budgets With Inclusion,3330.00,Externally Purchased Professional Services ,2122P01_CR00702,65596
Sandwell Metropolitan Borough Council,http://www.sandwell.gov.uk/info/200202/performance_and_spending/1079/payments_over_500,03-Apr-2021,Individual School Budgets With Inclusion,SIPS EDUCATION LTD,Individual School Budgets With Inclusion,3465.00,Externally Purchased Professional Services ,2122P01_CR00703,110784
Sandwell Metropolitan Borough Council,http://www.sandwell.gov.uk/info/200202/performance_and_spending/1079/payments_over_500,01-Apr-2021,Individual School Budgets With Inclusion,KRUNCH UK,Individual School Budgets With Inclusion,3632.56,Externally Purchased Professional Services ,2122P01_CR00704,08588452
Sandwell Metropolitan Borough Council,http://www.sandwell.gov.uk/info/200202/performance_and_spending/1079/payments_over_500,01-Apr-2021,Individual School Budgets With Inclusion,KRUNCH UK,Individual School Budgets With Inclusion,3632.56,Externally Purchased Professional Services ,2122P01_CR00705,08588452
Sandwell Metropolitan Borough Council,http://www.sandwell.gov.uk/info/200202/performance_and_spending/1079/payments_over_500,01-Apr-2021,Individual School Budgets With Inclusion,WORCESTERSHIRE COUNTY COUNCIL,Individual School Budgets With Inclusion,3733.34,Other Local Authorities,2122P01_CR00706,01719134
Sandwell Metropolitan Borough Council,http://www.sandwell.gov.uk/info/200202/performance_and_spending/1079/payments_over_500,01-Apr-2021,Individual School Budgets With Inclusion,LAVENDER FARM DAY NURSERY,Individual School Budgets With Inclusion,3885.00,Externally Purchased Professional Services ,2122P01_CR00707,65596
Sandwell Metropolitan Borough Council,http://www.sandwell.gov.uk/info/200202/performance_and_spending/1079/payments_over_500,03-Apr-2021,Individual School Budgets With Inclusion,SIPS EDUCATION LTD,Individual School Budgets With Inclusion,4440.00,Externally Purchased Professional Services ,2122P01_CR00708,110784
Sandwell Metropolitan Borough Council,http://www.sandwell.gov.uk/info/200202/performance_and_spending/1079/payments_over_500,12-Apr-2021,Individual School Budgets With Inclusion,ENVIRONMENTS FOR LEARNING SANDWELL PFI ONE LIMITED,Individual School Budgets With Inclusion,4492.13,PFI & PPP Schemes,2122P01_CR00709,98332
Sandwell Metropolitan Borough Council,http://www.sandwell.gov.uk/info/200202/performance_and_spending/1079/payments_over_500,01-Apr-2021,Individual School Budgets With Inclusion,UNICORN DAY NURSERY,Individual School Budgets With Inclusion,4590.00,Externally Purchased Professional Services ,2122P01_CR00710,91543
Sandwell Metropolitan Borough Council,http://www.sandwell.gov.uk/info/200202/performance_and_spending/1079/payments_over_500,01-Apr-2021,Individual School Budgets With Inclusion,CITY OF WOLVERHAMPTON COLLEGE,Individual School Budgets With Inclusion,4845.23,Externally Purchased Professional Services ,2122P01_CR00711,01764397
Sandwell Metropolitan Borough Council,http://www.sandwell.gov.uk/info/200202/performance_and_spending/1079/payments_over_500,01-Apr-2021,Individual School Budgets With Inclusion,BARNET SOUTHGATE COLLEGE,Individual School Budgets With Inclusion,5250.51,Externally Purchased Professional Services ,2122P01_CR00712,141597
Sandwell Metropolitan Borough Council,http://www.sandwell.gov.uk/info/200202/performance_and_spending/1079/payments_over_500,21-Apr-2021,Individual School Budgets With Inclusion,SOLIHULL COLLEGE,Individual School Budgets With Inclusion,5802.03,Externally Purchased Professional Services ,2122P01_CR00713,01353147
Sandwell Metropolitan Borough Council,http://www.sandwell.gov.uk/info/200202/performance_and_spending/1079/payments_over_500,01-Apr-2021,Individual School Budgets With Inclusion,LEICESTERSHIRE COUNTY COUNCIL,Individual School Budgets With Inclusion,5844.00,Other Local Authorities,2122P01_CR00714,8892
Sandwell Metropolitan Borough Council,http://www.sandwell.gov.uk/info/200202/performance_and_spending/1079/payments_over_500,01-Apr-2021,Individual School Budgets With Inclusion,ORBIS EDUCATION AND CARE LTD,Individual School Budgets With Inclusion,6152.79,Other Establishments,2122P01_CR00715,140984
